{"text_format":"1","workbook":"xlsx","n_sheets":18,"sheets":["Instructions","Summary","Open Pit","Rock Pile","Chemicals","Bldgs & Equip MS","Bldgs & Equip MP","Bldgs & Equip TR","Water Management","ICM","PostClosure","Mobilization","UG Mine","Tailings","Water Treatment","Unit_Costs","Estimator","Tools"],"not_rendered":{"charts":0,"images":3,"macros":1,"external_links":0,"defined_names":159,"comments":1,"pivot_tables":0},"unopened":[],"bounds":{"document_bytes":16777216,"sheet_cells":100000,"rows_first":2000,"rows_last":500,"rows_between":2000,"halvings":0,"cell_chars":16384,"cell_head_chars":4096},"cells_cut":0,"cells_raw":0,"read":"whole","date_system":"1900"}

{"sheet":"Instructions","index":0,"n_rows":69,"n_cols":8,"rows_kept":69,"cut":false,"hidden":false,"merged":[[58,0,67,1],[32,0,32,1],[33,0,38,1],[39,0,46,1],[47,0,53,1],[54,0,57,1]]}
["Project Name:",null,"Reclaim Model - Overview of Program"]
[null,"Baffinland Iron Mine (Bas","All users are urged to read the Reclaim Model User Manual - Scroll down for overview description of program.",null,null,"","",""]
[null,null,"Important!  Reclaim 7.0 works better with no other excel files open."]
[null,null,"If other excel files are open ignore run time error and proceed"]
["Reclaim Menu",null,"The default Excel menu bar has an additional tab labelled \"Add-Ins\" that provides options specific to the Reclaim Model.",null,null,"","",""]
[null,"Clear","This option deletes all input data, deletes any duplicated elements and blanks out the project name.  It also allows for segregation into land costs vs water costs if required.",null,null,"","",""]
[null,"Duplicate","This option Duplicates components of the project. E.g. if there is more than one Open Pit, use duplicate to add a second Open Pit.  Quantities for the new Open Pit are erased, but the Activities and Cost Codes are carried over from the original Open Pit.  The new Open Pit subtotal is added to the Summary page.",null,null,"","",""]
[null,"Unit Costs","This option opens a window of unit costs to provide easy reference.  NOTE:  the unit cost table has a filter in the 'UNITS' column.   You can select to only see a particular unit (eg km) or multiple units (km and m3) or all units.",null,null,"","",""]
[null,"Print All ","This option prints the Summary Worksheet, Unit Cost Worksheet, and the individual component worksheets having non-zero balances.  Individual worksheets can be printed directly using standard printing methods, such as Ctl - P.",null,null,"","",""]
[null,"Quit","Select Quit to exit the program",null,null,"","",""]
[null,"Help","Redirects user to Instructions worksheet.",null,null,"","",""]
[null,null,null,null,null,"","",""]
["WorkSheets",null,null,null,null,"","",""]
[null,"Summary ","This worksheet contains a cumulative summary of costs for each component of the project.     Associated costs such as engineering and project management are added as a percentage of the component costs.\n",null,null,"","",""]
[null,"Components","Costs are derived for individual closure and reclamation activities by multiplying a \"quantity\" of activity by a \"unit cost\".      \nAn activity can be edited, added, or deleted from worksheet.  However, care should be taken not to modify cells that are defined and used elsewhere in the program.",null,null,"","",""]
[null,null,"Do not change the content or column width of the first column of each component worksheet.",null,null,"","",""]
[null,"Unit Costs","This worksheet contains a look up table with costs for typical work associated with each closure and reclamation activity",null,null,"","",""]
[null,null,null,null,null,"","",""]
["Limitations",null,"The Reclaim Program will NOT work if the worksheets are changed such that the following requirements are not met.  Please review the following prior to modifiying worksheets.",null,null,"","",""]
[null,"WorkSheet Names","The names of the worksheets must not be changed.",null,null,"","",""]
[null,"Defined Names","Certain cells have defined names, which must not be changed.  Where the cell is named, the name will appear in the \"Name Box\" to the left of the formula bar.",null,null,"","",""]
[null,"First line of data","The first line of data for any component worksheet starts on line 4.  Do not change the first line of a component worksheet, ie the component name.",null,null,"","",""]
[null,"Cell A1","Cell A1 on the component sheet MUST always contain the count of that component for the duplicate function to operate.  DO NOT CHANGE.",null,null,"","",""]
[null,"Adding Lines","You can add lines to components and the unit cost table, as long as they are not the last lines.\nThe last line might fall outside the named ranges.  You can check the size of the named range by selecting the name from the drop down box at the top left of the sheet.  Usually this box has a cell reference, or a name.  ",null,null,"","",""]
[null,"Printing","A component will only be printed if its sub-total is greater than zero.  In addition, a component and the summary sheet cannot be printed if there is an error.  Printing has been set to print 1 page per component. ",null,null,"","",""]
[null,null,null,null,null,"","",""]
["Conditions of Use",null,"The Reclamation Cost Estimating Model was prepared to serve as a guide for Government Agencies, mining companies, and others to estimate the cost of mine reclamation.  This model is not intended to replace reclamation planning or to be used to determine the activities required to reclaim a site or to dictate how much should be spent on reclamation.",null,null,"","",""]
[null,null,null,null,null,"","",""]
[null,null,"Reclaim was prepared by Brodie Consulting Ltd. on behalf of AANDC.  AANDC and Brodie Consulting Ltd. are not responsible for the completeness or accuracy of any reclamation estimate made using this model.  The user agrees to check and take responsibility for all aspects of any cost estimate made using this model.",null,null,"","",""]
[null,null,null,null,null,"","",""]
["The following table provides guidance as to whether water management and treatment is considered short term or long term.  Short term closure activities",null,null,null,null,"","",""]
["may be costed within a component (eg 'Open Pit' or 'Rock Pile') or 'Water Management'.  Long term or post-closure water treatment is costed in 'Water Treatment'."]
[null,null,null,"Short Term/ Capital Ex.","Long term/ NPV","","",""]
["Open Pit",null,"flood pit - install/operate pumping system","x",null,"","",""]
[null,null,"construct diversion ditches","x",null,"","",""]
[null,null,"treat 1st filling","x",null,"","",""]
[null,null,"install pump/decant system","x",null,"","",""]
[null,null,"passive/biological treatment","x",null,"","",""]
[null,null,"overflow treatment",null,"x","","",""]
["Rock Pile/Heap Leach Facility",null,"construct diversion ditches","x",null,"","",""]
[null,null,"install groundwater collection system","x",null,"","",""]
[null,null,"install toe seepage collection system","x",null,"","",""]
[null,null,"collect and treat groundwater",null,"x"]
[null,null,"collect and treat seepage (ARD/ML)",null,"x"]
[null,null,"install passive treatment system","x",null,"","",""]
[null,null,"operate and maintain passive treatment system",null,"x","","",""]
[null,null,"operate pump and detoxify heap leach pile (cyanide destruction)","x",null,"","",""]
["Tailings Facility",null,"construct diversion ditches","x",null,"","",""]
[null,null,"pump supernatant (to pit, U/G)","x",null,"","",""]
[null,null,"treat supernatant","x",null,"","",""]
[null,null,"install toe seepage collection system","x",null,"","",""]
[null,null,"collect and treat seepage (ARD/ML)",null,"x","","",""]
[null,null,"install passive treatment system","x",null,"","",""]
[null,null,"operate and maintain passive treatment system",null,"x","","",""]
["U/G Mine",null,"accelerate flooding","x",null,"","",""]
[null,null,"install seepage collection system","x",null,"","",""]
[null,null,"install dewatering/pumping system","x",null,"","",""]
[null,null,"operate seepage/dewatering system (ARD/ML)",null,"x","","",""]
["Water Management",null,"refill lakes",null,null,"","",""]
[null,null,"redirect creeks/streams","x",null,"","",""]
[null,null,"stabilize water management ponds","x",null,"","",""]
[null,null,"stabilize/close sediment ponds","x"]
[null,null,"fresh water supply - breach embankment","x"]
[null,null,"fresh water supply - remove piping system","x"]
[null,null,"construct water treatment plant","x"]
[null,null,"construct sludge pond","x"]
[null,null,"water control in reclamation quarry","x"]
[null,null,"operate/maintain water treatment plant",null,"x","","",""]
[null,null,null,null,null,"","",""]

{"sheet":"Summary","index":1,"n_rows":28,"n_cols":11,"rows_kept":28,"cut":false,"hidden":false,"merged":[]}
[null,"Mary River Mine"]
["CAPITAL COSTS","COMPONENT NAME",null,"COST",null,"LAND LIABILITY",null,"WATER LIABILITY","IOL     LIABILITY",null,"CROWN LIABILITY"]
["OPEN PIT",{"$f":"IF(ISBLANK('Open Pit'!$C$1),\"\",'Open Pit'!$C$1)","v":"Mary River Mine Pit"},null,{"$f":"Pit1Total","v":3477111.1767045083},null,{"$f":"Pit1LandTotal","v":3477111.1766045084},null,{"$f":"Pit1WaterTotal","v":0},{"$f":"D3-K3","v":3477111.1767045083},null,{"$f":"'Open Pit'!J52+'Open Pit'!J58","v":0}]
["UNDERGROUND MINE",{"$f":"IF(ISBLANK('UG Mine'!$C$1),\"\",'UG Mine'!$C$1)","v":""},null,{"$f":"UG1Total","v":1E-4},null,{"$f":"UG1LandTotal","v":0},null,{"$f":"UG1WaterTotal","v":0},{"$f":"D4-K4","v":1E-4},null,0]
["TAILINGS FACILITY",{"$f":"IF(ISBLANK(Tailings!$C$1),\"\",Tailings!$C$1)","v":""},null,{"$f":"Tailings1Total","v":1E-4},null,{"$f":"Tailings1LandTotal","v":0},null,{"$f":"Tailings1WaterTotal","v":0},1E-4,null,0]
["ROCK PILE",{"$f":"IF(ISBLANK('Rock Pile'!$C$1),\"\",'Rock Pile'!$C$1)","v":"Mine Site Waste Rock Pile"},null,{"$f":"RP1Total","v":1E-4},null,{"$f":"RP1LandTotal","v":0},null,{"$f":"RP1WaterTotal","v":0},1E-4,null,0]
["BUILDINGS AND EQUIPMENT",{"$f":"IF(ISBLANK('Bldgs & Equip MS'!$C$1),\"\",'Bldgs & Equip MS'!$C$1)","v":"Mine Site"},null,{"$f":"Bldg1Total","v":2874354.5053160866},null,{"$f":"Bldg1LandTotal","v":2855863.3596160868},null,{"$f":"Bldg1WaterTotal","v":18491.145600000011},2874354.5053160866,null,0]
[null,{"$f":"'Bldgs & Equip MP'!C1","v":"Milne Port"},null,{"$f":"'Bldgs & Equip MP'!Bldg1Total","v":372171.14438674721},null,{"$f":"'Bldgs & Equip MP'!Bldg1LandTotal","v":369351.98178674723},null,{"$f":"'Bldgs & Equip MP'!Bldg1WaterTotal","v":2819.1624999999995},372171.14438674721,null,0]
[null,{"$f":"'Bldgs & Equip TR'!C1","v":"Tote Road"},null,{"$f":"'Bldgs & Equip TR'!Bldg1Total","v":429624.79864600609},null,{"$f":"'Bldgs & Equip TR'!Bldg1LandTotal","v":429624.79854600609},null,{"$f":"'Bldgs & Equip TR'!Bldg1WaterTotal","v":0},{"$f":"F9-'Bldgs & Equip TR'!J56","v":291483.41656177607},null,{"$f":"'Bldgs & Equip TR'!J56","v":138141.38198423004}]
[null,null,null,null,null,null,null,null,0,null,0]
["CHEMICALS AND CONTAMINATED SOIL MANAGEMENT",{"$f":"IF(ISBLANK(Chemicals!$C$1),\"\",Chemicals!$C$1)","v":""},null,{"$f":"Chem1Total","v":3508400.0000999998},null,{"$f":"Chem1LandTotal","v":3508400},null,{"$f":"Chem1WaterTotal","v":0},3508400.0000999998,null,0]
["SURFACE AND GROUNDWATER MANAGEMENT",{"$f":"IF(ISBLANK('Water Treatment'!$C$1),\"\",'Water Treatment'!$C$1)","v":""},null,{"$f":"Water1Total","v":1E-4},null,"-",null,{"$f":"Water1Total","v":1E-4},9.8068833642339957E-5,null,{"$f":"D12*$K$15","v":1.9311663576600458E-6}]
["INTERIM CARE AND MAINTENANCE",{"$f":"IF(ISBLANK(ICM!$C$1),\"\",ICM!$C$1)","v":""},null,{"$f":"ICMTotal","v":1E-4},null,"-",null,{"$f":"ICMTotal","v":1E-4},9.8068833642339957E-5,null,1.9311663576600458E-6]
[null,"SUBTOTAL: Capital Costs",null,{"$f":"SUM(D3:D13)","v":10661661.625653347},null,{"$f":"SUM(F3:F13)","v":10640351.316553349},null,{"$f":"SUM(H3:H13)","v":21310.308300000012},{"$f":"SUM(I3:I13)","v":10523520.243565254},null,{"$f":"SUM(K3:K13)","v":138141.38198809235}]
[null,"PERCENT OF SUBTOTAL ",null,null,null,{"$f":"IF(F14<0.01,0,F14/D14)","v":0.99800122064944141},null,{"$f":"IF(H14<0.01,0,H14/D14)","v":1.998779275523492E-3},{"$f":"SUM(I3:I10)/SUM(D3:D10)","v":0.98068833640941988},null,{"$f":"SUM(K3:K10)/SUM(D3:D10)","v":1.9311663576600458E-2}]
[]
["INDIRECT COSTS",null,null,"COST",null,"LAND LIABILITY",null,"WATER LIABILITY","IOL     LIABILITY",null,"CROWN LIABILITY"]
["MOBILIZATION/DEMOBILIZATION",{"$f":"IF(ISBLANK(Mobilization!$C$1),\"\",Mobilization!$C$1)","v":""},null,{"$f":"MobTotal","v":20049604.712665338},null,{"$f":"D18*$F$15","v":20009529.976778802},null,{"$f":"D18*$H$15","v":40074.734382113616},{"$f":"D18-K18","v":20049604.712665338},null,0]
["POST-CLOSURE MONITORING AND MAINTENANCE",{"$f":"IF(ISBLANK(PostClosure!$C$1),\"\",PostClosure!$C$1)","v":""},null,{"$f":"PCAnnualTotal","v":3430000.0000999998},null,{"$f":"D19*$F$15","v":3423144.1869273838},null,{"$f":"D19*$H$15","v":6855.8129152454558},3392243.7666402874,null,{"$f":"D19*$K$15*0.57","v":37756.233459712319}]
["ENGINEERING ",3.9E-2,null,{"$f":"B20*$D$14","v":415804.80340048054},null,{"$f":"+$F$15*D20","v":414973.70134558057},null,{"$f":"+$H$15*D20","v":831.10202370000059},407774.92092367599,null,{"$f":"D20*$K$15","v":8029.8824768045743}]
["PROJECT MANAGEMENT",9.4E-2,null,1002196.1928114146,null,1000193.0237560148,null,2003.1689802000012,982842.1170980907,null,19354.075713323844]
["HEALTH AND SAFETY PLANS/MONITORING & QA/QC",0,null,0,null,0,null,0,0,null,0]
["BONDING/INSURANCE",0.02,null,213233.23251306693,null,212807.02633106697,null,426.20616600000028,209115.34406342357,null,4117.8884496433711]
["CONTINGENCY ",0.2,null,2132332.3251306694,null,2128070.2633106695,null,4262.061660000003,2091153.4406342357,null,41178.884496433711]
["MARKET PRICE FACTOR ADJUSTMENT",0,null,0,null,0,null,0,{"$f":"C25*$J$15","v":0},null,{"$f":"C25*$L$15","v":0}]
[null,"SUBTOTAL: Indirect Costs",null,{"$f":"SUM(D18:D25)","v":27243171.266620964},null,{"$f":"SUM(F18:F25)","v":27188718.178449519},null,{"$f":"SUM(H18:H25)","v":54453.086127259085},{"$f":"SUM(I18:I25)","v":27132734.30202505},null,{"$f":"SUM(K18:K25)","v":110436.96459591782}]
[]
["TOTAL COSTS",null,null,{"$f":"D14+D26","v":37904832.892274313},null,{"$f":"F14+F26","v":37829069.495002866},null,{"$f":"H14+H26","v":75763.394427259103},{"$f":"I14+I26","v":37656254.545590304},null,{"$f":"K14+K26","v":248578.34658401017}]

{"sheet":"Open Pit","index":2,"n_rows":91,"n_cols":11,"rows_kept":91,"cut":false,"hidden":false,"merged":[]}
[1,"Open Pit Name: ","Mary River Mine Pit",null,null,null,"Pit #",1]
[]
[null,"ACTIVITY/MATERIAL","Notes","Units","Quantity","Cost Code","Unit Cost","Cost","% Land","Land Cost","Water Cost"]
[null,"CONTROL ACCESS"]
[null,"Fence",null,"m",null,{"$f":"NA()","v":{"$error":"#N/A"}},{"$f":"IF(ISNA(F5),0,INDEX(IF(UPPER(RIGHT(F5,1))=Low,UnitCostLow, IF(UPPER(RIGHT(F5,1))=High,UnitCostHigh,UnitCostSpecified)),MATCH(UPPER(LEFT(F5,LEN(F5)-1)),CostCode,0)))","v":0},{"$f":"G5*E5","v":0},null,{"$f":"H5*I5","v":0},{"$f":"H5*(1-I5)","v":0}]
[null,"Signs",null,"each",null,"SH",37.08,{"$f":"G6*E6","v":0},null,{"$f":"H6*I6","v":0},{"$f":"H6*(1-I6)","v":0}]
[null,"Berm at crest",null,"m3",null,{"$f":"NA()","v":{"$error":"#N/A"}},{"$f":"IF(ISNA(F7),0,INDEX(IF(UPPER(RIGHT(F7,1))=Low,UnitCostLow, IF(UPPER(RIGHT(F7,1))=High,UnitCostHigh,UnitCostSpecified)),MATCH(UPPER(LEFT(F7,LEN(F7)-1)),CostCode,0)))","v":0},{"$f":"G7*E7","v":0},null,{"$f":"H7*I7","v":0},{"$f":"H7*(1-I7)","v":0}]
[null,"Block roads",null,"m3",null,"RB1H",{"$f":"IF(ISNA(F8),0,INDEX(IF(UPPER(RIGHT(F8,1))=Low,UnitCostLow, IF(UPPER(RIGHT(F8,1))=High,UnitCostHigh,UnitCostSpecified)),MATCH(UPPER(LEFT(F8,LEN(F8)-1)),CostCode,0)))","v":17.05},{"$f":"G8*E8","v":0},null,{"$f":"H8*I8","v":0},{"$f":"H8*(1-I8)","v":0}]
[null,"Other",null,null,null,{"$f":"NA()","v":{"$error":"#N/A"}},{"$f":"IF(ISNA(F9),0,INDEX(IF(UPPER(RIGHT(F9,1))=Low,UnitCostLow, IF(UPPER(RIGHT(F9,1))=High,UnitCostHigh,UnitCostSpecified)),MATCH(UPPER(LEFT(F9,LEN(F9)-1)),CostCode,0)))","v":0},{"$f":"G9*E9","v":0},null,{"$f":"H9*I9","v":0},{"$f":"H9*(1-I9)","v":0}]
[null,"STABILITY STUDY"]
[null,"Conduct stability and setback study",null,"allow",null,"EA",0,{"$f":"G11*E11","v":0},null,{"$f":"H11*I11","v":0},{"$f":"H11*(1-I11)","v":0}]
[null,"STABILIZE SLOPES"]
[null,"Off-load crest, soil A",null,"m3",null,{"$f":"NA()","v":{"$error":"#N/A"}},{"$f":"IF(ISNA(F13),0,INDEX(IF(UPPER(RIGHT(F13,1))=Low,UnitCostLow, IF(UPPER(RIGHT(F13,1))=High,UnitCostHigh,UnitCostSpecified)),MATCH(UPPER(LEFT(F13,LEN(F13)-1)),CostCode,0)))","v":0},{"$f":"G13*E13","v":0},null,{"$f":"H13*I13","v":0},{"$f":"H13*(1-I13)","v":0}]
[null,"Off-load crest, soil B",null,"m3",null,{"$f":"NA()","v":{"$error":"#N/A"}},0,0,null,0,0]
[null,"Doze/trim overburden at crest",null,"m3",null,{"$f":"NA()","v":{"$error":"#N/A"}},0,0,null,0,0]
[null,"Drill & blast pit crest",null,"m3",null,{"$f":"NA()","v":{"$error":"#N/A"}},0,0,null,0,0]
[null,"Buttress slope",null,"m3",null,{"$f":"NA()","v":{"$error":"#N/A"}},0,0,null,0,0]
[null,"Other",null,null,null,{"$f":"NA()","v":{"$error":"#N/A"}},0,0,null,0,0]
[null,"COVER/CONTOUR SLOPES"]
[null,"Place fill, soil A",null,"m3",null,{"$f":"NA()","v":{"$error":"#N/A"}},{"$f":"IF(ISNA(F20),0,INDEX(IF(UPPER(RIGHT(F20,1))=Low,UnitCostLow, IF(UPPER(RIGHT(F20,1))=High,UnitCostHigh,UnitCostSpecified)),MATCH(UPPER(LEFT(F20,LEN(F20)-1)),CostCode,0)))","v":0},{"$f":"G20*E20","v":0},null,{"$f":"H20*I20","v":0},{"$f":"H20*(1-I20)","v":0}]
[null,"Place fill, soil B",null,"m3",null,{"$f":"NA()","v":{"$error":"#N/A"}},0,0,null,0,0]
[null,"Rip rap",null,"m3",null,{"$f":"NA()","v":{"$error":"#N/A"}},0,0,null,0,0]
[null,"Vegetate slopes",null,"ha",null,{"$f":"NA()","v":{"$error":"#N/A"}},0,0,null,0,0]
[null,"Vegetate pit floor",null,"ha",null,{"$f":"NA()","v":{"$error":"#N/A"}},0,0,null,0,0]
[null,"Other",null,null,null,{"$f":"NA()","v":{"$error":"#N/A"}},0,0,null,0,0]
[null,"CONSTRUCT DIVERSION DITCHES"]
[null,"Excavate ditches -soil",null,"m3",null,{"$f":"NA()","v":{"$error":"#N/A"}},{"$f":"IF(ISNA(F27),0,INDEX(IF(UPPER(RIGHT(F27,1))=Low,UnitCostLow, IF(UPPER(RIGHT(F27,1))=High,UnitCostHigh,UnitCostSpecified)),MATCH(UPPER(LEFT(F27,LEN(F27)-1)),CostCode,0)))","v":0},{"$f":"G27*E27","v":0},null,{"$f":"H27*I27","v":0},{"$f":"H27*(1-I27)","v":0}]
[null,"Excavate ditches -rock",null,"m3",null,{"$f":"NA()","v":{"$error":"#N/A"}},{"$f":"IF(ISNA(F28),0,INDEX(IF(UPPER(RIGHT(F28,1))=Low,UnitCostLow, IF(UPPER(RIGHT(F28,1))=High,UnitCostHigh,UnitCostSpecified)),MATCH(UPPER(LEFT(F28,LEN(F28)-1)),CostCode,0)))","v":0},{"$f":"G28*E28","v":0},null,{"$f":"H28*I28","v":0},{"$f":"H28*(1-I28)","v":0}]
[null,"Rip rap in channel base",null,"m3",null,{"$f":"NA()","v":{"$error":"#N/A"}},{"$f":"IF(ISNA(F29),0,INDEX(IF(UPPER(RIGHT(F29,1))=Low,UnitCostLow, IF(UPPER(RIGHT(F29,1))=High,UnitCostHigh,UnitCostSpecified)),MATCH(UPPER(LEFT(F29,LEN(F29)-1)),CostCode,0)))","v":0},{"$f":"G29*E29","v":0},null,{"$f":"H29*I29","v":0},{"$f":"H29*(1-I29)","v":0}]
[null,"CONSTRUCT SPILLWAY"]
[null,"Excavate channel",null,"m3",null,{"$f":"NA()","v":{"$error":"#N/A"}},{"$f":"IF(ISNA(F31),0,INDEX(IF(UPPER(RIGHT(F31,1))=Low,UnitCostLow, IF(UPPER(RIGHT(F31,1))=High,UnitCostHigh,UnitCostSpecified)),MATCH(UPPER(LEFT(F31,LEN(F31)-1)),CostCode,0)))","v":0},{"$f":"G31*E31","v":0},null,{"$f":"H31*I31","v":0},{"$f":"H31*(1-I31)","v":0}]
[null,"Concrete",null,"m3",null,{"$f":"NA()","v":{"$error":"#N/A"}},{"$f":"IF(ISNA(F32),0,INDEX(IF(UPPER(RIGHT(F32,1))=Low,UnitCostLow, IF(UPPER(RIGHT(F32,1))=High,UnitCostHigh,UnitCostSpecified)),MATCH(UPPER(LEFT(F32,LEN(F32)-1)),CostCode,0)))","v":0},{"$f":"G32*E32","v":0},null,{"$f":"H32*I32","v":0},{"$f":"H32*(1-I32)","v":0}]
[null,"Rip rap",null,"m3",null,{"$f":"NA()","v":{"$error":"#N/A"}},{"$f":"IF(ISNA(F33),0,INDEX(IF(UPPER(RIGHT(F33,1))=Low,UnitCostLow, IF(UPPER(RIGHT(F33,1))=High,UnitCostHigh,UnitCostSpecified)),MATCH(UPPER(LEFT(F33,LEN(F33)-1)),CostCode,0)))","v":0},{"$f":"G33*E33","v":0},null,{"$f":"H33*I33","v":0},{"$f":"H33*(1-I33)","v":0}]
[null,"Other",null,null,null,{"$f":"NA()","v":{"$error":"#N/A"}},{"$f":"IF(ISNA(F34),0,INDEX(IF(UPPER(RIGHT(F34,1))=Low,UnitCostLow, IF(UPPER(RIGHT(F34,1))=High,UnitCostHigh,UnitCostSpecified)),MATCH(UPPER(LEFT(F34,LEN(F34)-1)),CostCode,0)))","v":0},{"$f":"G34*E34","v":0},null,{"$f":"H34*I34","v":0},{"$f":"H34*(1-I34)","v":0}]
[null,"RECLAIM QUARRIES (the unit cost is inclusive of backfill, compaction and scarification with a dozer)"]
[null,"P10 Borrow Source",null,"m2",null,"15GCS",1.81,{"$f":"G36*E36","v":0},1,{"$f":"H36*I36","v":0},{"$f":"H36*(1-I36)","v":0}]
[null,"P13 Borrow Source",null,"m2",null,"15GCS",1.81,{"$f":"G37*E37","v":0},1,{"$f":"H37*I37","v":0},{"$f":"H37*(1-I37)","v":0}]
[null,"P14 Borrow Source",null,"m2",null,"15GCS",1.81,0,1,0,0]
[null,"P15 Borrow Source",null,"m2",null,"15GCS",1.81,0,1,0,0]
[null,"P5 Borrow Source",null,"m2",null,"15GCS",1.81,0,1,0,0]
[null,"P6 Borrow Source",null,"m2",null,"15GCS",1.81,0,1,0,0]
[null,"P7 Borrow Source",null,"m2",null,"15GCS",1.81,0,1,0,0]
[null,"P8 Borrow Source",null,"m2",null,"15GCS",1.81,0,1,0,0]
[null,"PQ2a Quarry",null,"m2",345500,"18GCS",1.49342034577546,515976.72946542141,1,515976.72946542141,0]
[null,"PQ4a Quarry",null,"m2",105000,"18GCS",1.49342034577546,156809.13630642332,1,156809.13630642332,0]
[null,"PQ6a Quarry",null,"m2",194000,"18GCS",1.49342034577546,289723.54708043922,1,289723.54708043922,0]
[null,"PQ12a Quarry",null,"m2",232200,"18GCS",1.49342034577546,346772.20428906183,1,346772.20428906183,0]
[null,"Q9 Quarry",null,"m2",null,"15GCS",1.81,0,1,0,0]
[null,"D1Q2 Quarry",null,"m2",null,"15GCS",1.81,0,1,0,0]
[null,"Q1 Quarry ",null,"m2",226000,"18GCS",1.49342034577546,337512.99814525398,1,337512.99814525398,0]
[null,"Q11 Quarry",null,"m2",null,"15GCS",1.81,0,1,0,0]
[null,"Q18 Quarry (on Crown Land)",null,"m2",null,"15GCS",1.81,0,1,0,0]
[null,"Q19 Quarry",null,"m2",null,"15GCS",1.81,0,1,0,0]
[null,"Q5 Quarry",null,"m2",1225587,"18GCS",1.49342034577546,{"$f":"G54*E54","v":1830316.5613179088},1,{"$f":"H54*I54","v":1830316.5613179088},{"$f":"H54*(1-I54)","v":0}]
[null,"Q7 Quarry",null,"m2",null,"15GCS",1.81,0,1,0,0]
[null,"QMR2 Quarry ",null,"m2",null,"15GCS",1.81,{"$f":"G56*E56","v":0},1,{"$f":"H56*I56","v":0},{"$f":"H56*(1-I56)","v":0}]
[null,"Pit 1",null,"m2",null,"15GCS",1.81,{"$f":"G57*E57","v":0},1,{"$f":"H57*I57","v":0},{"$f":"H57*(1-I57)","v":0}]
[null,"P1 Borrow Source (on Crown Land)","100% on Crown Land","m2",null,"15GCS",1.81,0,1,0,0]
[null,"Km 2 Borrow Source",null,"m2",null,"15GCS",1.81,0,1,0,0]
[null,"Type A Quarry ",null,"m2",null,"15GCS"]
[null,"Borrow Development Areas",null,"m2",null,"15GCS",1.81,0,1,0,0]
[null,"Unidentified Borrow Sources",null,"m2",null,"15GCS",1.81,0,1,0,0]
[null,"GRADING AND CONTOURING SIGNIFICANTLY DISTURBED AREAS (the unit cost is inclusive of backfill, compaction and scarification with a dozer)"]
[null,"Km 97 Borrow Source",null,"m2",null,"15GCDS",2.72,{"$f":"G64*E64","v":0},1,{"$f":"H64*I64","v":0},{"$f":"H64*(1-I64)","v":0}]
[null,"Type A Quarry ",null,"m2",null,"15GCDS",2.72,{"$f":"G65*E65","v":0},1,{"$f":"H65*I65","v":0},{"$f":"H65*(1-I65)","v":0}]
[null,"FLOOD PIT-Captital"]
[null,"Remove stationary equipment (sump pumps)",null,"Allow",null,"AE",10000,{"$f":"G67*E67","v":0},null,{"$f":"H67*I67","v":0},{"$f":"H67*(1-I67)","v":0}]
[null,"Remove dewatering pipeline",null,"m",null,{"$f":"NA()","v":{"$error":"#N/A"}},{"$f":"IF(ISNA(F68),0,INDEX(IF(UPPER(RIGHT(F68,1))=Low,UnitCostLow, IF(UPPER(RIGHT(F68,1))=High,UnitCostHigh,UnitCostSpecified)),MATCH(UPPER(LEFT(F68,LEN(F68)-1)),CostCode,0)))","v":0},0,null,0,{"$f":"H68*(1-I68)","v":0}]
[null,"Remove power lines",null,"each",null,{"$f":"NA()","v":{"$error":"#N/A"}},0,0,null,0,{"$f":"H69*(1-I69)","v":0}]
[null,"Construct diversion ditches",null,"m3",null,{"$f":"NA()","v":{"$error":"#N/A"}},0,0,null,0,{"$f":"H70*(1-I70)","v":0}]
[null,"    -Ditch, mat'l A",null,"m3",null,{"$f":"NA()","v":{"$error":"#N/A"}},0,0,null,0,{"$f":"+H71*(1-I71)","v":0}]
[null,"    -Ditch, mat'l B",null,"m3",null,{"$f":"NA()","v":{"$error":"#N/A"}},0,0,null,0,{"$f":"+H72*(1-I72)","v":0}]
[null,"Construct embankment/dam",null,"m3",null,{"$f":"NA()","v":{"$error":"#N/A"}},0,0,null,0,{"$f":"H73*(1-I73)","v":0}]
[null,"Supply/install pump station",null,"Allow",null,"AE",500000,0,null,0,{"$f":"H74*(1-I74)","v":0}]
[null,"Supply/install piping system",null,"m",null,{"$f":"NA()","v":{"$error":"#N/A"}},{"$f":"IF(ISNA(F75),0,INDEX(IF(UPPER(RIGHT(F75,1))=Low,UnitCostLow, IF(UPPER(RIGHT(F75,1))=High,UnitCostHigh,UnitCostSpecified)),MATCH(UPPER(LEFT(F75,LEN(F75)-1)),CostCode,0)))","v":0},0,null,0,{"$f":"H75*(1-I75)","v":0}]
[null,"Remove pump post-closure",null,"each",null,{"$f":"NA()","v":{"$error":"#N/A"}},{"$f":"IF(ISNA(F76),0,INDEX(IF(UPPER(RIGHT(F76,1))=Low,UnitCostLow, IF(UPPER(RIGHT(F76,1))=High,UnitCostHigh,UnitCostSpecified)),MATCH(UPPER(LEFT(F76,LEN(F76)-1)),CostCode,0)))","v":0},0,null,0,{"$f":"H76*(1-I76)","v":0}]
[null,"Remove pipeline post-closure",null,"m",null,{"$f":"NA()","v":{"$error":"#N/A"}},{"$f":"IF(ISNA(F77),0,INDEX(IF(UPPER(RIGHT(F77,1))=Low,UnitCostLow, IF(UPPER(RIGHT(F77,1))=High,UnitCostHigh,UnitCostSpecified)),MATCH(UPPER(LEFT(F77,LEN(F77)-1)),CostCode,0)))","v":0},0,null,0,{"$f":"H77*(1-I77)","v":0}]
[null,"FLOOD PIT-Annual Cost"]
[null,"Operate pumps (power)",null,"each",null,"AE",439359.8,{"$f":"G79*E79","v":0},null,{"$f":"H79*I79","v":0},{"$f":"H79*(1-I79)","v":0}]
[null,"Maintain pump/pipeline",null,"allow",null,{"$f":"NA()","v":{"$error":"#N/A"}},{"$f":"IF(ISNA(F80),0,INDEX(IF(UPPER(RIGHT(F80,1))=Low,UnitCostLow, IF(UPPER(RIGHT(F80,1))=High,UnitCostHigh,UnitCostSpecified)),MATCH(UPPER(LEFT(F80,LEN(F80)-1)),CostCode,0)))","v":0},0,null,0,0]
[null,"Labour:fuel management, comissioning/decom",null,"$/h",null,{"$f":"NA()","v":{"$error":"#N/A"}},0,0,null,0,0]
[null,"Chemical addition,  _____ kg/m3 of water",null,"tonne",null,{"$f":"NA()","v":{"$error":"#N/A"}},0,0,null,0,0]
[null,"Chemicals, purchase and shipping",null,"tonne",null,{"$f":"NA()","v":{"$error":"#N/A"}},0,0,null,0,0]
[null,"Passive/biological additives",null,"$/ha",null,{"$f":"NA()","v":{"$error":"#N/A"}},0,0,null,0,0]
[null,"Passive additives purchase and shipping",null,"tonne",null,{"$f":"NA()","v":{"$error":"#N/A"}},0,0,null,0,0]
[null,"Other",null,null,null,{"$f":"NA()","v":{"$error":"#N/A"}},0,0,null,0,0]
[null,null,null,null,null,null,"Annual pumping costs",{"$f":"SUM(H79:H86)+0.0001","v":1E-4}]
[null,"Number of years of pump flooding",null,"years"]
[null,null,null,null,null,null,"Total pumping costs",{"$f":"H87*E88","v":0},null,{"$f":"H89*I89","v":0},{"$f":"H89*(1-I89)","v":0}]
[null,null,null,null,null,null,"Total",{"$f":"SUM(H5:H77)+H89+0.0001","v":3477111.1767045083},null,{"$f":"SUM(J5:J77)+J89","v":3477111.1766045084},{"$f":"SUM(K5:K77)+K89","v":0}]
[null,null,null,null,null,null,"% of Total",null,null,{"$f":"J90/H90","v":0.99999999997124056},{"$f":"K90/H90","v":0}]

{"sheet":"Rock Pile","index":3,"n_rows":68,"n_cols":11,"rows_kept":68,"cut":false,"hidden":false,"merged":[]}
[1,"Rock Pile Name:","Mine Site Waste Rock Pile"]
[]
[null,"ACTIVITY/MATERIAL","Notes","Units","Quantity","Cost Code","Unit Cost","Cost","% Land","Land Cost","Water Cost"]
[null,"STABILIZE SLOPES"]
[null,"Flatten slopes with dozer",null,"m3",null,{"$f":"NA()","v":{"$error":"#N/A"}},{"$f":"IF(ISNA(F5),0,INDEX(IF(UPPER(RIGHT(F5,1))=Low,UnitCostLow, IF(UPPER(RIGHT(F5,1))=High,UnitCostHigh,UnitCostSpecified)),MATCH(UPPER(LEFT(F5,LEN(F5)-1)),CostCode,0)))","v":0},{"$f":"G5*E5","v":0},null,{"$f":"H5*I5","v":0},{"$f":"+H5*(1-I5)","v":0}]
[null,"Flatten \"bubble dump\" areas",null,"m3",null,{"$f":"NA()","v":{"$error":"#N/A"}},0,0,null,0,0]
[null,"Divert runon, ditch mat'l A",null,"m3",null,{"$f":"NA()","v":{"$error":"#N/A"}},0,0,null,0,0]
[null,"Divert runon, ditch mat'l B",null,"m3",null,{"$f":"NA()","v":{"$error":"#N/A"}},0,0,null,0,0]
[null,"Toe buttress, drain mat'l",null,"m3",null,{"$f":"NA()","v":{"$error":"#N/A"}},0,0,null,0,0]
[null,"Toe buttress, fill mat'l A",null,"m3",null,{"$f":"NA()","v":{"$error":"#N/A"}},0,0,null,0,0]
[null,"Toe buttress, fill mat'l B",null,"m3",null,{"$f":"NA()","v":{"$error":"#N/A"}},0,0,null,0,0]
[null,"Other",null,null,null,{"$f":"NA()","v":{"$error":"#N/A"}},0,0,null,0,0]
[null,"COVER ROCK PILE"]
[null,"Subgrade preparation - doze surface",null,"m3",null,{"$f":"NA()","v":{"$error":"#N/A"}},{"$f":"IF(ISNA(F14),0,INDEX(IF(UPPER(RIGHT(F14,1))=Low,UnitCostLow, IF(UPPER(RIGHT(F14,1))=High,UnitCostHigh,UnitCostSpecified)),MATCH(UPPER(LEFT(F14,LEN(F14)-1)),CostCode,0)))","v":0},{"$f":"G14*E14","v":0},null,{"$f":"H14*I14","v":0},{"$f":"+H14*(1-I14)","v":0}]
[null,"Soil cover - excavate,haul,spread&compact",null,"m3",null,{"$f":"NA()","v":{"$error":"#N/A"}},{"$f":"IF(ISNA(F15),0,INDEX(IF(UPPER(RIGHT(F15,1))=Low,UnitCostLow, IF(UPPER(RIGHT(F15,1))=High,UnitCostHigh,UnitCostSpecified)),MATCH(UPPER(LEFT(F15,LEN(F15)-1)),CostCode,0)))","v":0},{"$f":"G15*E15","v":0},null,{"$f":"H15*I15","v":0},{"$f":"+H15*(1-I15)","v":0}]
[null,"Rock cover - excavate,haul & spread",null,"m3",null,{"$f":"NA()","v":{"$error":"#N/A"}},0,0,null,0,0]
[null,"Excavate downslope drainage channel & chute",null,"m3",null,{"$f":"NA()","v":{"$error":"#N/A"}},0,0,null,0,0]
[null,"Rip rap drainage channel and chute",null,"m3",null,{"$f":"NA()","v":{"$error":"#N/A"}},0,0,null,0,0]
[null,"Vegetate",null,"ha",null,{"$f":"NA()","v":{"$error":"#N/A"}},0,0,null,0,0]
[null,"Other",null,null,null,{"$f":"NA()","v":{"$error":"#N/A"}},0,0,null,0,0]
[null,"VERY LOW PERMEABILITY COVER (in addition to above)"]
[null,"Liner subgrade preparation - compact",null,"m2",null,{"$f":"NA()","v":{"$error":"#N/A"}},{"$f":"IF(ISNA(F22),0,INDEX(IF(UPPER(RIGHT(F22,1))=Low,UnitCostLow, IF(UPPER(RIGHT(F22,1))=High,UnitCostHigh,UnitCostSpecified)),MATCH(UPPER(LEFT(F22,LEN(F22)-1)),CostCode,0)))","v":0},{"$f":"G22*E22","v":0},null,{"$f":"H22*I22","v":0},{"$f":"+H22*(1-I22)","v":0}]
[null,"Supply geomembrame",null,"m2",null,{"$f":"NA()","v":{"$error":"#N/A"}},{"$f":"IF(ISNA(F23),0,INDEX(IF(UPPER(RIGHT(F23,1))=Low,UnitCostLow, IF(UPPER(RIGHT(F23,1))=High,UnitCostHigh,UnitCostSpecified)),MATCH(UPPER(LEFT(F23,LEN(F23)-1)),CostCode,0)))","v":0},{"$f":"G23*E23","v":0},null,0,0]
[null,"Install geomembrane",null,"m2",null,{"$f":"NA()","v":{"$error":"#N/A"}},{"$f":"IF(ISNA(F24),0,INDEX(IF(UPPER(RIGHT(F24,1))=Low,UnitCostLow, IF(UPPER(RIGHT(F24,1))=High,UnitCostHigh,UnitCostSpecified)),MATCH(UPPER(LEFT(F24,LEN(F24)-1)),CostCode,0)))","v":0},{"$f":"G24*E24","v":0},null,0,0]
[null,"Protective cover - excavate,haul,spread&compact",null,"m3",null,{"$f":"NA()","v":{"$error":"#N/A"}},0,0,null,0,0]
[null,"Vegetate",null,"ha",null,{"$f":"NA()","v":{"$error":"#N/A"}},0,0,null,0,0]
[null,"Install infiltration/seepage instrumentation",null,"allow",null,{"$f":"NA()","v":{"$error":"#N/A"}},0,0,null,0,0]
[null,"CONSTRUCT DIVERSION DITCHES"]
[null,"Excavate ditches -soil",null,"m3",null,{"$f":"NA()","v":{"$error":"#N/A"}},{"$f":"IF(ISNA(F29),0,INDEX(IF(UPPER(RIGHT(F29,1))=Low,UnitCostLow, IF(UPPER(RIGHT(F29,1))=High,UnitCostHigh,UnitCostSpecified)),MATCH(UPPER(LEFT(F29,LEN(F29)-1)),CostCode,0)))","v":0},{"$f":"G29*E29","v":0},null,{"$f":"H29*I29","v":0},{"$f":"+H29*(1-I29)","v":0}]
[null,"Excavate ditches -rock",null,"m3",null,{"$f":"NA()","v":{"$error":"#N/A"}},{"$f":"IF(ISNA(F30),0,INDEX(IF(UPPER(RIGHT(F30,1))=Low,UnitCostLow, IF(UPPER(RIGHT(F30,1))=High,UnitCostHigh,UnitCostSpecified)),MATCH(UPPER(LEFT(F30,LEN(F30)-1)),CostCode,0)))","v":0},{"$f":"G30*E30","v":0},null,{"$f":"H30*I30","v":0},{"$f":"+H30*(1-I30)","v":0}]
[null,"Rip rap in channel base",null,"m3",null,{"$f":"NA()","v":{"$error":"#N/A"}},{"$f":"IF(ISNA(F31),0,INDEX(IF(UPPER(RIGHT(F31,1))=Low,UnitCostLow, IF(UPPER(RIGHT(F31,1))=High,UnitCostHigh,UnitCostSpecified)),MATCH(UPPER(LEFT(F31,LEN(F31)-1)),CostCode,0)))","v":0},{"$f":"G31*E31","v":0},null,{"$f":"H31*I31","v":0},{"$f":"+H31*(1-I31)","v":0}]
[null,"CONSTRUCT SEEPAGE COLLECTION POND"]
[null,"Excavate seepage collection pond",null,"m3",null,{"$f":"NA()","v":{"$error":"#N/A"}},0,0,null,{"$f":"H33*I33","v":0},{"$f":"+H33*(1-I33)","v":0}]
[null,"Doze & spread excavated material",null,"m3",null,{"$f":"NA()","v":{"$error":"#N/A"}},0,0,null,0,0]
[null,"Vegetate spread material",null,"ha",null,{"$f":"NA()","v":{"$error":"#N/A"}},0,0,null,0,0]
[null,"Bedding layer",null,"m3",null,{"$f":"NA()","v":{"$error":"#N/A"}},0,0,null,0,0]
[null,"Supply geomembrane",null,"m2",null,{"$f":"NA()","v":{"$error":"#N/A"}},0,0,null,0,0]
[null,"Install geomembrane",null,"m2",null,{"$f":"NA()","v":{"$error":"#N/A"}},0,0,null,0,0]
[null,"Erosion protection layer",null,"m3",null,{"$f":"NA()","v":{"$error":"#N/A"}},0,0,null,0,0]
[null,"INSTALL GROUNDWATER COLLECTION SYSTEM"]
[null,"Excavate/install sumps",null,"m3",null,{"$f":"NA()","v":{"$error":"#N/A"}},{"$f":"IF(ISNA(F41),0,INDEX(IF(UPPER(RIGHT(F41,1))=Low,UnitCostLow, IF(UPPER(RIGHT(F41,1))=High,UnitCostHigh,UnitCostSpecified)),MATCH(UPPER(LEFT(F41,LEN(F41)-1)),CostCode,0)))","v":0},{"$f":"G41*E41","v":0},null,{"$f":"H41*I41","v":0},{"$f":"+H41*(1-I41)","v":0}]
[null,"Install pumping wells",null,"m3",null,{"$f":"NA()","v":{"$error":"#N/A"}},{"$f":"IF(ISNA(F42),0,INDEX(IF(UPPER(RIGHT(F42,1))=Low,UnitCostLow, IF(UPPER(RIGHT(F42,1))=High,UnitCostHigh,UnitCostSpecified)),MATCH(UPPER(LEFT(F42,LEN(F42)-1)),CostCode,0)))","v":0},{"$f":"G42*E42","v":0},null,{"$f":"H42*I42","v":0},{"$f":"+H42*(1-I42)","v":0}]
[null,"Install pumps/pipelines/power supply",null,"allow",null,{"$f":"NA()","v":{"$error":"#N/A"}},{"$f":"IF(ISNA(F43),0,INDEX(IF(UPPER(RIGHT(F43,1))=Low,UnitCostLow, IF(UPPER(RIGHT(F43,1))=High,UnitCostHigh,UnitCostSpecified)),MATCH(UPPER(LEFT(F43,LEN(F43)-1)),CostCode,0)))","v":0},{"$f":"G43*E43","v":0},null,{"$f":"H43*I43","v":0},{"$f":"+H43*(1-I43)","v":0}]
[null,"RELOCATE DUMPS"]
[null,"Load, haul, dump or doze",null,"m3",null,"SC3L",{"$f":"IF(ISNA(F45),0,INDEX(IF(UPPER(RIGHT(F45,1))=Low,UnitCostLow, IF(UPPER(RIGHT(F45,1))=High,UnitCostHigh,UnitCostSpecified)),MATCH(UPPER(LEFT(F45,LEN(F45)-1)),CostCode,0)))","v":8.9},{"$f":"G45*E45","v":0},null,{"$f":"H45*I45","v":0},{"$f":"+H45*(1-I45)","v":0}]
[null,"Add lime",null,"tonne",null,{"$f":"NA()","v":{"$error":"#N/A"}},{"$f":"IF(ISNA(F46),0,INDEX(IF(UPPER(RIGHT(F46,1))=Low,UnitCostLow, IF(UPPER(RIGHT(F46,1))=High,UnitCostHigh,UnitCostSpecified)),MATCH(UPPER(LEFT(F46,LEN(F46)-1)),CostCode,0)))","v":0},{"$f":"G46*E46","v":0},null,{"$f":"H46*I46","v":0},{"$f":"+H46*(1-I46)","v":0}]
[null,"Contour reclaimed area",null,"ha",null,{"$f":"NA()","v":{"$error":"#N/A"}},{"$f":"IF(ISNA(F47),0,INDEX(IF(UPPER(RIGHT(F47,1))=Low,UnitCostLow, IF(UPPER(RIGHT(F47,1))=High,UnitCostHigh,UnitCostSpecified)),MATCH(UPPER(LEFT(F47,LEN(F47)-1)),CostCode,0)))","v":0},{"$f":"G47*E47","v":0},null,{"$f":"H47*I47","v":0},{"$f":"+H47*(1-I47)","v":0}]
[null,"Other",null,"allow",null,{"$f":"NA()","v":{"$error":"#N/A"}},0,{"$f":"G48*E48","v":0},null,{"$f":"H48*I48","v":0},{"$f":"+H48*(1-I48)","v":0}]
[null,"SPECIALIZED ITEMS"]
[null,"Install permanent instrumentation",null,"allow",null,{"$error":"#N/A"},0,{"$f":"G50*E50","v":0},null,{"$f":"H50*I50","v":0},{"$f":"+H50*(1-I50)","v":0}]
[null,"Install permanent instrumentation, drilling",null,"each",null,{"$f":"NA()","v":{"$error":"#N/A"}},{"$f":"IF(ISNA(F51),0,INDEX(IF(UPPER(RIGHT(F51,1))=Low,UnitCostLow, IF(UPPER(RIGHT(F51,1))=High,UnitCostHigh,UnitCostSpecified)),MATCH(UPPER(LEFT(F51,LEN(F51)-1)),CostCode,0)))","v":0},{"$f":"G51*E51","v":0},null,{"$f":"H51*I51","v":0},{"$f":"+H51*(1-I51)","v":0}]
[null,"Grade and Contour Waste Rock dump",null,"m2",null,"15GCS",1.81,{"$f":"G52*E52","v":0},1,{"$f":"H52*I52","v":0},{"$f":"+H52*(1-I52)","v":0}]
[null,"TREAT ROCK PILE SEEPAGE - see \"Water Management\""]
[null,"HEAP LEACH SEEPAGE TREATMENT - Cyanide Detox"]
[null,"Cyanide destruction water treatment pumping",null,"m3",null,{"$f":"NA()","v":{"$error":"#N/A"}},{"$f":"IF(ISNA(F55),0,INDEX(IF(UPPER(RIGHT(F55,1))=Low,UnitCostLow, IF(UPPER(RIGHT(F55,1))=High,UnitCostHigh,UnitCostSpecified)),MATCH(UPPER(LEFT(F55,LEN(F55)-1)),CostCode,0)))","v":0},{"$f":"G55*E55","v":0},null,{"$f":"H55*I55","v":0},{"$f":"+H55*(1-I55)","v":0}]
[null,"Reagents",null,"tonnes",null,{"$f":"NA()","v":{"$error":"#N/A"}},{"$f":"IF(ISNA(F56),0,INDEX(IF(UPPER(RIGHT(F56,1))=Low,UnitCostLow, IF(UPPER(RIGHT(F56,1))=High,UnitCostHigh,UnitCostSpecified)),MATCH(UPPER(LEFT(F56,LEN(F56)-1)),CostCode,0)))","v":0},{"$f":"G56*E56","v":0},null,{"$f":"H56*I56","v":0},{"$f":"+H56*(1-I56)","v":0}]
[null,"Electrician/mechanic to maintain treatment plant",null,"allow",null,{"$f":"NA()","v":{"$error":"#N/A"}},{"$f":"IF(ISNA(F57),0,INDEX(IF(UPPER(RIGHT(F57,1))=Low,UnitCostLow, IF(UPPER(RIGHT(F57,1))=High,UnitCostHigh,UnitCostSpecified)),MATCH(UPPER(LEFT(F57,LEN(F57)-1)),CostCode,0)))","v":0},{"$f":"G57*E57","v":0},null,{"$f":"H57*I57","v":0},{"$f":"+H57*(1-I57)","v":0}]
[null,"Equipment maintenance and parts",null,"allow",null,{"$f":"NA()","v":{"$error":"#N/A"}},{"$f":"IF(ISNA(F58),0,INDEX(IF(UPPER(RIGHT(F58,1))=Low,UnitCostLow, IF(UPPER(RIGHT(F58,1))=High,UnitCostHigh,UnitCostSpecified)),MATCH(UPPER(LEFT(F58,LEN(F58)-1)),CostCode,0)))","v":0},{"$f":"G58*E58","v":0},null,{"$f":"H58*I58","v":0},{"$f":"+H58*(1-I58)","v":0}]
[null,null,null,null,null,null,"Annual treatment costs",{"$f":"SUM(H55:H58)+0.0001","v":1E-4}]
[null,"Number of years of treatment",null,"years"]
[null,null,null,null,null,null,"Total treatment costs",{"$f":"H59*E60","v":0},null,null,{"$f":"H61","v":0}]
[null,"HEAP LEACH SEEPAGE TREATMENT - ARD/ML**"]
[null,"Upgrade/modify pumping system - report to WTP",null,"allow",null,{"$f":"NA()","v":{"$error":"#N/A"}},{"$f":"IF(ISNA(F63),0,INDEX(IF(UPPER(RIGHT(F63,1))=Low,UnitCostLow, IF(UPPER(RIGHT(F63,1))=High,UnitCostHigh,UnitCostSpecified)),MATCH(UPPER(LEFT(F63,LEN(F63)-1)),CostCode,0)))","v":0},{"$f":"G63*E63","v":0},null,null,{"$f":"H63","v":0}]
[null,null,null,null,null,null,"Total",{"$f":"SUM(H5:H52)+H61+H63+0.0001","v":1E-4},null,{"$f":"SUM(J5:J52)+J61+J63","v":0},{"$f":"SUM(K5:K51)+K61+K63","v":0}]
[null,null,null,null,null,null,"% of Total",null,null,{"$f":"J64/H64","v":0},{"$f":"K64/H64","v":0}]
[]
[null,"* For construction of passive treatment system refer to \"Water Management\".  ARD/ML seepage treatment becomes post-closure water treatment cost"]
[null,"**Heap leach ARD/ML seepage treatment becomes post-closure water treatment cost"]

{"sheet":"Chemicals","index":4,"n_rows":56,"n_cols":11,"rows_kept":56,"cut":false,"hidden":false,"merged":[[2,1,2,7]]}
[1,"Chemicals/Soil Area Name:"]
[]
[null,"Note:         The procedures, equipment and packaging for clean up and removal of chemicals or contaminated soils are highly dependent on the nature of the chemicals and their existing state of containment. Government guidelines should be consulted on an individual chemical basis.  Any estimate made here should be considered very rough unless specific evaluations have been conducted."]
[null,"ACTIVITY/MATERIAL","Notes","Units","Quantity","Cost Code","Unit Cost","Cost","% Land","Land Cost","Water Cost"]
[null,"HAZARDOUS MATERIALS AUDIT"]
[null,"Hazardous materials audit",null,"allow",null,{"$f":"NA()","v":{"$error":"#N/A"}},0,{"$f":"G6*E6","v":0},0,{"$f":"H6*I6","v":0},{"$f":"+H6*(1-I6)","v":0}]
[null,"BUILDING DECONTAMINATION & CONSOLIDATION OF HAZARDOUS MATERIALS"]
[null,"Environmental technician/coordinator",null,"mandays",null,{"$f":"NA()","v":{"$error":"#N/A"}},{"$f":"IF(ISNA(F8),0,INDEX(IF(UPPER(RIGHT(F8,1))=Low,UnitCostLow, IF(UPPER(RIGHT(F8,1))=High,UnitCostHigh,UnitCostSpecified)),MATCH(UPPER(LEFT(F8,LEN(F8)-1)),CostCode,0)))","v":0},{"$f":"G8*E8","v":0},null,{"$f":"H8*I8","v":0},{"$f":"+H8*(1-I8)","v":0}]
[null,"Decontaminate: oil, fuel",null,"manhours",null,{"$f":"NA()","v":{"$error":"#N/A"}},0,{"$f":"G9*E9","v":0},null,{"$f":"H9*I9","v":0},{"$f":"+H9*(1-I9)","v":0}]
[null,"Decontaminate maintenance shop",null,"mandays",null,{"$f":"NA()","v":{"$error":"#N/A"}},0,0,null,0,0]
[null,"Decontaminate power plant",null,"mandays",null,{"$f":"NA()","v":{"$error":"#N/A"}},0,0,null,0,0]
[null,"Decontaminate bulk fuel storage",null,"mandays",null,{"$f":"NA()","v":{"$error":"#N/A"}},0,0,null,0,0]
[null,"Decontaminate ANFO plant",null,"mandays",null,{"$f":"NA()","v":{"$error":"#N/A"}},0,0,null,0,0]
[null,"Decontaminate offices/warehouse/accom",null,"m2",null,{"$f":"NA()","v":{"$error":"#N/A"}},0,0,null,0,0]
[null,"Removal of asbestos siding on buildings",null,"m2",null,{"$f":"NA()","v":{"$error":"#N/A"}},0,0,null,0,0]
[null,"Removal of friable asbestos on equipment",null,"m2",null,{"$f":"NA()","v":{"$error":"#N/A"}},0,{"$f":"G16*E16","v":0},null,{"$f":"H16*I16","v":0},{"$f":"+H16*(1-I16)","v":0}]
[null,"Other",null,null,null,{"$f":"NA()","v":{"$error":"#N/A"}},0,{"$f":"G17*E17","v":0},null,{"$f":"H17*I17","v":0},{"$f":"+H17*(1-I17)","v":0}]
[null,"HAZARDOUS MATERIALS REMOVAL"]
[null,"Waste oils",null,"litre",null,{"$f":"NA()","v":{"$error":"#N/A"}},{"$f":"IF(ISNA(F19),0,INDEX(IF(UPPER(RIGHT(F19,1))=Low,UnitCostLow, IF(UPPER(RIGHT(F19,1))=High,UnitCostHigh,UnitCostSpecified)),MATCH(UPPER(LEFT(F19,LEN(F19)-1)),CostCode,0)))","v":0},{"$f":"G19*E19","v":0},null,{"$f":"H19*I19","v":0},{"$f":"+H19*(1-I19)","v":0}]
[null,"Waste fuel",null,"litre",null,{"$f":"NA()","v":{"$error":"#N/A"}},0,0,null,0,0]
[null,"Waste batteries",null,"allow",null,{"$f":"NA()","v":{"$error":"#N/A"}},0,0,null,0,0]
[null,"Assay & environmental lab reagents",null,"kg",null,{"$f":"NA()","v":{"$error":"#N/A"}},0,0,null,0,0]
[null,"Machine shop paints, solvents etc",null,"litre",null,{"$f":"NA()","v":{"$error":"#N/A"}},0,0,null,0,0]
[null,"Glycol",null,"litre",null,{"$f":"NA()","v":{"$error":"#N/A"}},0,0,null,0,0]
[null,"Process reagents",null,"kg",null,{"$f":"NA()","v":{"$error":"#N/A"}},{"$f":"IF(ISNA(F25),0,INDEX(IF(UPPER(RIGHT(F25,1))=Low,UnitCostLow, IF(UPPER(RIGHT(F25,1))=High,UnitCostHigh,UnitCostSpecified)),MATCH(UPPER(LEFT(F25,LEN(F25)-1)),CostCode,0)))","v":0},{"$f":"G25*E25","v":0},null,{"$f":"H25*I25","v":0},{"$f":"+H25*(1-I25)","v":0}]
[null,"Nuclear sources",null,"allow",null,{"$f":"NA()","v":{"$error":"#N/A"}},{"$f":"IF(ISNA(F26),0,INDEX(IF(UPPER(RIGHT(F26,1))=Low,UnitCostLow, IF(UPPER(RIGHT(F26,1))=High,UnitCostHigh,UnitCostSpecified)),MATCH(UPPER(LEFT(F26,LEN(F26)-1)),CostCode,0)))","v":0},{"$f":"G26*E26","v":0},null,{"$f":"H26*I26","v":0},{"$f":"+H26*(1-I26)","v":0}]
[null,"Other hazardous materials",null,"allow",null,{"$f":"NA()","v":{"$error":"#N/A"}},{"$f":"IF(ISNA(F27),0,INDEX(IF(UPPER(RIGHT(F27,1))=Low,UnitCostLow, IF(UPPER(RIGHT(F27,1))=High,UnitCostHigh,UnitCostSpecified)),MATCH(UPPER(LEFT(F27,LEN(F27)-1)),CostCode,0)))","v":0},{"$f":"G27*E27","v":0},null,{"$f":"H27*I27","v":0},{"$f":"+H27*(1-I27)","v":0}]
[null,"HAZARDOUS MATERIALS "]
[null,"Transportation to disposal facility",null,"allow",null,"ea",0,{"$f":"G29*E29","v":0},null,{"$f":"H29*I29","v":0},{"$f":"+H29*(1-I29)","v":0}]
[null,"Disposal fees",null,"allow",null,"ea",0,{"$f":"G30*E30","v":0},null,{"$f":"H30*I30","v":0},{"$f":"+H30*(1-I30)","v":0}]
[null,"Other",null,"allow",null,"ea",0,{"$f":"G31*E31","v":0},null,{"$f":"H31*I31","v":0},{"$f":"+H31*(1-I31)","v":0}]
[null,"CONTAMINATED SOILS "]
[null,"Contam. soil investigation - Phase 1",null,"each",null,{"$f":"NA()","v":{"$error":"#N/A"}},0,{"$f":"G33*E33","v":0},null,{"$f":"H33*I33","v":0},{"$f":"+H33*(1-I33)","v":0}]
[null,"Contam. soil investigation - Phase 2",null,"allow",null,{"$f":"NA()","v":{"$error":"#N/A"}},0,{"$f":"G34*E34","v":0},null,{"$f":"H34*I34","v":0},{"$f":"+H34*(1-I34)","v":0}]
[null,"CONTAMINATED SOIL REMOVAL"]
[null,"Contaminated Soil Treatment",null,"m3",null,"15CSTS",14.78,{"$f":"G36*E36","v":0},1,{"$f":"H36*I36","v":0},{"$f":"+H36*(1-I36)","v":0}]
[null,"Contaminated Soil Treatment (2017 Work Plan)","Marginal increase associated with 2017 Work Plan.  Spill 16-283 at Milne Port Bulk Fuel Tank Farm","m3",null,"15CSTS",14.78,0,1,0,0]
[null,"Excavate and transport",null,"m3",null,{"$f":"NA()","v":{"$error":"#N/A"}},{"$f":"IF(ISNA(F38),0,INDEX(IF(UPPER(RIGHT(F38,1))=Low,UnitCostLow, IF(UPPER(RIGHT(F38,1))=High,UnitCostHigh,UnitCostSpecified)),MATCH(UPPER(LEFT(F38,LEN(F38)-1)),CostCode,0)))","v":0},0,null,0,0]
[null,"Manage hydrocarbon remediation",null,"m3",null,{"$f":"NA()","v":{"$error":"#N/A"}},{"$f":"IF(ISNA(F39),0,INDEX(IF(UPPER(RIGHT(F39,1))=Low,UnitCostLow, IF(UPPER(RIGHT(F39,1))=High,UnitCostHigh,UnitCostSpecified)),MATCH(UPPER(LEFT(F39,LEN(F39)-1)),CostCode,0)))","v":0},0,null,0,0]
[null,"Reagents/stabilizing agent",null,"m2",null,{"$f":"NA()","v":{"$error":"#N/A"}},{"$f":"IF(ISNA(F40),0,INDEX(IF(UPPER(RIGHT(F40,1))=Low,UnitCostLow, IF(UPPER(RIGHT(F40,1))=High,UnitCostHigh,UnitCostSpecified)),MATCH(UPPER(LEFT(F40,LEN(F40)-1)),CostCode,0)))","v":0},0,null,0,0]
[null,"Excavate and transport to offsite facility",null,"m3",null,{"$f":"NA()","v":{"$error":"#N/A"}},{"$f":"IF(ISNA(F41),0,INDEX(IF(UPPER(RIGHT(F41,1))=Low,UnitCostLow, IF(UPPER(RIGHT(F41,1))=High,UnitCostHigh,UnitCostSpecified)),MATCH(UPPER(LEFT(F41,LEN(F41)-1)),CostCode,0)))","v":0},0,null,0,0]
[null,"Contour decontaminated area",null,"m3",null,{"$f":"NA()","v":{"$error":"#N/A"}},{"$f":"IF(ISNA(F42),0,INDEX(IF(UPPER(RIGHT(F42,1))=Low,UnitCostLow, IF(UPPER(RIGHT(F42,1))=High,UnitCostHigh,UnitCostSpecified)),MATCH(UPPER(LEFT(F42,LEN(F42)-1)),CostCode,0)))","v":0},0,null,0,0]
[null,"CONTAMINATED SOIL VERY LOW PERMEABILITY COVER "]
[null,"Supply geomembrame, HDPE, ES3, GCL",null,"m2",null,{"$f":"NA()","v":{"$error":"#N/A"}},{"$f":"IF(ISNA(F44),0,INDEX(IF(UPPER(RIGHT(F44,1))=Low,UnitCostLow, IF(UPPER(RIGHT(F44,1))=High,UnitCostHigh,UnitCostSpecified)),MATCH(UPPER(LEFT(F44,LEN(F44)-1)),CostCode,0)))","v":0},{"$f":"G44*E44","v":0},null,{"$f":"H44*I44","v":0},{"$f":"+H44*(1-I44)","v":0}]
[null,"Upper and lower bedding layers",null,"m3",null,{"$f":"NA()","v":{"$error":"#N/A"}},0,0,null,0,0]
[null,"Install geomembrane, HDPE, ES3, GCL",null,"m2",null,{"$f":"NA()","v":{"$error":"#N/A"}},0,0,null,0,0]
[null,"Erosion protection layer",null,"m3",null,{"$f":"NA()","v":{"$error":"#N/A"}},0,0,null,0,0]
[null,"Vegetate",null,"m2",null,{"$f":"NA()","v":{"$error":"#N/A"}},0,0,null,0,0]
[null,"Install infiltration/seepage instrumentation",null,"allow",null,{"$f":"NA()","v":{"$error":"#N/A"}},0,0,null,0,0]
[null,"Other",null,null,null,{"$f":"NA()","v":{"$error":"#N/A"}},0,0,null,0,0]
[null,"OTHER"]
[null,"Ammonium nitrate (explosive material)","2019 estimate (See section 3.3.2.2 of 2019 Marginal Estimate)","m3",9800,"16AN1S",358,{"$f":"G52*E52","v":3508400},1,{"$f":"H52*I52","v":3508400},{"$f":"+H52*(1-I52)","v":0}]
[null,"Pre-package explosives",null,"kg",null,"16AN2S",2.37,{"$f":"G53*E53","v":0},1,{"$f":"H53*I53","v":0},{"$f":"+H53*(1-I53)","v":0}]
[null,null,null,null,null,{"$f":"NA()","v":{"$error":"#N/A"}},{"$f":"IF(ISNA(F54),0,INDEX(IF(UPPER(RIGHT(F54,1))=Low,UnitCostLow, IF(UPPER(RIGHT(F54,1))=High,UnitCostHigh,UnitCostSpecified)),MATCH(UPPER(LEFT(F54,LEN(F54)-1)),CostCode,0)))","v":0},{"$f":"G54*E54","v":0},null,{"$f":"H54*I54","v":0},{"$f":"+H54*(1-I54)","v":0}]
[null,null,null,null,null,null,"Total",{"$f":"SUM(H6:H54)+0.0001","v":3508400.0000999998},null,{"$f":"SUM(J6:J54)","v":3508400},{"$f":"SUM(K6:K54)","v":0}]
[null,null,null,null,null,null,"% of Total",null,null,{"$f":"J55/H55","v":0.99999999997149702},{"$f":"K55/H55","v":0}]

{"sheet":"Bldgs & Equip MS","index":5,"n_rows":123,"n_cols":16,"rows_kept":123,"cut":false,"hidden":false,"merged":[[4,1,7,1],[8,1,11,1],[12,1,15,1],[75,1,83,1],[36,1,37,1],[23,1,26,1],[20,1,22,1],[18,1,19,1]]}
[1,"Building / Equip Name:","Mine Site",null,null,null,"Bldg / Equip #:",1]
[]
[null,"ACTIVITY/MATERIAL","Notes","Units","Quantity","Cost Code","Unit Cost","Cost","% Land","Land Cost","Water Cost"]
[null,"DISPOSE MOBILE EQUIPMENT - Unit Costs includes disassembly and decontamination required for on-site disposal, load and transport to landfill"]
[null,"Light Mobile Equipment","Equipment quanties updated to reflect 2017 Work Plan addendum Table 3-5 30 units.","each",null,"15MOLS",941.09,{"$f":"G5*E5","v":0},0.95,{"$f":"H5*I5","v":0},{"$f":"+H5*(1-I5)","v":0}]
[null,null,"2017 Actual work as outlined in Table 2-4 of 2018 Marginal Estimate","each",null,"15MOLS",941.09,0,0.95,{"$f":"H6*I6","v":0},0]
[null,null,"2018 Work Plan see Table 3-2","each",null,"15MOLS",941.09,0,0.95,{"$f":"H7*I7","v":0},0]
[null,null,"2019 estimate (add 2 from reconciliation, add 33 from Marginal Increase and add 61 from 3rd Party)","each",137,"18MOLS",876.92,120138.04,0.95,{"$f":"H8*I8","v":114131.13799999999},6006.9020000000046]
[null,"Medium Mobile Equipment","Equipment quanties updated to reflect 2017 Work Plan addendum Table 3-5 40 units.","each",null,"15MOMS",1494.13,0,0.98,{"$f":"H9*I9","v":0},0]
[null,null,"2017 Actual work as outlined in Table 2-4 of 2018 Marginal Estimate","each",null,"15MOMS",1494.13,0,0.98,0,0]
[null,null,"2018 Work Plan see Table 3-2","each",null,"15MOMS",1494.13,0,0.98,{"$f":"H11*I11","v":0},0]
[null,null,"2019 estimate (add 14 from reconciliation, add 13 from Marginal Increase and add 49 from 3rd Party)","each",47,"18MOMS",1378.63,64795.610000000008,0.98,63499.697800000009,1295.9122000000013]
[null,"Heavy Mobile Equipment","Equipment quanties updated to reflect 2017 Work Plan addendum Table 3-5 92 units.","each",null,"15MOHS",2616.87,0,0.98,0,0]
[null,null,"2017 Actual work as outlined in Table 2-4 of 2018 Marginal Estimate","each",null,"15MOHS",2616.87,0,0.98,0,0]
[null,null,"2018 Work Plan see Table 3-2","each",null,"15MOHS",2616.87,0,0.98,{"$f":"H15*I15","v":0},0]
[null,null,"2019 estimate (add 13 from reconciliation, add 33 from Marginal Increase and add 34 from 3rd Party)","each",96,"18MOHS",2310.87,221843.52,0.98,217406.64959999998,4436.8704000000034]
[null,"DISPOSE MECHANICAL EQUIPMENT - Unit Costs includes disassembly and decontamination required for on-site disposal, load and transport to landfill"]
[null,"Light mechanical equipment - Decontaminate and dispose on-site",null,"each",null,"15LMES",1980.8,{"$f":"G18*E18","v":0},0.98,{"$f":"H18*I18","v":0},{"$f":"+H18*(1-I18)","v":0}]
[null,"Light mechanical equipment - Decontaminate and dispose on-site","2017 Actual work as outlined in Table 2-4 of 2018 Marginal Estimate","each",null,"15LMES",1980.8,{"$f":"G19*E19","v":0},0.98,{"$f":"H19*I19","v":0},{"$f":"+H19*(1-I19)","v":0}]
[null,null,"2019  estimate (add 29 from Marginal Increase)","each",29,"18LMES",1707.45,49516.05,0.98,48525.728999999999,990.32100000000094]
[null,"Medium mechanical equipment - Decontaminate and dispose on-site","Equipment quanties updated to reflect 2017 Work Plan addendum Table 3-5 12 units.","each",null,"15MMES",4261.34,0,1,0,0]
[null,null,"2017 Actual work as outlined in Table 2-4 of 2018 Marginal Estimate","each",null,"15MMES",4261.34,{"$f":"G22*E22","v":0},1,{"$f":"H22*I22","v":0},{"$f":"+H22*(1-I22)","v":0}]
[null,null,"2019  estimate (add 1 from Marginal Increase)","each",1,"18MMES",3714.64,3714.64,1,3714.64,0]
[null,"Heavy mechanical equipment - Decontaminate and dispose on-site","Equipment quanties updated to reflect 2017 Work Plan addendum Table 3-5 4 units.","each",null,"15MEHS",41205.449999999997,0,1,0,0]
[null,null,"2017 Actual work as outlined in Table 2-4 of 2018 Marginal Estimate","each",null,"15MEHS",41205.449999999997,0,1,0,0]
[null,null,"2018 Work Plan see Table 3-2","each",null,"15MEHS",41205.449999999997,{"$f":"G26*E26","v":0},1,{"$f":"H26*I26","v":0},{"$f":"+H26*(1-I26)","v":0}]
[null,null,"2019 estimate (add 14 from reconciliation and add 8 from Marginal Increase)","each",{"$f":"14+8","v":22},"18MEHS",35507.449999999997,781163.89999999991,1,781163.89999999991,0]
[null,"Light Tanks","Light non- fuel storage tanks. The cleaning, plugging, disassembly and removal of all associated pipeline infrastructure is included (see Tables 3-4 of 2019 Marginal Estimate). ","each",6,"18TLS",1872.41,11234.460000000001,1,11234.460000000001,0]
[null,"Medium Tanks","Medium non- fuel storage tanks. The cleaning, plugging, disassembly and removal of all associated pipeline infrastructure is included (3-4 of 2019 Marginal Estimate). ","each",null,"15MTS",11371,0,1,0,0]
[null,"Light Diesel Tanks","Small fuel tanks (10,000-20,000L) 2017 actual not previously allocated (see Table 3-4 of 2019 Marginal Estimate)","each",5,"18LiDTS",3193.16,15965.8,1,15965.8,0]
[null,"Medium Mobile Diesel Tank","Medium fuel storage tanks. The cleaning, plugging, disassembly and removal of all associated pipeline infrastructure is included (Table 3-4 of 2019 Marginal Estimate). ","each",7,"18MMMTS",13928.01,{"$f":"G31*E31","v":97496.07},1,{"$f":"H31*I31","v":97496.07},{"$f":"+H31*(1-I31)","v":0}]
[null,"Medium Diesel Tanks",null,"each",null,"15MDTS",16166.4,0,1,0,0]
[null,"Large Diesel Tanks","Large fuel tanks (3ML-15ML). The cleaning, plugging, disassembly and removal of all associated pipeline infrastructure is included (Ref 1, pg 27).","each",2,"18LDTS",147297.85,{"$f":"G33*E33","v":294595.7},1,{"$f":"H33*I33","v":294595.7},{"$f":"+H33*(1-I33)","v":0}]
[null,"Misc. Items","On-site disposal. Miscellaneous (minor) items were defined as any item less than 200 kg not captured in other unit costs (Ref 1, pg 42). ","Lot",null,"15MEIS",529.83000000000004,0,1,0,0]
[null,"Fuelk tanks - On-site disposal of medium mobile fuel tanks (3,000 to 500,000 L)","On-site disposal of medium-mobile fuel tanks (3,000 to 500,000L).   See table 3-4 of 2019 marginal Estimate","each",null,"15MMFTS",10481.049999999999,0,1,0,0]
[null,"REMOVE BUILDINGS - Unit Costs include disassembling, removing or securing all items and load and transport"]
[null,"Modular ","2017 Work Plan Addendum includes 800 person temp hardwall camp , construction offices, lunch rooms and washcars at both Mine Site and Milne Port","m2",null,"15RBMS",59.38,{"$f":"G37*E37","v":0},0.89,0,{"$f":"+H37*(1-I37)","v":0}]
[null,null,"2019 estimate (See table 3-1 of 2019 Marginal Estimate)","m2",1032,"18RBMS",50.75,{"$f":"G38*E38","v":52374},0.89,{"$f":"H38*I38","v":46612.86},{"$f":"+H38*(1-I38)","v":5761.1399999999994}]
[null,"Fold Away Buildings",null,"m2",null,"15RBFS",41.57,0,1,0,0]
[null,"Soft-Walled","2017 Work Plan Addendum soft Walled Buildings includes 50 person camp and 35 person Norse man style camp at Mine Site only","m2",null,"15RBSS",47.51,0,0.89,0,0]
[null,"ISO Shipping Containers (Shelters, Comm. Facilities)",null,"m2",null,"15RBIS",29.69,0,1,0,0]
[null,"Office/washcars ",null,"m2",null,"15RBIS",102.05,{"$f":"G42*E42","v":0},0.89,{"$f":"H42*I42","v":0},{"$f":"+H42*(1-I42)","v":0}]
[null,"Water and Wastewater Treatment Facilities","Equipment quanties updated to reflect 2017 Work Plan addendum Table 3-6 2 units one at Milne Port and one at Mine Site.","each",null,"15WWTS",11035.58,0,0,0,0]
[null,"Power Plant",null,"m2",null,"brs1h",{"$f":"IF(ISNA(F44),0,INDEX(IF(UPPER(RIGHT(F44,1))=Low,UnitCostLow, IF(UPPER(RIGHT(F44,1))=High,UnitCostHigh,UnitCostSpecified)),MATCH(UPPER(LEFT(F44,LEN(F44)-1)),CostCode,0)))","v":65},0,null,0,0]
[null,"Communication Tower",null,"m2",null,"brs1h",{"$f":"IF(ISNA(F45),0,INDEX(IF(UPPER(RIGHT(F45,1))=Low,UnitCostLow, IF(UPPER(RIGHT(F45,1))=High,UnitCostHigh,UnitCostSpecified)),MATCH(UPPER(LEFT(F45,LEN(F45)-1)),CostCode,0)))","v":65},{"$f":"G45*E45","v":0},null,{"$f":"H45*I45","v":0},0]
[null,"U/G Heating Plant",null,"m2",null,{"$f":"NA()","v":{"$error":"#N/A"}},{"$f":"IF(ISNA(F46),0,INDEX(IF(UPPER(RIGHT(F46,1))=Low,UnitCostLow, IF(UPPER(RIGHT(F46,1))=High,UnitCostHigh,UnitCostSpecified)),MATCH(UPPER(LEFT(F46,LEN(F46)-1)),CostCode,0)))","v":0},{"$f":"G46*E46","v":0},null,{"$f":"H46*I46","v":0},0]
[null,"Emulsion Plant",null,"m2",null,{"$f":"NA()","v":{"$error":"#N/A"}},{"$f":"IF(ISNA(F47),0,INDEX(IF(UPPER(RIGHT(F47,1))=Low,UnitCostLow, IF(UPPER(RIGHT(F47,1))=High,UnitCostHigh,UnitCostSpecified)),MATCH(UPPER(LEFT(F47,LEN(F47)-1)),CostCode,0)))","v":0},0,null,0,0]
[null,"AN Storage Facility",null,"m2",null,"brs1s",128,0,null,{"$f":"H48*I48","v":0},0]
[null,"Warehouse, Shops and Other",null,"m2",null,"brs1l",{"$f":"IF(ISNA(F49),0,INDEX(IF(UPPER(RIGHT(F49,1))=Low,UnitCostLow, IF(UPPER(RIGHT(F49,1))=High,UnitCostHigh,UnitCostSpecified)),MATCH(UPPER(LEFT(F49,LEN(F49)-1)),CostCode,0)))","v":45},0,null,{"$f":"H49*I49","v":0},0]
[null,"Storage Facility at Laydown/Airstrip",null,"m2",null,{"$f":"NA()","v":{"$error":"#N/A"}},{"$f":"IF(ISNA(F50),0,INDEX(IF(UPPER(RIGHT(F50,1))=Low,UnitCostLow, IF(UPPER(RIGHT(F50,1))=High,UnitCostHigh,UnitCostSpecified)),MATCH(UPPER(LEFT(F50,LEN(F50)-1)),CostCode,0)))","v":0},0,null,{"$f":"H50*I50","v":0},0]
[null,"Fuel tanks",null,"m2",null,"brs1h",{"$f":"IF(ISNA(F51),0,INDEX(IF(UPPER(RIGHT(F51,1))=Low,UnitCostLow, IF(UPPER(RIGHT(F51,1))=High,UnitCostHigh,UnitCostSpecified)),MATCH(UPPER(LEFT(F51,LEN(F51)-1)),CostCode,0)))","v":65},0,null,{"$f":"H51*I51","v":0},0]
[null,"Fire Protection pumping station",null,"m",null,"brs1h",{"$f":"IF(ISNA(F52),0,INDEX(IF(UPPER(RIGHT(F52,1))=Low,UnitCostLow, IF(UPPER(RIGHT(F52,1))=High,UnitCostHigh,UnitCostSpecified)),MATCH(UPPER(LEFT(F52,LEN(F52)-1)),CostCode,0)))","v":65},0,null,{"$f":"H52*I52","v":0},0]
[null,"Freshwater intake",null,"m2",null,"brs1l",45,0,null,0,0]
[null,"Reclaim pumps",null,"m2",null,{"$f":"NA()","v":{"$error":"#N/A"}},0,0,null,0,0]
[null,"Outfall & Diffuser",null,"m2",null,{"$f":"NA()","v":{"$error":"#N/A"}},0,0,null,0,0]
[null,"Airstrip lighting, navigation, electrician",null,"mandays",null,{"$f":"NA()","v":{"$error":"#N/A"}},{"$f":"IF(ISNA(F56),0,INDEX(IF(UPPER(RIGHT(F56,1))=Low,UnitCostLow, IF(UPPER(RIGHT(F56,1))=High,UnitCostHigh,UnitCostSpecified)),MATCH(UPPER(LEFT(F56,LEN(F56)-1)),CostCode,0)))","v":0},0,null,0,0]
[null,"Airstrip lighting, navigation, mechanical",null,"mandays",null,{"$f":"NA()","v":{"$error":"#N/A"}},{"$f":"IF(ISNA(F57),0,INDEX(IF(UPPER(RIGHT(F57,1))=Low,UnitCostLow, IF(UPPER(RIGHT(F57,1))=High,UnitCostHigh,UnitCostSpecified)),MATCH(UPPER(LEFT(F57,LEN(F57)-1)),CostCode,0)))","v":0},0,null,0,0]
[null,"Break foundation slabs",null,"m2",null,"brcs",{"$f":"IF(ISNA(F58),0,INDEX(IF(UPPER(RIGHT(F58,1))=Low,UnitCostLow, IF(UPPER(RIGHT(F58,1))=High,UnitCostHigh,UnitCostSpecified)),MATCH(UPPER(LEFT(F58,LEN(F58)-1)),CostCode,0)))","v":6},{"$f":"G58*E58","v":0},null,{"$f":"H58*I58","v":0},0]
[null,"Consolidate & dump boneyard debris",null,"allow",null,"brs1l",45,0,null,0,0]
[null,"Worker Dry",null,"m2",null,"brs1l",45,{"$f":"G60*E60","v":0},null,{"$f":"H60*I60","v":0},0]
[null,"WTP & Fresh Water Pumping Station",null,"m2",null,"brs1l",45,{"$f":"G61*E61","v":0},null,{"$f":"H61*I61","v":0},0]
[null,"WRSF Pond and Attenuation Pond Pumphouses ",null,"m2",null,"brs1l",45,{"$f":"G62*E62","v":0},null,{"$f":"H62*I62","v":0},0]
[null,"Water Intake",null,"m2",null,"brcs",6,{"$f":"G63*E63","v":0},null,{"$f":"H63*I63","v":0},0]
[null,"Other ",null,"m2",null,"bdcs",12.63,0,null,0,0]
[null,"REMOVE CONTAMINATED BUILDINGS - Unit Costs include disassembling, removing or securing all items, decontamination and load and transport"]
[null,"Modular ","Trailers and pre-fabricated buildings. (Ref 1,  pg 29). ","m2",null,"15RCBMS",143.41999999999999,{"$f":"G66*E66","v":0},1,{"$f":"H66*I66","v":0},{"$f":"+H66*(1-I66)","v":0}]
[null,"Fold Away Buildings","2019 estimate (See table 3-1 of 2019 Marginal Estimate)","m2",{"$f":"1572","v":1572},"18RCBFS",122.25,192177,1,192177,0]
[null,"Soft-Walled",null,"m2",null,"15RCBSS",148.35,{"$f":"G68*E68","v":0},1,{"$f":"H68*I68","v":0},{"$f":"+H68*(1-I68)","v":0}]
[null,"ISO Shipping Containers (Shelters, Comm. Facilities)","2017  Work Plan add 500 m2 Tire Shop","m2",null,"15RCBIS",143.41999999999999,0,1,0,0]
[null,"Temporary Construction Warehouse and Office Allowance",null,"m2",null,"15RCBTS",25000,0,1,0,0]
[null,"BREAK FOUNDATIONS"]
[null,"Precast Foundations",2019,"m2",null,"15FCS",38.47,{"$f":"G72*E72","v":0},1,{"$f":"H72*I72","v":0},{"$f":"+H72*(1-I72)","v":0}]
[null,"Slab on Grade","2019 estimate Breakdown","m2",null,"15FSS",33.11,0,1,0,0]
[null,"Timber Cribbing","Includes disassemby load and transport of the timber cribbing","m2",null,"15TCS",20.78,0,1,0,0]
[null,"GRADE AND CONTOUR, GENERAL - Unit costs are inclusive of backfill, compaction and sacrfication with a dozer"]
[null,"Grade and contour laydown areas","Expansion of 800 camp ","m2",12000,"18GCS",1.49342034577546,{"$f":"G76*E76","v":17921.044149305519},1,17921.044149305519,{"$f":"+H76*(1-I76)","v":0}]
[null,null,"Water Treatment Plant 2019","m2",3500,"18GCS",1.49342034577546,5226.9712102141102,1,5226.9712102141102,0]
[null,null,"Km 107.5, Km 110, Km 107 stockplile","m2",404400,"18GCS",1.49342034577546,603939.18783159601,1,603939.18783159601,0]
[null,null,"mine site fuel tank foot print","m2",21620,"18GCS",1.49342034577546,32287.747875665445,1,32287.747875665445,0]
[null,null,null,"m2",null,"15GCS",1.49,{"$f":"G80*E80","v":0},1,{"$f":"H80*I80","v":0},{"$f":"+H80*(1-I80)","v":0}]
[null,null,null,"m2",null,"15GCS",1.49,0,1,0,0,null,null,"Landfill Expansion",null,4475]
[null,null,null,"m2",null,"15GCS",1.49,0,1,0,0,null,null,"Landfill Expansion",null,400]
[null,null,null,"m2",null,"15GCS",1.49,0,1,0,0,null,null,"2018 Landfill Expansion",null,63000]
[null,null,null,"m2",null,"15GCS",1.49,0,1,0,0]
[null,"Crusher Pad expansion pad ",null,"m2",12000,"18GCS",1.49342034577546,17921.044149305519,1,17921.044149305519,0]
[null,"Culvert Removal","on mine site 2019 estimate","m",285,null,50,14250,1,14250,0]
[null,"Grade and contour infrastructure pads","In 2017 Work Plan Addendum - Camp pad","m2",null,"15GCS",1.49,0,1,0,0]
[null,null,null,"m2",null,"15GCS",1.81,{"$f":"G88*E88","v":0},1,{"$f":"H88*I88","v":0},{"$f":"+H88*(1-I88)","v":0}]
[null,"Aerodome Facilities",null,"m2",null,"15GCS",1.81,0,1,0,0]
[null,"Road",null,"m2",null,"15GCS",1.81,0,1,0,0]
[null,"Stockpiles","Add 2017 Work Plan Increase in Crusher Pad Storage Area - Ph 1: 8,200m2 & Ph 2: 17,500m2","m2",null,"15GCS",1.81,{"$f":"G91*E91","v":0},1,{"$f":"H91*I91","v":0},{"$f":"+H91*(1-I91)","v":0}]
[null,"Truck weigh facility distributed area",null,"m2",null,"15GCS",1.81,{"$f":"G92*E92","v":0},1,{"$f":"H92*I92","v":0},{"$f":"+H92*(1-I92)","v":0}]
[null,"U/G Heating Plant",null,"m2",null,{"$f":"NA()","v":{"$error":"#N/A"}},{"$f":"IF(ISNA(F93),0,INDEX(IF(UPPER(RIGHT(F93,1))=Low,UnitCostLow, IF(UPPER(RIGHT(F93,1))=High,UnitCostHigh,UnitCostSpecified)),MATCH(UPPER(LEFT(F93,LEN(F93)-1)),CostCode,0)))","v":0},0,null,0,0]
[null,"Emulsion Plant",null,"m2",null,{"$f":"NA()","v":{"$error":"#N/A"}},{"$f":"IF(ISNA(F94),0,INDEX(IF(UPPER(RIGHT(F94,1))=Low,UnitCostLow, IF(UPPER(RIGHT(F94,1))=High,UnitCostHigh,UnitCostSpecified)),MATCH(UPPER(LEFT(F94,LEN(F94)-1)),CostCode,0)))","v":0},0,null,0,0]
[null,"Warehouse, Shops and Other",null,"m2",null,"AE",8.4700000000000006,0,null,0,0]
[null,"Fuel tanks on site for bulk fuel storage",null,"m2",null,"AE",8.4700000000000006,0,null,0,0]
[null,"Fire Protection pumping station",null,"m2",null,"AE",8.4700000000000006,0,null,0,0]
[null,"Worker Dry",null,"m2",null,"AE",8.4700000000000006,0,null,0,0]
[null,"WTP & Fresh Water Pumping Station",null,"m2",null,"AE",8.4700000000000006,0,null,0,0]
[null,"WRSF Pond and Attenuation Pond Pumphouses ",null,"m2",null,"AE",8.4700000000000006,0,null,0,0]
[null,"Other",null,"ha",null,"scfyl",{"$f":"IF(ISNA(F101),0,INDEX(IF(UPPER(RIGHT(F101,1))=Low,UnitCostLow, IF(UPPER(RIGHT(F101,1))=High,UnitCostHigh,UnitCostSpecified)),MATCH(UPPER(LEFT(F101,LEN(F101)-1)),CostCode,0)))","v":4300},0,null,0,0]
[null,"GRADE AND CONTOUR, WITH LINER - Unit costs include liner removal and disposal, backfill, compaction and sacrfication with a dozer"]
[null,"Waste Disposal",null,"m2",null,"15GCLS",5.31,{"$f":"G103*E103","v":0},1,0,0]
[null,"Fuel tank farm dyke",null,"m2",null,"15GCLS",5.31,{"$f":"G104*E104","v":0},1,{"$f":"H104*I104","v":0},{"$f":"+H104*(1-I104)","v":0}]
[null,"Hazardous waste berm",null,"m2",null,"15GCLS",5.31,0,1,0,0]
[null,"Bulk fuel storage facility (Bladder Farm)",null,"m2",null,"15GCLS",5.31,0,1,0,0]
[null,"Crusher Pad Sedimentation Pond","Crusher pad sedimentation pond","m2",2000,"18GCLS",4.99,{"$f":"G107*E107","v":9980},1,{"$f":"H107*I107","v":9980},{"$f":"+H107*(1-I107)","v":0}]
[null,"Mine Site Fuel Tank, Farm containment Area","Mine Site Fuel Tank, Farm Containment Area","m2",12000,"18GCLS",4.99,59880,1,59880,0]
[null,"Hazardous waste berm","Hazardous Waste Berm","m2",360,"18GCLS",4.99,{"$f":"G109*E109","v":1796.4},1,{"$f":"H109*I109","v":1796.4},{"$f":"+H109*(1-I109)","v":0}]
[null,"Other","New PWSP 2019","m2",4180,"18GCLS",4.99,{"$f":"G110*E110","v":20858.2},1,{"$f":"H110*I110","v":20858.2}]
[null,"Other","Landfarm","m2",9000,"18GCLS",4.99,44910,1,44910]
[null,"Other","KM107 Sedimentation Pond","m2",7400,"18GCLS",4.99,36926,1,36926]
[]
[null,"LANDFILL FOR DEMOLITION WASTE"]
[null,"Place fill material over demolition waste (Mine Site Landfill)","Includes drill and blasting of material aggregated crushing, excavation of fill, load and haul of fill material, backfill and compact source of material, and fill application.  Assumes avg fill depth 1.5m over 6m of demolition waste (Ref 1, pg 17). For 2018 work plan see table 3-9 in the Marginal estimate for quantity and 2017 Work Plan Addendum Table 3-8, 2018 Breakdown. Fill application for 2018 Estimate Addendum see table 3-6.","m2",2664,"18PFS",38.83,{"$f":"G115*E115","v":103443.12},1,{"$f":"H115*I115","v":103443.12},{"$f":"+H115*(1-I115)","v":0}]
[null,"SPECIALIZED ITEMS"]
[null,"Electrical Cable","Includes the removal, loading, hauling and disposal of cable (Ref 1, pg 41). 2017 Work Plan add 3500 m of cable.","m",null,"15ECS",26.49,{"$f":"G117*E117","v":0},1,{"$f":"H117*I117","v":0},{"$f":"+H117*(1-I117)","v":0}]
[null,"Incinerator","Equipment quanties updated to reflect 2017 Work Plan addendum Table 3-6 2 units one at Milne Port and one at Mine Site.","each",null,"15FIS",9975.93,0,1,0,0]
[null,"Potable Water","Equipment quanties updated to reflect 2017 Work Plan addendum Table 3-6 2 units one at Milne Port and one at Mine Site.","each",null,"15PWS",9975.93,0,null,0,0]
[null,null,null,null,null,null,"Total",{"$f":"SUM(H5:H119)+0.0001","v":2874354.5053160866},null,{"$f":"SUM(J5:J119)","v":2855863.3596160868},{"$f":"SUM(K5:K119)","v":18491.145600000011}]
[null,null,null,null,null,null,"% of Total",null,null,{"$f":"J120/H120","v":0.99356685277831924},{"$f":"K120/H120","v":6.4331471868904278E-3}]
[]
[null,"Note:  "]

{"sheet":"Bldgs & Equip MP","index":6,"n_rows":94,"n_cols":13,"rows_kept":94,"cut":false,"hidden":false,"merged":[[20,1,22,1]]}
[1,"Building / Equip Name:","Milne Port",null,null,null,"Bldg / Equip #:",2]
[]
[null,"ACTIVITY/MATERIAL","Notes","Units","Quantity","Cost Code","Unit Cost","Cost","% Land","Land Cost","Water Cost"]
[null,"DISPOSE MOBILE EQUIPMENT - Unit Costs includes disassembly and decontamination required for on-site disposal, load and transport to landfill"]
[null,"Light Mobile Equipment","Equipment quanties updated to reflect BIMC Nov. 24 EBS revisions. Includes forklifts, picks up, vehicles around five (5) tonnes and under, scissor lift, man lifts, and small garbage bins (Ref 1, pg 24-25).  2017 Work Plan add 6 units.","each",null,"15MOLS",941.09,{"$f":"G5*E5","v":0},0.98,{"$f":"H5*I5","v":0},{"$f":"+H5*(1-I5)","v":0}]
[null,"Medium Mobile Equipment","Includes vehicles around 10 tonnes, trailers, buses, tow trucks, large garbage bins and water trucks (Ref 1, pg 24-25). ","each",null,"15MOMS",1494.13,{"$f":"G6*E6","v":0},0.95,{"$f":"H6*I6","v":0},{"$f":"+H6*(1-I6)","v":0}]
[null,"Heavy Mobile Equipment","Equipment quanties updated to reflect BIMC Nov. 24 EBS revisions. Includes vehicles over 10 tonnes, boom trucks, large front end loaders, dump trucks, graders and cranes (Ref 1, pg 24-25). 2017 Work Plan add 4 units.","each",null,"15MOHS",2616.87,{"$f":"G7*E7","v":0},1,0,{"$f":"+H7*(1-I7)","v":0}]
[null,"Other (reclaim conveyor)","Equipment quanties updated to reflect BIMC Nov. 24 EBS revisions. Conveyors have been classified as large mobile equipment, with the exception of the reclaim conveyor (850m in length). (Ref 1, pg 40). For 2017 Work Plan add 0.1667 units for for cross conveyor which is 1/6th of Reclaim Conveyor length. 2017 Work Plan Addendum this work was removed","each",null,"15MORS",1329441.31,{"$f":"G8*E8","v":0},1,{"$f":"H8*I8","v":0},{"$f":"+H8*(1-I8)","v":0},null,"NOTE THIS Additional work never happened"]
[null,"DISPOSE MECHANICAL EQUIPMENT - Unit Costs includes disassembly and decontamination required for on-site disposal, load and transport to landfill"]
[null,"Light mechanical equipment - Decontaminate and dispose on-site","Equipment quanties updated to reflect BIMC Nov. 24 EBS revisions. Light equipment includes pumps, fuel dispenser, laboratory equipment, and sample bins (Ref 1, pg 23). 2017 Work Plan add 20 units.","each",null,"15LMES",1980.8,{"$f":"G10*E10","v":0},0.98,{"$f":"H10*I10","v":0},{"$f":"+H10*(1-I10)","v":0}]
[null,"Medium mechanical equipment - Decontaminate and dispose on-site","Equipment quanties updated to reflect BIMC Nov. 24 EBS revisions. Medium equipment includes aerodrome equipment, generators, shop / maintenance equipment, screens, and chutes (Ref 1, pg 23).  2017 Work Plan add 16 units.","each",null,"15MMES",4261.34,0,1,0,0]
[null,"Heavy mechanical equipment - Decontaminate and dispose on-site","Equipment quanties updated to reflect BIMC Nov. 24 EBS revisions. Heavy equipment includes crusher, feeder, power plant generators, large screens, conveyors, and stackers  (Ref 2,  pg 23). 2017 Work Plan add 1 unit (Cone Crusher). ","each",null,"15MEHS",41205.449999999997,0,1,0,0]
[null,"Light Tanks","Light non- fuel storage tanks. The cleaning, plugging, disassembly and removal of all associated pipeline infrastructure is included (Ref 1, pg 26). ","each",null,"15TLS",2148.33,0,0,0,0]
[null,"Medium Tanks","Medium non- fuel storage tanks. The cleaning, plugging, disassembly and removal of all associated pipeline infrastructure is included (Ref 1,  pg 26). ","each",null,"15MTS",7387.31,0,0,0,0]
[null,"Light Diesel Tanks","Small fuel tanks (10,000-20,000L) (Ref 1,  pg 27)","each",null,"15LiDTS",3693.66,0,1,0,0]
[null,"Medium Diesel Tanks","Medium fuel tanks (500,000-750,000L). The cleaning, plugging, disassembly and removal of all associated pipeline infrastructure is included (Ref 1, pg 27). Add a tank from the 2017 Work Plan Addendum - Milne Port   , 2019 breakdowm","each",null,"15MDTS",16166.4,0,1,0,0]
[null,"Large Diesel Tanks","Large fuel tanks (3ML-5ML). The cleaning, plugging, disassembly and removal of all associated pipeline infrastructure is included (Ref 1, pg 27). Add a tank from the 2017 Work Plan Addendum - Milne Port , 2019 breakdowm","each",null,"15LDTS",106338.74,{"$f":"G17*E17","v":0},1,{"$f":"H17*I17","v":0},{"$f":"+H17*(1-I17)","v":0}]
[null,"Largest Diesel Tanks","Largest fuel tanks (>5ML-15ML). The cleaning, plugging, disassembly and removal of all associated pipeline infrastructure is included (Ref 1, pg 27). Add a tank from the 2017 Work Plan Addendum - Milne Port , 2019 breakdowm","each",null,"15LDTS",171468,0,1,0,0]
[null,"Misc. Items","On-site disposal. Miscellaneous (minor) items were defined as any item less than 200 kg not captured in other unit costs (Ref 1, pg 42). ","each",null,"15MEIS",529.83000000000004,0,1,0,0]
[null,"REMOVE BUILDINGS - Unit Costs include disassembling, removing or securing all items and load and transport"]
[null,"Modular ","2017 Work Plan Addendum includes 380 person temp hardwall camp , construction offices, lunch rooms and washcars at both Mine Site and Milne Port 2019 breakdowm","m2",null,"15RBMS",59.38,{"$f":"G21*E21","v":0},0.89,{"$f":"H21*I21","v":0},{"$f":"+H21*(1-I21)","v":0}]
[null,null,"2018 Work Plan see table 3-1","m2",null,"15RBMS",59.38,0,0.89,0,0]
[null,null,"2019 estimate (See table 3-1 of 2019 Marginal Estimate)","m2",505,"18RBMS",50.75,{"$f":"G23*E23","v":25628.75},0.89,{"$f":"H23*I23","v":22809.587500000001},{"$f":"+H23*(1-I23)","v":2819.1624999999995}]
[null,"Fold Away Buildings",null,"m2",null,"15RBFS",41.57,{"$f":"G24*E24","v":0},1,0,{"$f":"+H24*(1-I24)","v":0}]
[null,"Soft-Walled",null,"m2",null,"15RBSS",47.51,0,1,0,0]
[null,"ISO Shipping Containers (Shelters, Comm. Facilities)",null,"m2",null,"15RBIS",29.69,0,1,0,0]
[null,"Water and Wastewater Treatment Facilities","Equipment quanties updated to reflect 2017 Work Plan addendum Table 3-6 2 units one at Milne Port and one at Mine Site.","each",null,"15WWTS",11035.58,0,0,0,0]
[null,"Power Plant",null,"m2",null,"brs1h",{"$f":"IF(ISNA(F28),0,INDEX(IF(UPPER(RIGHT(F28,1))=Low,UnitCostLow, IF(UPPER(RIGHT(F28,1))=High,UnitCostHigh,UnitCostSpecified)),MATCH(UPPER(LEFT(F28,LEN(F28)-1)),CostCode,0)))","v":65},0,null,0,0]
[null,"Communication Tower",null,"m2",null,"brs1h",{"$f":"IF(ISNA(F29),0,INDEX(IF(UPPER(RIGHT(F29,1))=Low,UnitCostLow, IF(UPPER(RIGHT(F29,1))=High,UnitCostHigh,UnitCostSpecified)),MATCH(UPPER(LEFT(F29,LEN(F29)-1)),CostCode,0)))","v":65},{"$f":"G29*E29","v":0},null,{"$f":"H29*I29","v":0},0]
[null,"U/G Heating Plant",null,"m2",null,{"$f":"NA()","v":{"$error":"#N/A"}},{"$f":"IF(ISNA(F30),0,INDEX(IF(UPPER(RIGHT(F30,1))=Low,UnitCostLow, IF(UPPER(RIGHT(F30,1))=High,UnitCostHigh,UnitCostSpecified)),MATCH(UPPER(LEFT(F30,LEN(F30)-1)),CostCode,0)))","v":0},{"$f":"G30*E30","v":0},null,{"$f":"H30*I30","v":0},0]
[null,"Emulsion Plant",null,"m2",null,{"$f":"NA()","v":{"$error":"#N/A"}},{"$f":"IF(ISNA(F31),0,INDEX(IF(UPPER(RIGHT(F31,1))=Low,UnitCostLow, IF(UPPER(RIGHT(F31,1))=High,UnitCostHigh,UnitCostSpecified)),MATCH(UPPER(LEFT(F31,LEN(F31)-1)),CostCode,0)))","v":0},0,null,0,0]
[null,"AN Storage Facility",null,"m2",null,"brs1s",128,0,null,{"$f":"H32*I32","v":0},0]
[null,"Warehouse, Shops and Other",null,"m2",null,"brs1l",{"$f":"IF(ISNA(F33),0,INDEX(IF(UPPER(RIGHT(F33,1))=Low,UnitCostLow, IF(UPPER(RIGHT(F33,1))=High,UnitCostHigh,UnitCostSpecified)),MATCH(UPPER(LEFT(F33,LEN(F33)-1)),CostCode,0)))","v":45},0,null,{"$f":"H33*I33","v":0},0]
[null,"Storage Facility at Laydown/Airstrip",null,"m2",null,{"$f":"NA()","v":{"$error":"#N/A"}},{"$f":"IF(ISNA(F34),0,INDEX(IF(UPPER(RIGHT(F34,1))=Low,UnitCostLow, IF(UPPER(RIGHT(F34,1))=High,UnitCostHigh,UnitCostSpecified)),MATCH(UPPER(LEFT(F34,LEN(F34)-1)),CostCode,0)))","v":0},0,null,{"$f":"H34*I34","v":0},0]
[null,"Fuel tanks",null,"m2",null,"brs1h",{"$f":"IF(ISNA(F35),0,INDEX(IF(UPPER(RIGHT(F35,1))=Low,UnitCostLow, IF(UPPER(RIGHT(F35,1))=High,UnitCostHigh,UnitCostSpecified)),MATCH(UPPER(LEFT(F35,LEN(F35)-1)),CostCode,0)))","v":65},0,null,{"$f":"H35*I35","v":0},0]
[null,"Fire Protection pumping station",null,"m",null,"brs1h",{"$f":"IF(ISNA(F36),0,INDEX(IF(UPPER(RIGHT(F36,1))=Low,UnitCostLow, IF(UPPER(RIGHT(F36,1))=High,UnitCostHigh,UnitCostSpecified)),MATCH(UPPER(LEFT(F36,LEN(F36)-1)),CostCode,0)))","v":65},0,null,{"$f":"H36*I36","v":0},0]
[null,"Freshwater intake",null,"m2",null,"brs1l",45,0,null,0,0]
[null,"Reclaim pumps",null,"m2",null,{"$f":"NA()","v":{"$error":"#N/A"}},0,0,null,0,0]
[null,"Outfall & Diffuser",null,"m2",null,{"$f":"NA()","v":{"$error":"#N/A"}},0,0,null,0,0]
[null,"Airstrip lighting, navigation, electrician",null,"mandays",null,{"$f":"NA()","v":{"$error":"#N/A"}},{"$f":"IF(ISNA(F40),0,INDEX(IF(UPPER(RIGHT(F40,1))=Low,UnitCostLow, IF(UPPER(RIGHT(F40,1))=High,UnitCostHigh,UnitCostSpecified)),MATCH(UPPER(LEFT(F40,LEN(F40)-1)),CostCode,0)))","v":0},0,null,0,0]
[null,"Airstrip lighting, navigation, mechanical",null,"mandays",null,{"$f":"NA()","v":{"$error":"#N/A"}},{"$f":"IF(ISNA(F41),0,INDEX(IF(UPPER(RIGHT(F41,1))=Low,UnitCostLow, IF(UPPER(RIGHT(F41,1))=High,UnitCostHigh,UnitCostSpecified)),MATCH(UPPER(LEFT(F41,LEN(F41)-1)),CostCode,0)))","v":0},0,null,0,0]
[null,"Break foundation slabs",null,"m2",null,"brcs",{"$f":"IF(ISNA(F42),0,INDEX(IF(UPPER(RIGHT(F42,1))=Low,UnitCostLow, IF(UPPER(RIGHT(F42,1))=High,UnitCostHigh,UnitCostSpecified)),MATCH(UPPER(LEFT(F42,LEN(F42)-1)),CostCode,0)))","v":6},{"$f":"G42*E42","v":0},null,{"$f":"H42*I42","v":0},0]
[null,"Consolidate & dump boneyard debris",null,"allow",null,"brs1l",45,0,null,0,0]
[null,"Worker Dry",null,"m2",null,"brs1l",45,{"$f":"G44*E44","v":0},null,{"$f":"H44*I44","v":0},0]
[null,"WTP & Fresh Water Pumping Station",null,"m2",null,"brs1l",45,{"$f":"G45*E45","v":0},null,{"$f":"H45*I45","v":0},0]
[null,"WRSF Pond and Attenuation Pond Pumphouses ",null,"m2",null,"brs1l",45,{"$f":"G46*E46","v":0},null,{"$f":"H46*I46","v":0},0]
[null,"Water Intake",null,"m2",null,"brcs",6,{"$f":"G47*E47","v":0},null,{"$f":"H47*I47","v":0},0]
[null,"Other ",null,"m2",null,"bdcs",12.63,0,null,0,0]
[null,"REMOVE CONTAMINATED BUILDINGS - Unit Costs include disassembling, removing or securing all items, decontamination and load and transport"]
[null,"Modular ","Trailers and pre-fabricated buildings. (Ref 1,  pg 29). ","m2",null,"15RCBMS",143.41999999999999,{"$f":"G50*E50","v":0},0.85,{"$f":"H50*I50","v":0},{"$f":"+H50*(1-I50)","v":0}]
[null,"Fold Away Buildings",null,"m2",null,"15RCBFS",142.41,0,1,0,0]
[null,"Soft-Walled","2017 Work Plan Addendum Maintenance Garage at Milne Port ,2019 breakdowm","m2",null,"15RCBSS",148.35,0,1,0,0]
[null,"ISO Shipping Containers (Shelters, Comm. Facilities)",null,"m2",null,"15RCBIS",143.41999999999999,0,1,0,0]
[null,"Temporary Construction Warehouse and Office Allowance",null,"m2",null,"15RCBTS",25000,0,1,0,0]
[null,"BREAK FOUNDATIONS"]
[null,"Precast Foundations","Includes load and transport of precast concrete foundations (Ref 1,  pg 34). ","m2",null,"15FCS",38.47,{"$f":"G56*E56","v":0},1,{"$f":"H56*I56","v":0},{"$f":"+H56*(1-I56)","v":0}]
[null,"Slab on Grade","Includes perforating the concrete slabs on grade 2017 Work Plan Addendum for pre-cast conrete foundation and Maintenance Garages at Milne Site,2019 breakdowm","m2",null,"15FSS",33.11,0,1,0,0]
[null,"Timber Cribbing","Includes disassemby load and transport of the timber cribbing","m2",null,"15TCS",20.78,0,1,0,0]
[null,"GRADE AND CONTOUR, GENERAL - Unit costs are inclusive of backfill, compaction and sacrfication with a dozer"]
[null,"Grade and contour laydown areas","Laydown LP2","m2",30000,"18GCS",1.49342034577546,{"$f":"G60*E60","v":44802.6103732638},1,{"$f":"H60*I60","v":44802.6103732638},{"$f":"+H60*(1-I60)","v":0}]
[null,null,"Laydown LP1","m2",-13000,"18GCS",1.49342034577546,-19414.464495080982,1,-19414.464495080982,0]
[null,null,"2018 Work Plan See Table 3-3 in Marginal Estimate","m2",null,"15GCS",1.81,0,1,0,0]
[null,null,"2017 actual work not previously allocated (W1,W3,W6, W7, W10B, W11, W14 AND W15) see table 2-2 of 2018 work plan","m2",null,"15GCS",1.81,0,1,0,0]
[null,null,null,"m2",null,"15GCS",1.81,{"$f":"G64*E64","v":0},1,{"$f":"H64*I64","v":0},{"$f":"+H64*(1-I64)","v":0}]
[null,"Grade and contour building footprints ",null,"m2",null,"15GCS",1.81,0,1,0,0]
[null,"Grade and contour infrastructure pads",null,"m2",null,"15GCS",1.81,0,1,0,0]
[null,"Road",null,"m2",null,"15GCS",1.81,0,1,0,0]
[null,"Stockpiles","Ore Stockpile  expansion 2019","m2",140000,"18GCS",1.49342034577546,209078.8484085644,1,209078.8484085644,0]
[null,"U/G Heating Plant",null,"m2",null,"15GCS",1.81,0,1,0,0]
[null,"Emulsion Plant",null,"m2",null,"15GCS",1.81,0,1,0,0]
[null,"Warehouse, Shops and Other",null,"m2",null,"15GCS",1.81,0,1,0,0]
[null,"Fuel tanks on site for bulk fuel storage",null,"m2",null,"15GCS",1.81,0,1,0,0]
[null,"Fire Protection pumping station",null,"m2",null,"15GCS",1.81,0,1,0,0]
[null,"Worker Dry",null,"m2",null,"15GCS",1.81,0,1,0,0]
[null,"WTP & Fresh Water Pumping Station",null,"m2",null,"15GCS",1.81,0,1,0,0]
[null,"WRSF Pond and Attenuation Pond Pumphouses ",null,"m2",null,"15GCS",1.81,0,1,0,0]
[null,"Other",null,"m2",null,"15GCS",1.81,0,1,0,0]
[null,null,"2019 ajusted","m2",null,"15GCS",1.81,0,1,0,0]
[null,"GRADE AND CONTOUR, WITH LINER - Unit costs include liner removal and disposal, backfill, compaction and sacrfication with a dozer"]
[null,"Ore Stockpile Sedimentation",null,"m2",15000,"18GCLS",4.99,{"$f":"G80*E80","v":74850},1,{"$f":"H80*I80","v":74850},{"$f":"+H80*(1-I80)","v":0}]
[null,"Ore Stockpile Sedimentation Pond 2a",null,"m2",4400,"18GCLS",4.99,{"$f":"G81*E81","v":21956},1,{"$f":"H81*I81","v":21956},{"$f":"+H81*(1-I81)","v":0}]
[null,"contaminated dump ",null,"m2",2700,"18GCLS",4.99,13473,1,13473,0]
[null,"New hazardous waste berm","2019 breakdown","m2",360,"18GCLS",4.99,1796.4,1,1796.4,0]
[null,"Landfarm",null,"m2",null,"15GCLS",5.31,0,1,0,0]
[null,"LANDFILL FOR DEMOLITION WASTE"]
[null,"Place fill material over demolition waste","2017 Work Plan Addendum","m2",null,"15PFS",44.37,{"$f":"G86*E86","v":0},1,{"$f":"H86*I86","v":0},{"$f":"+H86*(1-I86)","v":0}]
[null,"SPECIALIZED ITEMS"]
[null,"Electrical Cable","Includes the removal, loading, hauling and disposal of cable (Ref 1, pg 41). 2017 Work Plan add 3500 m of cable.","m",null,"15ECS",26.49,{"$f":"G88*E88","v":0},1,{"$f":"H88*I88","v":0},{"$f":"+H88*(1-I88)","v":0}]
[null,"Incinerator","Equipment quanties updated to reflect 2017 Work Plan addendum Table 3-6 2 units one at Milne Port and one at Mine Site.","each",null,"15FIS",9975.93,0,1,0,0]
[null,"Potable Water","Equipment quanties updated to reflect 2017 Work Plan addendum Table 3-6 2 units one at Milne Port and one at Mine Site.","each",null,"15PWS",9975.93,0,null,0,0]
[null,null,null,null,null,null,"Total",{"$f":"SUM(H5:H90)+0.0001","v":372171.14438674721},null,{"$f":"SUM(J5:J90)","v":369351.98178674723},{"$f":"SUM(K5:K90)","v":2819.1624999999995}]
[null,null,null,null,null,null,"% of Total",null,null,{"$f":"J91/H91","v":0.99242509086875796},{"$f":"K91/H91","v":7.5749088625485283E-3}]
[]
[null,"Note:  "]

{"sheet":"Bldgs & Equip TR","index":7,"n_rows":99,"n_cols":11,"rows_kept":99,"cut":false,"hidden":false,"merged":[]}
[1,"Building / Equip Name:","Tote Road",null,null,null,"Bldg / Equip #:",3]
[]
[null,"ACTIVITY/MATERIAL","Notes","Units","Quantity","Cost Code","Unit Cost","Cost","% Land","Land Cost","Water Cost"]
[null,"DISPOSE MOBILE EQUIPMENT - Unit Costs includes disassembly and decontamination required for on-site disposal, load and transport to landfill"]
[null,"Light Mobile Equipment",null,"each",null,"15MOLS",941.09,{"$f":"G5*E5","v":0},0.95,{"$f":"H5*I5","v":0},{"$f":"+H5*(1-I5)","v":0}]
[null,"Medium Mobile Equipment",null,"each",null,"15MOMS",1494.13,{"$f":"G6*E6","v":0},0.98,{"$f":"H6*I6","v":0},{"$f":"+H6*(1-I6)","v":0}]
[null,"Heavy Mobile Equipment",null,"each",null,"15MOHS",2616.87,{"$f":"G7*E7","v":0},0.98,0,{"$f":"+H7*(1-I7)","v":0}]
[null,"DISPOSE MECHANICAL EQUIPMENT - Unit Costs includes disassembly and decontamination required for on-site disposal, load and transport to landfill"]
[null,"Light mechanical equipment - Decontaminate and dispose on-site","Equipment quanties updated to reflect BIMC Nov. 24 EBS revisions.Light equipment includes pumps, fuel dispenser, laboratory equipment, and sample bins (Ref 1, pg 23).  2017 Work Plan add 20 units.","each",null,"15LMES",1980.8,{"$f":"G9*E9","v":0},0.98,{"$f":"H9*I9","v":0},{"$f":"+H9*(1-I9)","v":0}]
[null,"Medium mechanical equipment - Decontaminate and dispose on-site","Equipment quanties updated to reflect BIMC Nov. 24 EBS revisions. Medium equipment includes aerodrome equipment, generators, shop / maintenance equipment, screens, and chutes (Ref 1, pg 23).  2017 Work Plan add 2 units.","each",null,"15MMES",4261.34,0,1,0,0]
[null,"Heavy mechanical equipment - Decontaminate and dispose on-site","Equipment quanties updated to reflect BIMC Nov. 24 EBS revisions. Heavy equipment includes crusher, feeder, power plant generators, large screens, conveyors, and stackers  (Ref 2,  pg 23).  2017 Work Plan add 1 unit (Truck Wash system).","each",null,"15MEHS",41205.449999999997,0,1,0,0]
[null,"Light Tanks","Light non- fuel storage tanks. The cleaning, plugging, disassembly and removal of all associated pipeline infrastructure is included (Ref 1, pg 26). ","each",null,"15TLS",2148.33,0,0,0,0]
[null,"Medium Tanks","Medium non- fuel storage tanks. The cleaning, plugging, disassembly and removal of all associated pipeline infrastructure is included (Ref 1,  pg 26). ","each",null,"15MTS",7387.31,0,0,0,0]
[null,"Light Diesel Tanks","Small fuel tanks (10,000-20,000L) (Ref 1,  pg 27)","each",null,"15LiDTS",3693.66,0,1,0,0]
[null,"Medium Diesel Tanks","Medium fuel tanks (500,000-750,000L). The cleaning, plugging, disassembly and removal of all associated pipeline infrastructure is included (Ref 1, pg 27). ","each",null,"15MDTS",16166.4,0,1,0,0]
[null,"Misc. Items","On-site disposal. Miscellaneous (minor) items were defined as any item less than 200 kg not captured in other unit costs (Ref 1, pg 42). ","Lot",null,"15MEIS",529.83000000000004,0,1,0,0]
[null,"Fuelk tanks - On-site disposal of medium mobile fuel tanks (3,000 to 500,000 L)","On-site disposal of medium-mobile fuel tanks (3,000 to 500,000L).  ","each",null,"15MMFTS",10481.049999999999,0,1,0,0]
[null,"REMOVE BUILDINGS - Unit Costs include disassembling, removing or securing all items and load and transport"]
[null,"Modular ",null,"m2",null,"15RBMS",59.38,{"$f":"G19*E19","v":0},0.89,0,{"$f":"+H19*(1-I19)","v":0}]
[null,"Fold Away Buildings",null,"m2",null,"15RBFS",41.57,0,1,0,0]
[null,"ISO Shipping Containers (Shelters, Comm. Facilities)","2017 Actual work not previously allocated (see Table 2-3 of 2018 Marginal cost)","m2",null,"15RBIS",29.69,0,1,0,0]
[null,"Water and Wastewater Treatment Facilities",null,"each",null,"15WWTS",11035.58,0,0,0,0]
[null,"Power Plant",null,"m2",null,"brs1h",{"$f":"IF(ISNA(F23),0,INDEX(IF(UPPER(RIGHT(F23,1))=Low,UnitCostLow, IF(UPPER(RIGHT(F23,1))=High,UnitCostHigh,UnitCostSpecified)),MATCH(UPPER(LEFT(F23,LEN(F23)-1)),CostCode,0)))","v":65},0,null,0,0]
[null,"Communication Tower",null,"m2",null,"brs1h",{"$f":"IF(ISNA(F24),0,INDEX(IF(UPPER(RIGHT(F24,1))=Low,UnitCostLow, IF(UPPER(RIGHT(F24,1))=High,UnitCostHigh,UnitCostSpecified)),MATCH(UPPER(LEFT(F24,LEN(F24)-1)),CostCode,0)))","v":65},{"$f":"G24*E24","v":0},null,{"$f":"H24*I24","v":0},0]
[null,"U/G Heating Plant",null,"m2",null,{"$f":"NA()","v":{"$error":"#N/A"}},{"$f":"IF(ISNA(F25),0,INDEX(IF(UPPER(RIGHT(F25,1))=Low,UnitCostLow, IF(UPPER(RIGHT(F25,1))=High,UnitCostHigh,UnitCostSpecified)),MATCH(UPPER(LEFT(F25,LEN(F25)-1)),CostCode,0)))","v":0},{"$f":"G25*E25","v":0},null,{"$f":"H25*I25","v":0},0]
[null,"Emulsion Plant",null,"m2",null,{"$f":"NA()","v":{"$error":"#N/A"}},{"$f":"IF(ISNA(F26),0,INDEX(IF(UPPER(RIGHT(F26,1))=Low,UnitCostLow, IF(UPPER(RIGHT(F26,1))=High,UnitCostHigh,UnitCostSpecified)),MATCH(UPPER(LEFT(F26,LEN(F26)-1)),CostCode,0)))","v":0},0,null,0,0]
[null,"AN Storage Facility",null,"m2",null,"brs1s",128,0,null,{"$f":"H27*I27","v":0},0]
[null,"Warehouse, Shops and Other",null,"m2",null,"brs1l",{"$f":"IF(ISNA(F28),0,INDEX(IF(UPPER(RIGHT(F28,1))=Low,UnitCostLow, IF(UPPER(RIGHT(F28,1))=High,UnitCostHigh,UnitCostSpecified)),MATCH(UPPER(LEFT(F28,LEN(F28)-1)),CostCode,0)))","v":45},0,null,{"$f":"H28*I28","v":0},0]
[null,"Storage Facility at Laydown/Airstrip",null,"m2",null,{"$f":"NA()","v":{"$error":"#N/A"}},{"$f":"IF(ISNA(F29),0,INDEX(IF(UPPER(RIGHT(F29,1))=Low,UnitCostLow, IF(UPPER(RIGHT(F29,1))=High,UnitCostHigh,UnitCostSpecified)),MATCH(UPPER(LEFT(F29,LEN(F29)-1)),CostCode,0)))","v":0},0,null,{"$f":"H29*I29","v":0},0]
[null,"Fuel tanks",null,"m2",null,"brs1h",{"$f":"IF(ISNA(F30),0,INDEX(IF(UPPER(RIGHT(F30,1))=Low,UnitCostLow, IF(UPPER(RIGHT(F30,1))=High,UnitCostHigh,UnitCostSpecified)),MATCH(UPPER(LEFT(F30,LEN(F30)-1)),CostCode,0)))","v":65},0,null,{"$f":"H30*I30","v":0},0]
[null,"Fire Protection pumping station",null,"m",null,"brs1h",{"$f":"IF(ISNA(F31),0,INDEX(IF(UPPER(RIGHT(F31,1))=Low,UnitCostLow, IF(UPPER(RIGHT(F31,1))=High,UnitCostHigh,UnitCostSpecified)),MATCH(UPPER(LEFT(F31,LEN(F31)-1)),CostCode,0)))","v":65},0,null,{"$f":"H31*I31","v":0},0]
[null,"Freshwater intake",null,"m2",null,"brs1l",45,0,null,0,0]
[null,"Reclaim pumps",null,"m2",null,{"$f":"NA()","v":{"$error":"#N/A"}},0,0,null,0,0]
[null,"Outfall & Diffuser",null,"m2",null,{"$f":"NA()","v":{"$error":"#N/A"}},0,0,null,0,0]
[null,"Airstrip lighting, navigation, electrician",null,"mandays",null,{"$f":"NA()","v":{"$error":"#N/A"}},{"$f":"IF(ISNA(F35),0,INDEX(IF(UPPER(RIGHT(F35,1))=Low,UnitCostLow, IF(UPPER(RIGHT(F35,1))=High,UnitCostHigh,UnitCostSpecified)),MATCH(UPPER(LEFT(F35,LEN(F35)-1)),CostCode,0)))","v":0},0,null,0,0]
[null,"Airstrip lighting, navigation, mechanical",null,"mandays",null,{"$f":"NA()","v":{"$error":"#N/A"}},{"$f":"IF(ISNA(F36),0,INDEX(IF(UPPER(RIGHT(F36,1))=Low,UnitCostLow, IF(UPPER(RIGHT(F36,1))=High,UnitCostHigh,UnitCostSpecified)),MATCH(UPPER(LEFT(F36,LEN(F36)-1)),CostCode,0)))","v":0},0,null,0,0]
[null,"Break foundation slabs",null,"m2",null,"brcs",{"$f":"IF(ISNA(F37),0,INDEX(IF(UPPER(RIGHT(F37,1))=Low,UnitCostLow, IF(UPPER(RIGHT(F37,1))=High,UnitCostHigh,UnitCostSpecified)),MATCH(UPPER(LEFT(F37,LEN(F37)-1)),CostCode,0)))","v":6},{"$f":"G37*E37","v":0},null,{"$f":"H37*I37","v":0},0]
[null,"Consolidate & dump boneyard debris",null,"allow",null,"brs1l",45,0,null,0,0]
[null,"Worker Dry",null,"m2",null,"brs1l",45,{"$f":"G39*E39","v":0},null,{"$f":"H39*I39","v":0},0]
[null,"WTP & Fresh Water Pumping Station",null,"m2",null,"brs1l",45,{"$f":"G40*E40","v":0},null,{"$f":"H40*I40","v":0},0]
[null,"WRSF Pond and Attenuation Pond Pumphouses ",null,"m2",null,"brs1l",45,{"$f":"G41*E41","v":0},null,{"$f":"H41*I41","v":0},0]
[null,"Water Intake",null,"m2",null,"brcs",6,{"$f":"G42*E42","v":0},null,{"$f":"H42*I42","v":0},0]
[null,"Other ",null,"m2",null,"bdcs",12.63,0,null,0,0]
[null,"REMOVE CONTAMINATED BUILDINGS - Unit Costs include disassembling, removing or securing all items, decontamination and load and transport"]
[null,"Modular ",null,"m2",null,"15RCBMS",143.41999999999999,{"$f":"G45*E45","v":0},1,{"$f":"H45*I45","v":0},{"$f":"+H45*(1-I45)","v":0}]
[null,"Fold Away Buildings","Mobile Maintenance Depot (100% on Crown Land)","m2",null,"15RCBFS",142.41,0,1,0,0]
[null,"ISO Shipping Containers (Shelters, Comm. Facilities)",null,"m2",null,"15RCBIS",143.41999999999999,0,1,0,0]
[null,"Temporary Construction Warehouse and Office Allowance",null,"m2",null,"15RCBTS",25000,0,1,0,0]
[null,"BREAK FOUNDATIONS"]
[null,"Slab on Grade","Mobile Maintenance Depot (100% on Crown Land)","m2",null,"15FSS",33.11,{"$f":"G50*E50","v":0},1,{"$f":"H50*I50","v":0},{"$f":"+H50*(1-I50)","v":0}]
[null,"Timber Cribbing","Includes disassemby load and transport of the timber cribbing. Assume 7% on Crown Land","m2",null,"15TCS",20.78,0,1,0,0]
[]
[null,"GRADE AND CONTOUR, GENERAL - Unit costs are inclusive of backfill, compaction and sacrfication with a dozer"]
[null,"Culvert Removal",null,"m",80,null,50,{"$f":"G54*E54","v":4000},1,4000,{"$f":"+H54*(1-I54)","v":0}]
[null,"Grade and contour laydown areas","Laydown 2, 4, 7, 10, 13","m2",192500,"18GCS",1.49342034577546,287483.41656177607,1,287483.41656177607,0]
[null,"Grade and contour laydown areas","Laydown 9","m2",92500,"18GCS",1.49342034577546,138141.38198423004,1,{"$f":"H56*I56","v":138141.38198423004},{"$f":"+H56*(1-I56)","v":0}]
[null,"Grade and contour building footprints ","Assume 7% on Crown Land","m2",null,"15GCS",1.81,0,1,0,0]
[null,"Grade and contour infrastructure pads","Assume 7% on Crown Land","m2",null,"15GCS",1.81,0,1,0,0]
[null,"Aerodome Facilities",null,"m2",null,"15GCS",1.81,0,1,0,0]
[null,"Road","Assume 7% on Crown Land","m2",null,"15GCS",1.81,0,1,0,0]
[null,"Stockpiles",null,"m2",null,"15GCS",1.81,{"$f":"G61*E61","v":0},1,{"$f":"H61*I61","v":0},{"$f":"+H61*(1-I61)","v":0}]
[null,"Remove Liner","Mobile Maintenance Depot (100% on Crown Land)","m2",null,null,3.5,{"$f":"G62*E62","v":0},1,{"$f":"H62*I62","v":0},{"$f":"+H62*(1-I62)","v":0}]
[null,"Grade and Contour Significant Disturbed Areas",null,"m2",null,"15GCDS",2.72,{"$f":"G63*E63","v":0},1,{"$f":"H63*I63","v":0},{"$f":"+H63*(1-I63)","v":0}]
[null,"U/G Heating Plant",null,"m2",null,{"$f":"NA()","v":{"$error":"#N/A"}},{"$f":"IF(ISNA(F64),0,INDEX(IF(UPPER(RIGHT(F64,1))=Low,UnitCostLow, IF(UPPER(RIGHT(F64,1))=High,UnitCostHigh,UnitCostSpecified)),MATCH(UPPER(LEFT(F64,LEN(F64)-1)),CostCode,0)))","v":0},0,null,0,0]
[null,"Emulsion Plant",null,"m2",null,{"$f":"NA()","v":{"$error":"#N/A"}},{"$f":"IF(ISNA(F65),0,INDEX(IF(UPPER(RIGHT(F65,1))=Low,UnitCostLow, IF(UPPER(RIGHT(F65,1))=High,UnitCostHigh,UnitCostSpecified)),MATCH(UPPER(LEFT(F65,LEN(F65)-1)),CostCode,0)))","v":0},0,null,0,0]
[null,"Warehouse, Shops and Other",null,"m2",null,"AE",8.4700000000000006,0,null,0,0]
[null,"Fuel tanks on site for bulk fuel storage",null,"m2",null,"AE",8.4700000000000006,0,null,0,0]
[null,"Fire Protection pumping station",null,"m2",null,"AE",8.4700000000000006,0,null,0,0]
[null,"Worker Dry",null,"m2",null,"AE",8.4700000000000006,0,null,0,0]
[null,"WTP & Fresh Water Pumping Station",null,"m2",null,"AE",8.4700000000000006,0,null,0,0]
[null,"WRSF Pond and Attenuation Pond Pumphouses ",null,"m2",null,"AE",8.4700000000000006,0,null,0,0]
[null,"Other",null,"ha",null,"scfyl",{"$f":"IF(ISNA(F72),0,INDEX(IF(UPPER(RIGHT(F72,1))=Low,UnitCostLow, IF(UPPER(RIGHT(F72,1))=High,UnitCostHigh,UnitCostSpecified)),MATCH(UPPER(LEFT(F72,LEN(F72)-1)),CostCode,0)))","v":4300},0,null,0,0]
[null,"GRADE AND CONTOUR, WITH LINER - Unit costs include liner removal and disposal, backfill, compaction and sacrfication with a dozer"]
[null,"Waste Disposal",null,"m2",null,"15GCLS",5.31,{"$f":"G74*E74","v":0},1,0,0]
[null,"Fuel tank farm dyke",null,"m2",null,"15GCLS",5.31,0,1,{"$f":"H75*I75","v":0},0]
[null,"Hazardous waste berm",null,"m2",null,"15GCLS",5.31,0,1,0,0]
[null,"Bulk fuel storage facility (Bladder Farm)",null,"m2",null,"15GCLS",5.31,0,1,0,0]
[null,"Other",null,"m2",null,"15GCLS",5.31,0,1,0,0]
[null,"LANDFILL FOR DEMOLITION WASTE"]
[null,null,null,"m2",null,"15PFS",44.37,{"$f":"G80*E80","v":0},1,{"$f":"H80*I80","v":0},{"$f":"+H80*(1-I80)","v":0}]
[null,"RECLAIM ROADS"]
[null,"Remove bridges (IOL)","The unit cost is inclusive of the demolition and removal of a bridge. Assumed not contaminated  (Ref 1, pg 36).","each",null,"15BRS",201838.77,{"$f":"G82*E82","v":0},0,{"$f":"H82*I82","v":0},{"$f":"+H82*(1-I82)","v":0}]
[null,"Remove bridges (CROWN)","The unit cost is inclusive of the demolition and removal of a bridge. Assumed not contaminated  (Ref 1, pg 36).","each",null,"15BRS",201838.77,{"$f":"G83*E83","v":0},0,{"$f":"H83*I83","v":0},{"$f":"+H83*(1-I83)","v":0}]
[null,"Remove Culverts (IOL)","The unit cost is inclusive of the travel time to and from the culvert location, the earthwork necessary expose a culvert and the removal of the culvert material (Ref 1,  pg 21). ","each",null,"15CRS",1094.48,0,0,0,0]
[null,"Remove Culverts (CROWN)","The unit cost is inclusive of the travel time to and from the culvert location, the earthwork necessary expose a culvert and the removal of the culvert material (Ref 1,  pg 21). ","each",null,"15CRS",1094.48,0,0,0,0]
[null,"Scarifying and install water breaks",null,"ha",null,{"$error":"#N/A"},0,{"$f":"G86*E86","v":0},null,{"$f":"H86*I86","v":0},{"$f":"+H86*(1-I86)","v":0}]
[null,"Scarifying Airstrip",null,"ha",null,{"$error":"#N/A"},0,0,null,0,0]
[null,"Scarifying Laydown Areas",null,"ha",null,{"$error":"#N/A"},0,0,null,0,0]
[null,"vegeation",null,"ha",null,{"$error":"#N/A"},0,0,null,0,0]
[null,"Other",null,"ha",null,{"$error":"#N/A"},0,0,null,0,0]
[null,"SPECIALIZED ITEMS"]
[null,"Consumables",null,"each",null,{"$error":"#N/A"},0,{"$f":"G92*E92","v":0},null,{"$f":"H92*I92","v":0},{"$f":"+H92*(1-I92)","v":0}]
[null,"Electrical Cable",null,"m",null,"15ECS",26.49,{"$f":"G93*E93","v":0},null,{"$f":"H93*I93","v":0},{"$f":"+H93*(1-I93)","v":0}]
[null,"Incinerator",null,"each",null,"15FIS",9975.93,0,null,0,0]
[null,"Potable Water",null,"each",null,"15PWS",9975.93,0,null,0,0]
[null,null,null,null,null,null,"Total",{"$f":"SUM(H5:H95)+0.0001","v":429624.79864600609},null,{"$f":"SUM(J5:J95)","v":429624.79854600609},{"$f":"SUM(K5:K95)","v":0}]
[null,null,null,null,null,null,"% of Total",null,null,{"$f":"J96/H96","v":0.99999999976723875},{"$f":"K96/H96","v":0}]
[]
[null,"Note:  "]

{"sheet":"Water Management","index":8,"n_rows":58,"n_cols":14,"rows_kept":58,"cut":false,"hidden":false,"merged":[]}
[1,"Capital Expenditures and Short Term Water Treatment identified in 'Instructions' worksheet"]
[]
[null,"ACTIVITY/MATERIAL","Notes","Units","Quantity","Cost Code","Unit Cost","Cost"]
[null,"BREACH DYKE EMBANKMENT"]
[null,"Remove fill",null,"m3",null,"sc3l",{"$f":"IF(ISNA(F5),0,INDEX(IF(UPPER(RIGHT(F5,1))=Low,UnitCostLow, IF(UPPER(RIGHT(F5,1))=High,UnitCostHigh,UnitCostSpecified)),MATCH(UPPER(LEFT(F5,LEN(F5)-1)),CostCode,0)))","v":8.9},{"$f":"G5*E5","v":0}]
[null,"Contour water intake area",null,"m3",null,{"$f":"NA()","v":{"$error":"#N/A"}},{"$f":"IF(ISNA(F6),0,INDEX(IF(UPPER(RIGHT(F6,1))=Low,UnitCostLow, IF(UPPER(RIGHT(F6,1))=High,UnitCostHigh,UnitCostSpecified)),MATCH(UPPER(LEFT(F6,LEN(F6)-1)),CostCode,0)))","v":0},{"$f":"G6*E6","v":0}]
[null,"STABILIZE SEDIMENT PONDS/WATER MANAGEMENT PONDS"]
[null,"Place soil cover",null,"m3",null,{"$f":"NA()","v":{"$error":"#N/A"}},{"$f":"IF(ISNA(F8),0,INDEX(IF(UPPER(RIGHT(F8,1))=Low,UnitCostLow, IF(UPPER(RIGHT(F8,1))=High,UnitCostHigh,UnitCostSpecified)),MATCH(UPPER(LEFT(F8,LEN(F8)-1)),CostCode,0)))","v":0},{"$f":"G8*E8","v":0}]
[null,"Doze & spread excavated material",null,"m3",null,{"$f":"NA()","v":{"$error":"#N/A"}},{"$f":"IF(ISNA(F9),0,INDEX(IF(UPPER(RIGHT(F9,1))=Low,UnitCostLow, IF(UPPER(RIGHT(F9,1))=High,UnitCostHigh,UnitCostSpecified)),MATCH(UPPER(LEFT(F9,LEN(F9)-1)),CostCode,0)))","v":0},{"$f":"G9*E9","v":0}]
[null,"Vegetate spread material",null,"ha",null,{"$f":"NA()","v":{"$error":"#N/A"}},{"$f":"IF(ISNA(F10),0,INDEX(IF(UPPER(RIGHT(F10,1))=Low,UnitCostLow, IF(UPPER(RIGHT(F10,1))=High,UnitCostHigh,UnitCostSpecified)),MATCH(UPPER(LEFT(F10,LEN(F10)-1)),CostCode,0)))","v":0},{"$f":"G10*E10","v":0}]
[null,"Rip rap in channel base",null,"each",null,{"$f":"NA()","v":{"$error":"#N/A"}},{"$f":"IF(ISNA(F11),0,INDEX(IF(UPPER(RIGHT(F11,1))=Low,UnitCostLow, IF(UPPER(RIGHT(F11,1))=High,UnitCostHigh,UnitCostSpecified)),MATCH(UPPER(LEFT(F11,LEN(F11)-1)),CostCode,0)))","v":0},{"$f":"G11*E11","v":0}]
[null,"Grade and Contour with liner","include in grade and re-contour","m2",null,"15GCLS",5.31,{"$f":"G12*E12","v":0}]
[null,"REDIRECT RUNOFF/CONSTRUCT DIVERSION DITCHES"]
[null,"Excavate ditches -soil",null,"m3",null,"sc3l",{"$f":"IF(ISNA(F14),0,INDEX(IF(UPPER(RIGHT(F14,1))=Low,UnitCostLow, IF(UPPER(RIGHT(F14,1))=High,UnitCostHigh,UnitCostSpecified)),MATCH(UPPER(LEFT(F14,LEN(F14)-1)),CostCode,0)))","v":8.9},{"$f":"G14*E14","v":0}]
[null,"Excavate ditches -rock",null,"m3",null,{"$f":"NA()","v":{"$error":"#N/A"}},{"$f":"IF(ISNA(F15),0,INDEX(IF(UPPER(RIGHT(F15,1))=Low,UnitCostLow, IF(UPPER(RIGHT(F15,1))=High,UnitCostHigh,UnitCostSpecified)),MATCH(UPPER(LEFT(F15,LEN(F15)-1)),CostCode,0)))","v":0},{"$f":"G15*E15","v":0}]
[null,"Stabilize side slopes",null,"m3",null,{"$f":"NA()","v":{"$error":"#N/A"}},{"$f":"IF(ISNA(F16),0,INDEX(IF(UPPER(RIGHT(F16,1))=Low,UnitCostLow, IF(UPPER(RIGHT(F16,1))=High,UnitCostHigh,UnitCostSpecified)),MATCH(UPPER(LEFT(F16,LEN(F16)-1)),CostCode,0)))","v":0},{"$f":"G16*E16","v":0}]
[null,"Rip rap in channel base",null,"m3",null,"rr2l",{"$f":"IF(ISNA(F17),0,INDEX(IF(UPPER(RIGHT(F17,1))=Low,UnitCostLow, IF(UPPER(RIGHT(F17,1))=High,UnitCostHigh,UnitCostSpecified)),MATCH(UPPER(LEFT(F17,LEN(F17)-1)),CostCode,0)))","v":14.2},{"$f":"G17*E17","v":0}]
[null,"BREACH DITCHES"]
[null,"Excavate breaches",null,"m3",null,{"$f":"NA()","v":{"$error":"#N/A"}},{"$f":"IF(ISNA(F19),0,INDEX(IF(UPPER(RIGHT(F19,1))=Low,UnitCostLow, IF(UPPER(RIGHT(F19,1))=High,UnitCostHigh,UnitCostSpecified)),MATCH(UPPER(LEFT(F19,LEN(F19)-1)),CostCode,0)))","v":0},{"$f":"G19*E19","v":0}]
[null,"Backfill/recontour",null,"m3",null,"SB3l",{"$f":"IF(ISNA(F20),0,INDEX(IF(UPPER(RIGHT(F20,1))=Low,UnitCostLow, IF(UPPER(RIGHT(F20,1))=High,UnitCostHigh,UnitCostSpecified)),MATCH(UPPER(LEFT(F20,LEN(F20)-1)),CostCode,0)))","v":5.0999999999999996},{"$f":"G20*E20","v":0}]
[null,"Install flow dissipation",null,"m3",null,{"$f":"NA()","v":{"$error":"#N/A"}},{"$f":"IF(ISNA(F21),0,INDEX(IF(UPPER(RIGHT(F21,1))=Low,UnitCostLow, IF(UPPER(RIGHT(F21,1))=High,UnitCostHigh,UnitCostSpecified)),MATCH(UPPER(LEFT(F21,LEN(F21)-1)),CostCode,0)))","v":0},{"$f":"G21*E21","v":0}]
[null,"Vegetate remainder of ditch",null,"m2",null,{"$f":"NA()","v":{"$error":"#N/A"}},{"$f":"IF(ISNA(F22),0,INDEX(IF(UPPER(RIGHT(F22,1))=Low,UnitCostLow, IF(UPPER(RIGHT(F22,1))=High,UnitCostHigh,UnitCostSpecified)),MATCH(UPPER(LEFT(F22,LEN(F22)-1)),CostCode,0)))","v":0},{"$f":"G22*E22","v":0}]
[null,"DECOMISSION FRESH WATER SUPPLY"]
[null,"Breach embankment",null,"m",null,{"$f":"NA()","v":{"$error":"#N/A"}},{"$f":"IF(ISNA(F24),0,INDEX(IF(UPPER(RIGHT(F24,1))=Low,UnitCostLow, IF(UPPER(RIGHT(F24,1))=High,UnitCostHigh,UnitCostSpecified)),MATCH(UPPER(LEFT(F24,LEN(F24)-1)),CostCode,0)))","v":0},{"$f":"G24*E24","v":0}]
[null,"Remove pump",null,"LS",null,"AE",20000,{"$f":"G25*E25","v":0}]
[null,"Remove pipeline",null,"LS",null,"AE",40000,{"$f":"G26*E26","v":0}]
[null,"WATER CONTROL IN RECLAMATION QUARRY"]
[null,"Install  pumping system",null,"LS",null,{"$f":"NA()","v":{"$error":"#N/A"}},{"$f":"IF(ISNA(F28),0,INDEX(IF(UPPER(RIGHT(F28,1))=Low,UnitCostLow, IF(UPPER(RIGHT(F28,1))=High,UnitCostHigh,UnitCostSpecified)),MATCH(UPPER(LEFT(F28,LEN(F28)-1)),CostCode,0)))","v":0},{"$f":"G28*E28","v":0}]
[null,"Remove pumping system",null,"LS",null,{"$f":"NA()","v":{"$error":"#N/A"}},{"$f":"IF(ISNA(F29),0,INDEX(IF(UPPER(RIGHT(F29,1))=Low,UnitCostLow, IF(UPPER(RIGHT(F29,1))=High,UnitCostHigh,UnitCostSpecified)),MATCH(UPPER(LEFT(F29,LEN(F29)-1)),CostCode,0)))","v":0},{"$f":"G29*E29","v":0}]
[null,"REMOVE PIPELINES"]
[null,"Remove pipes","The unit cost includes the cleaning, plugging, disassembly, loading, hauling and disposal of piping  (Ref 1, pg 41). ","m",null,"15RPS",66.23,{"$f":"G31*E31","v":0}]
[null,"Concrete plug deep pipes",null,"m3",null,{"$f":"NA()","v":{"$error":"#N/A"}},{"$f":"IF(ISNA(F32),0,INDEX(IF(UPPER(RIGHT(F32,1))=Low,UnitCostLow, IF(UPPER(RIGHT(F32,1))=High,UnitCostHigh,UnitCostSpecified)),MATCH(UPPER(LEFT(F32,LEN(F32)-1)),CostCode,0)))","v":0},{"$f":"G32*E32","v":0}]
[null,"Other",null,null,null,{"$f":"NA()","v":{"$error":"#N/A"}},{"$f":"IF(ISNA(F33),0,INDEX(IF(UPPER(RIGHT(F33,1))=Low,UnitCostLow, IF(UPPER(RIGHT(F33,1))=High,UnitCostHigh,UnitCostSpecified)),MATCH(UPPER(LEFT(F33,LEN(F33)-1)),CostCode,0)))","v":0},{"$f":"G33*E33","v":0}]
[null,"GROUNDWATER COLLECTION SYSTEM"]
[null,"Excavate/install sumps",null,"m3",null,{"$f":"NA()","v":{"$error":"#N/A"}},{"$f":"IF(ISNA(F35),0,INDEX(IF(UPPER(RIGHT(F35,1))=Low,UnitCostLow, IF(UPPER(RIGHT(F35,1))=High,UnitCostHigh,UnitCostSpecified)),MATCH(UPPER(LEFT(F35,LEN(F35)-1)),CostCode,0)))","v":0},{"$f":"G35*E35","v":0}]
[null,"Install pumping wells",null,"m3",null,{"$f":"NA()","v":{"$error":"#N/A"}},{"$f":"IF(ISNA(F36),0,INDEX(IF(UPPER(RIGHT(F36,1))=Low,UnitCostLow, IF(UPPER(RIGHT(F36,1))=High,UnitCostHigh,UnitCostSpecified)),MATCH(UPPER(LEFT(F36,LEN(F36)-1)),CostCode,0)))","v":0},{"$f":"G36*E36","v":0}]
[null,"Install pumps/pipelines/power supply",null,"LS",null,{"$f":"NA()","v":{"$error":"#N/A"}},{"$f":"IF(ISNA(F37),0,INDEX(IF(UPPER(RIGHT(F37,1))=Low,UnitCostLow, IF(UPPER(RIGHT(F37,1))=High,UnitCostHigh,UnitCostSpecified)),MATCH(UPPER(LEFT(F37,LEN(F37)-1)),CostCode,0)))","v":0},{"$f":"G37*E37","v":0}]
[null,"CONSTRUCT CONTAMINATED WATER STORAGE POND"]
[null,"Excavate pond",null,"m3",null,{"$f":"NA()","v":{"$error":"#N/A"}},{"$f":"IF(ISNA(F39),0,INDEX(IF(UPPER(RIGHT(F39,1))=Low,UnitCostLow, IF(UPPER(RIGHT(F39,1))=High,UnitCostHigh,UnitCostSpecified)),MATCH(UPPER(LEFT(F39,LEN(F39)-1)),CostCode,0)))","v":0},{"$f":"G39*E39","v":0}]
[null,"Doze & spread excavated material",null,"m3",null,{"$f":"NA()","v":{"$error":"#N/A"}},0,0]
[null,"Vegetate spread material",null,"ha",null,{"$f":"NA()","v":{"$error":"#N/A"}},0,0]
[null,"Bedding layer",null,"m3",null,{"$f":"NA()","v":{"$error":"#N/A"}},0,0]
[null,"Supply geomembrane",null,"m2",null,{"$f":"NA()","v":{"$error":"#N/A"}},0,0]
[null,"Install geomembrane",null,"m2",null,{"$f":"NA()","v":{"$error":"#N/A"}},0,0]
[null,"Erosion protection layer",null,"m3",null,{"$f":"NA()","v":{"$error":"#N/A"}},0,0]
[null,"CONSTRUCT PASSIVE TREATMENT SYSTEM (e.g. Constructed Wetland)"]
[null,"Construct access roads",null,"km",null,{"$f":"NA()","v":{"$error":"#N/A"}},0,{"$f":"G47*E47","v":0}]
[null,"Install HDPE piping system from collection pond",null,"m",null,{"$f":"NA()","v":{"$error":"#N/A"}},0,0]
[null,"Inter-cell flow structures",null,"allow",null,{"$f":"NA()","v":{"$error":"#N/A"}},0,0]
[null,"Install liners",null,"m2",null,{"$f":"NA()","v":{"$error":"#N/A"}},0,0]
[null,"Install growth media",null,"m3",null,{"$f":"NA()","v":{"$error":"#N/A"}},0,0]
[null,"Wetland vegetation",null,"ha",null,{"$f":"NA()","v":{"$error":"#N/A"}},0,0]
[null,"CONSTRUCT WATER TREATMENT PLANT"]
[null,"Build treatment plant ",null,"LS",null,{"$f":"NA()","v":{"$error":"#N/A"}},{"$f":"IF(ISNA(F54),0,INDEX(IF(UPPER(RIGHT(F54,1))=Low,UnitCostLow, IF(UPPER(RIGHT(F54,1))=High,UnitCostHigh,UnitCostSpecified)),MATCH(UPPER(LEFT(F54,LEN(F54)-1)),CostCode,0)))","v":0},{"$f":"G54*E54","v":0}]
[null,"Treatment  (hec)  19",null,"HA",null,"SNC",300000,{"$f":"G55*E55","v":0},null,null,null,null,"WRSF = 190000 M2 , 19 HE"," 19 Ha "]
[null,"Build sludge containment facility",null,"LS",null,{"$f":"NA()","v":{"$error":"#N/A"}},{"$f":"IF(ISNA(F56),0,INDEX(IF(UPPER(RIGHT(F56,1))=Low,UnitCostLow, IF(UPPER(RIGHT(F56,1))=High,UnitCostHigh,UnitCostSpecified)),MATCH(UPPER(LEFT(F56,LEN(F56)-1)),CostCode,0)))","v":0},{"$f":"G56*E56","v":0}]
[null,null,null,null,null,null,"Total",{"$f":"SUM(H5:H56)+0.0001","v":1E-4}]
[null," For cost of long-term/post-closure water treatment see \"WATER TREATMENT\" Worksheet\""]

{"sheet":"ICM","index":9,"n_rows":28,"n_cols":8,"rows_kept":28,"cut":false,"hidden":false,"merged":[]}
[1,"Interim Care and Maintenance (18 Month duration)"]
[]
[null,"ACTIVITY/MATERIAL","Notes","Units","Quantity","Cost Code","Unit Cost","Cost"]
[null,"INTERIM CARE & MAINTENANCE"]
[null,"on-site caretaker","Three caretakers for 18 months (assume 2 at 3w/1w and 1 at 2w/2w rotation). Assume 36 days of travel for each caretaker over 18-months.10-hr days.","hr",null,"15BLS",75,{"$f":"G5*E5","v":0}]
[null,"extra personnel","Assume crew of 15 people for 56, 10-hr days, to stabalize site and equipment at both the Mine Site, and Milne Port. Blended unit rate is used to allow for different skill levels that would make up the crew.","hr",null,"15BLS",75,0]
[null,"    -electrician",null,"manmonths",0,"elech",{"$f":"IF(ISNA(F7),0,INDEX(IF(UPPER(RIGHT(F7,1))=Low,UnitCostLow, IF(UPPER(RIGHT(F7,1))=High,UnitCostHigh,UnitCostSpecified)),MATCH(UPPER(LEFT(F7,LEN(F7)-1)),CostCode,0)))","v":95},{"$f":"G7*E7","v":0}]
[null,"    -mechanic",null,"manmonths",0,"mechh",{"$f":"IF(ISNA(F8),0,INDEX(IF(UPPER(RIGHT(F8,1))=Low,UnitCostLow, IF(UPPER(RIGHT(F8,1))=High,UnitCostHigh,UnitCostSpecified)),MATCH(UPPER(LEFT(F8,LEN(F8)-1)),CostCode,0)))","v":72.849999999999994},{"$f":"G8*E8","v":0}]
[null,"annual fuel",null,"litre",0,"fcdh",{"$f":"IF(ISNA(F9),0,INDEX(IF(UPPER(RIGHT(F9,1))=Low,UnitCostLow, IF(UPPER(RIGHT(F9,1))=High,UnitCostHigh,UnitCostSpecified)),MATCH(UPPER(LEFT(F9,LEN(F9)-1)),CostCode,0)))","v":1.39},0]
[null,"Mobilization of Workers Required for Stabilization Period (from northern communities)","Assume two rotations per worker, 30% from northern communities and 70% from southern communities. Mobilization from the south is $85.45/person days on site, and from the north $75/person-days on site (Ref 1).","person-days",null,"15NWS",75,0]
[null,"Mobilization of Workers Required for Stabilization Period (from southern communities)","Assume two rotations per worker, 30% from northern communities and 70% from southern communities. Mobilization from the south is $85.45/person days on site, and from the north $75/person-days on site (Ref 1).","person-days",null,"15SWS",85.45,{"$f":"G11*E11","v":0}]
[null,"Mobilization of caretakers","Assume mobilize from the north","person-days",null,"15NWS",75,0]
[null,"Camp accomodations- stabilization period","15 workers for 56 days","person-days",null,"15WACS",225,0]
[null,"Camp accomodations for caretakers","18 month duration full time","person-days",null,"15WACS",225,0]
[null,"Equipment - site stabilizaiton","Assume 1 dozer, 56 days, 10 hr/day","hr",null,"15BES",125,0]
[null,"misc. supplies",null,"allow",null,"accmh",0,{"$f":"G16*E16","v":0}]
[null,"pick-up truck",null,"each",null,{"$f":"NA()","v":{"$error":"#N/A"}},0,0]
[null,"small dozer",null,"allow",null,{"$f":"NA()","v":{"$error":"#N/A"}},0,0]
[null,"small excavator",null,"allow",null,{"$f":"NA()","v":{"$error":"#N/A"}},0,0]
[null,"snow machine",null,"allow",null,{"$f":"NA()","v":{"$error":"#N/A"}},0,0]
[null,"communications",null,"allow",null,{"$f":"NA()","v":{"$error":"#N/A"}},0,0]
[null,"SNP/AEMP water sampling & reporting",null,"each",null,"15MCWL",30000,0]
[null,"geotechnical assessment",null,"each",null,"15GTS",20000,0]
[null,"environmental assessment","Assumes spending 1st year budget for this type of activity for interim care","each",null,"RPTH",20000,{"$f":"G24*E24","v":0}]
[null,"interim water treatment",null,null,null,{"$f":"NA()","v":{"$error":"#N/A"}},null,{"$f":"AnnualTreat1Cost","v":1E-4}]
[null,"other",null,"each",null,{"$f":"NA()","v":{"$error":"#N/A"}},0,0]
[null,null,null,null,null,null,"18 Month Interim C&M Cost",{"$f":"SUM(H5:H26)","v":1E-4}]
[null,"Number of years of ICM",null,"years",1.5,null,"Total",{"$f":"H27","v":1E-4}]

{"sheet":"PostClosure","index":10,"n_rows":39,"n_cols":8,"rows_kept":39,"cut":false,"hidden":false,"merged":[[4,2,12,2],[14,2,15,2]]}
[1,"Post-Closure Monitoring &  Maintenance:"]
[]
[null,"ACTIVITY/MATERIAL","Notes","Units","Quantity","Cost Code","Unit Cost","Cost"]
[null,"MONITORING & INSPECTIONS"]
[null,"Short Term Temporary Care and Maintenance Program","2019 estimate (See section 3.3.2.6 of 2019 Marginal Estimate)","LS",1,{"$f":"NA()","v":{"$error":"#N/A"}},200000,{"$f":"G5*E5","v":200000}]
[null,"Annual geotechnical inspection",null,"LS",1,{"$f":"NA()","v":{"$error":"#N/A"}},{"$f":"240000-40000","v":200000},200000]
[null,"Permitting",null,"LS",1,{"$f":"NA()","v":{"$error":"#N/A"}},{"$f":"300000-80000","v":220000},220000]
[null,"Socio-economic reporting",null,"LS",1,{"$f":"NA()","v":{"$error":"#N/A"}},320000,320000]
[null,"Aquatic monitoring Program ",null,"LS",1,{"$f":"NA()","v":{"$error":"#N/A"}},{"$f":"1250000-800000","v":450000},450000]
[null,"Environmental Effects Monitoring Program",null,"LS",1,{"$f":"NA()","v":{"$error":"#N/A"}},{"$f":"325000-40000","v":285000},285000]
[null,"Post-Closure fauna and Flora monitoring. Terrestrial Program",null,"LS",1,{"$f":"NA()","v":{"$error":"#N/A"}},1000000,1000000]
[null,"Marine Monitoring",null,"LS",1,{"$f":"NA()","v":{"$error":"#N/A"}},{"$f":"600000-480000","v":120000},120000]
[null,"Air Quality Monitoring Program (AQMP)",null,"LS",1,{"$f":"NA()","v":{"$error":"#N/A"}},{"$f":"270000-60000","v":210000},210000]
[null,"Wildlife Effects Monitoring Program (WEMP)","Assume  sampling events specified  year 1 to  5.","each",null,"RPTH",40625,0]
[null,"Safety compliance inspection","2019 estimate (See section 3.3.2.6 of 2019 Marginal Estimate)","LS",1,{"$f":"NA()","v":{"$error":"#N/A"}},185000,185000]
[null,"Project Environmental Assessment",null,"LS",1,{"$f":"NA()","v":{"$error":"#N/A"}},{"$f":"300000-60000","v":240000},{"$f":"G16*E16","v":240000}]
[null,"COVER MAINTENANCE"]
[null,"Maintenance Allowance","Short term care and maintenance","year",null,"15MCAL",100000,{"$f":"G18*E18","v":0}]
[null,"Repair erosion - infill gullies",null,"allow",null,{"$f":"NA()","v":{"$error":"#N/A"}},{"$f":"IF(ISNA(F19),0,INDEX(IF(UPPER(RIGHT(F19,1))=Low,UnitCostLow, IF(UPPER(RIGHT(F19,1))=High,UnitCostHigh,UnitCostSpecified)),MATCH(UPPER(LEFT(F19,LEN(F19)-1)),CostCode,0)))","v":0},0]
[null,"Repair erosion - upgrade diversion ditches",null,"allow",null,{"$f":"NA()","v":{"$error":"#N/A"}},0,0]
[null,"Remove problem vegetation",null,"allow",null,{"$f":"NA()","v":{"$error":"#N/A"}},0,0]
[null,"Repair animal damage",null,"allow",null,{"$f":"NA()","v":{"$error":"#N/A"}},0,0]
[null,"Repair/upgrade access controls",null,"allow",null,{"$f":"NA()","v":{"$error":"#N/A"}},0,0]
[null,"Other",null,null,null,{"$f":"NA()","v":{"$error":"#N/A"}},0,0]
[null,"SPILLWAY MAINTENANCE"]
[null,"Repair erosion",null,"m3",null,{"$f":"NA()","v":{"$error":"#N/A"}},0,0]
[null,"Clear spillway",null,"each",null,{"$f":"NA()","v":{"$error":"#N/A"}},0,{"$f":"G27*E27","v":0}]
[null,"CWTS MAINTENANCE"]
[null,"Maintain flow, restore vegetation",null,"allow",null,{"$f":"NA()","v":{"$error":"#N/A"}},{"$f":"IF(ISNA(F29),0,INDEX(IF(UPPER(RIGHT(F29,1))=Low,UnitCostLow, IF(UPPER(RIGHT(F29,1))=High,UnitCostHigh,UnitCostSpecified)),MATCH(UPPER(LEFT(F29,LEN(F29)-1)),CostCode,0)))","v":0},{"$f":"G29*E29","v":0}]
[null,"POST-CLOSURE WATER TREATMENT"]
[null,"water treatment - refer to water treatment tab",null,null,null,"wt tab",{"$f":"AnnualTreat1Cost","v":1E-4},{"$f":"G31*E31","v":0}]
[]
[null,"Subtotal, Annual post-closure costs ",null,null,null,null,null,{"$f":"SUM(H5:H32)+0.0001","v":3430000.0000999998}]
[]
[null,"Discount rate for calculation of net present value of post-closure cost, %",null,null,null,0]
[null,"Number of years of post-closure activity",null,null,null,null,"years"]
[null,"Present Value of payment stream",null,null,null,null,null,{"$f":"PV(DiscountRate,PCYears/8, PCAnnualTotal)*-1","v":0}]
[]
[null,"*Regulatory costs - annual reporting, management plans, progress reports etc."]

{"sheet":"Mobilization","index":11,"n_rows":85,"n_cols":14,"rows_kept":85,"cut":false,"hidden":false,"merged":[[78,2,79,2],[63,2,68,2],[13,1,15,1]]}
[1,"Mobilization/Demobilization:"]
[]
[null,"ACTIVITY/MATERIAL","Notes","Units","Quantity","Cost Code","Unit Cost","Cost"]
[null,"MOBILIZE HEAVY EQUIPMENT"]
[null,"Excavators",null,"km",null,{"$f":"NA()","v":{"$error":"#N/A"}},{"$f":"IF(ISNA(F5),0,INDEX(IF(UPPER(RIGHT(F5,1))=Low,UnitCostLow, IF(UPPER(RIGHT(F5,1))=High,UnitCostHigh,UnitCostSpecified)),MATCH(UPPER(LEFT(F5,LEN(F5)-1)),CostCode,0)))","v":0},{"$f":"G5*E5","v":0}]
[null,"Dump trucks",null,"km",null,{"$f":"NA()","v":{"$error":"#N/A"}},0,0]
[null,"Dozers",null,"km",null,{"$f":"NA()","v":{"$error":"#N/A"}},0,0]
[null,"Demolition shears",null,"km",null,{"$f":"NA()","v":{"$error":"#N/A"}},0,0]
[null,"Crane",null,"km",null,{"$f":"NA()","v":{"$error":"#N/A"}},0,0]
[null,"Loader",null,"km",null,{"$f":"NA()","v":{"$error":"#N/A"}},0,0]
[null,"Compactor",null,"km",null,{"$f":"NA()","v":{"$error":"#N/A"}},0,0]
[null,"Light duty vehicles",null,"km",null,{"$f":"NA()","v":{"$error":"#N/A"}},0,0]
[null,"MOBILIZE MISC. EQUIPMENT"]
[null,"Mobilization and Demobilization of Equipment and Materials Required for Reclamation (2019)","2019 estimate (See section 3.3.2.5 of 2019 Marginal Estimate) Assumed 10% of marginal 2019 Estimate Direct costs","LS",1,{"$f":"NA()","v":{"$error":"#N/A"}},{"$f":"0.1*Summary!$D$14","v":1066166.1625653347},{"$f":"G14*E14","v":1066166.1625653347}]
[null,null,"2019 estimate (Phase 2 Expansion Project Materials and Equipment see table 3-7 of 2019 Marginal Estimate)","LS",1,{"$f":"NA()","v":{"$error":"#N/A"}},15592000,15592000]
[null,null,"2019 estimate (Demob. Of hazardous waste materials associated with the Water Treatment Plant at the WRF)","LS",1,{"$f":"NA()","v":{"$error":"#N/A"}},13300,13300]
[null,"Mobilization and Demobilization of Equipment and Materials by Sealift",null,"LS",null,null,2180000,0]
[null,"Mobilization and Demobilization of Equipment and Materials for 2018 Work Plan addendum","Assumed 10% of marginal 2017 Work Plan Addendum Direct costs(minus Soil and Water management and ICM components) i.e., $5,554,000 from BIMC 2018 Marginal Summary Worksheet. ","LS",null,{"$f":"NA()","v":{"$error":"#N/A"}},555400,0]
[null,"Mobilization and Demobilization of Equipment and Materials for 2018 Work Plan","Assumed 10% of marginal 2018 Work Plan Direct costs(minus Soil and Water management and ICM components) i.e., $2,600,700 from BIMC 2018 Marginal Summary Worksheet. ","LS",null,{"$f":"NA()","v":{"$error":"#N/A"}},{"$f":"2600700*0.1","v":260070},0]
[null,"Off-site Disposal of Waste ","Ref 1 pg 59","m3",null,"15ODS",358,0]
[null,"Consumables (2018 Work Plan marginal increase)","2018 Work Plan addendum (table 3-7) increases this to a 800 person and 50 person camp structures at the Mine Site and a 380 person camp at Milne Port","Ea",null,"15CONS",700.8,{"$f":"G21*E21","v":0}]
[null,"Consumables","Cost to remove consumables delivered to site in 2015 (lubricants, grease, detergents, boosters, EZ Dets, dry goods, food, household supplies, etc.) (2015 Security Assessment, pg 18).","Ea",null,"15CONS",700.8,0,null,null,null,null,null,{"$f":"N19-N21","v":0}]
[null,"Truck tires ",null,"allow",null,{"$f":"NA()","v":{"$error":"#N/A"}},{"$f":"IF(ISNA(F23),0,INDEX(IF(UPPER(RIGHT(F23,1))=Low,UnitCostLow, IF(UPPER(RIGHT(F23,1))=High,UnitCostHigh,UnitCostSpecified)),MATCH(UPPER(LEFT(F23,LEN(F23)-1)),CostCode,0)))","v":0},{"$f":"G23*E23","v":0}]
[null,"Other",null,null,null,{"$f":"NA()","v":{"$error":"#N/A"}},{"$f":"IF(ISNA(F24),0,INDEX(IF(UPPER(RIGHT(F24,1))=Low,UnitCostLow, IF(UPPER(RIGHT(F24,1))=High,UnitCostHigh,UnitCostSpecified)),MATCH(UPPER(LEFT(F24,LEN(F24)-1)),CostCode,0)))","v":0},{"$f":"G24*E24","v":0}]
[null,"MOBILIZE CAMP"]
[null,null,null,null,null,"accml",0,{"$f":"G26*E26","v":0}]
[]
[]
[]
[]
[null,null,null,null,null,{"$f":"NA()","v":{"$error":"#N/A"}},{"$f":"IF(ISNA(F31),0,INDEX(IF(UPPER(RIGHT(F31,1))=Low,UnitCostLow, IF(UPPER(RIGHT(F31,1))=High,UnitCostHigh,UnitCostSpecified)),MATCH(UPPER(LEFT(F31,LEN(F31)-1)),CostCode,0)))","v":0},{"$f":"G31*E31","v":0}]
[null,null,null,null,null,{"$f":"NA()","v":{"$error":"#N/A"}},{"$f":"IF(ISNA(F32),0,INDEX(IF(UPPER(RIGHT(F32,1))=Low,UnitCostLow, IF(UPPER(RIGHT(F32,1))=High,UnitCostHigh,UnitCostSpecified)),MATCH(UPPER(LEFT(F32,LEN(F32)-1)),CostCode,0)))","v":0},{"$f":"G32*E32","v":0}]
[null,"MOBILIZE WORKERS"]
[null,"Mobilization of Workers Required for Reclamation (from northern communities, 2018 Work Plan ","Person-hours required to complete direct cost reclamation activities (10-h person-days) ","person-days",null,"15NWS",75,{"$f":"G34*E34","v":0}]
[null,"Mobilization of Workers Required for Reclamation (from southern communities, 2018 Work Plan","Person-hours required to complete direct cost reclamation activities (10-h person-days) ","person-days",null,"15SWS",85.45,{"$f":"G35*E35","v":0}]
[null,"Mobilization of Workers Required for Reclamation (from northern communities, ","2019 estimate (See section 3.3.2.3 of 2019 Marginal Estimate)","person-days",1594,"15NWS",75,{"$f":"G36*E36","v":119550}]
[null,"Mobilization of Workers Required for Reclamation (from southern communities, ","2019 estimate (See section 3.3.2.3 of 2019 Marginal Estimate)","person-days",3719,"15SWS",85.45,{"$f":"G37*E37","v":317788.55}]
[null,"Mobilization of Workers Required for Reclamation (from northern communities, 2016 Work Plan)","Person-hours required to complete direct cost reclamation activities (10-h person-days) (pg 63, Ref 1).","person-days",null,"15NWS",75,0]
[null,"Mobilization of Workers Required for Reclamation (from southern communities, 2016 Work Plan)","Person-hours required to complete direct cost reclamation activities (10-h person-days) (pg 63, Ref 1).","person-days",null,"15SWS",85.45,{"$f":"G39*E39","v":0}]
[null,"Mobilization of Workers Required for Reclamation (2014 Work Plan)","Person-hours required to complete direct cost reclamation activities (10-h person-days) (pg 63, Ref 1). Based on a blended unit rate of $82.315, which assumes 70% of hires from southern communities at a rate of $85.45/ person-day, and 30% from northern communities at $75/ person-day.","man  hours",null,null,82.32,{"$f":"G40*E40","v":0}]
[null,"Mobilization of Workers Required for Reclamation (2015 Work Plan)","Person-hours required to complete direct cost reclamation activities (10-h person-days) (pg 63, Ref 1). Based on a blended unit rate of $82.315, which assumes 70% of hires from southern communities at a rate of $85.45/ person-day, and 30% from northern communities at $75/ person-day.","each",null,null,82.32,{"$f":"G41*E41","v":0}]
[null,"Mobilization of Workers Required for Reclamation (2015 A Work Plan)","Person-hours required to complete direct cost reclamation activities (10-h person-days) (pg 63, Ref 1). Based on a blended unit rate of $82.315, which assumes 70% of hires from southern communities at a rate of $85.45/ person-day, and 30% from northern communities at $75/ person-day.","each",null,null,82.32,{"$f":"G42*E42","v":0}]
[null," WORKER ACCOMODATIONS"]
[null,"Worker Accommodation & Camp Operation","2019 estimate (See section 3.3.2.4 of 2019 Marginal Estimate)","person-days",5312,"15WACS",225,{"$f":"G44*E44","v":1195200}]
[null,"Worker Accommodation & Camp Operation","For the Post-Closure Monitorong and Reporting System (from 2016 Work Plan)","person-days",null,"15WACS",225,{"$f":"G45*E45","v":0}]
[null,"Worker Accommodation & Camp Operation (2018 Work Plan)","For marginal reclamation activities (3190 person-days) associated with 2018 Work Plan (Page 13 of Marginal Estimate). Includes maintenance, catering,, housekeeping & fuel costs.","person-days",null,"15WACS",225.5,{"$f":"G46*E46","v":0}]
[null,"Worker Accommodation & Camp Operation (2017 Work Plan addendum)","For marginal reclamation activities (2145 person-days) associated with 2017 Work Plan addendum. Includes maintenance, catering,, housekeeping & fuel costs.","person-days",null,"15WACS",225.5,0]
[null,"Long term reclamation activities (eg pump flooding)",null,"person-days",null,"15WACS",225.5,0]
[null,"Worker Accommodation & Camp Operation (2019 Marginal estimate)","Page 16 in FSE","person-days",null,"15WACS",225.5,0]
[null,"MOBILIZE FUEL"]
[null,"Demobilization of Existing Fuel and/or Fuel Required for Reclamation ","Represents the fuel mobilization cost associated with the 2014 Work Plan as provided in Oct 30, 2015 EBS","$",null,{"$f":"NA()","v":{"$error":"#N/A"}},1,{"$f":"G51*E51","v":0}]
[null,"Demobilization of Existing Fuel and/or Fuel Required for Reclamation ","Represents marginal increase in fuel for 2015 provided in Oct 30, 2015 EBS","$",null,{"$f":"NA()","v":{"$error":"#N/A"}},1,{"$f":"G52*E52","v":0}]
[null,"Demobilization of Existing Fuel and/or Fuel Required for Reclamation ","Represents marginal increase in fuel for the 2015 Addendum provided in September 23rd, 2015 EBS","$",null,{"$f":"NA()","v":{"$error":"#N/A"}},1,0]
[null,"Demobilization of Existing Fuel and/or Fuel Required for Reclamation ","Represents marginal increase in fuel for 2015 R  provided in September 23rd, 2015 EBS","$",null,{"$f":"NA()","v":{"$error":"#N/A"}},1,0]
[null,"Fuel Required for Reclamation (2016 Work Plan)","Ref 1, pg 61","litre",null,"15MF1S",0.4,{"$f":"G55*E55","v":0}]
[null,"Fuel Required for Reclamation (2017 Work Plan Addendum)","2017 Work Plan Addendum page 8. Mobilize 50% of fuel required.  Reclamation activities for Marginal increase = 1,144,276L.  Heat & power = 116L per 2145 person days x $0.40/L for mobilization.  Fuel cost be captured under Worker Accom. & Camp Operation. Correction made to $1,213,000 per EBS not $1,216,000 as noted in the addendum. BIMC information does not clarify how the volume of fuel was derived so cost provided used to back out a volume of fuel.","litre",null,"15MF1S",0.4,{"$f":"G56*E56","v":0}]
[null,"Fuel Required for Reclamation (2018 Work Plan)","2018 Work Plan page 13. Mobilize 50% of fuel required.  Reclamation activities for Marginal increase = 638,170L.  Heat & power = 116L per 3190 person days x $0.40/L for mobilization.  Fuel cost be captured under Worker Accom. & Camp Operation. ","litre",null,"15MF1S",0.4,{"$f":"G57*E57","v":0}]
[null,"Fuel Required for Reclamation (2019)","2019 estimate (See section 3.3.2.1 of 2019 Marginal Estimate)","litre",614000,"15MF1S",0.4,{"$f":"G58*E58","v":245600}]
[null,"WINTER ROAD"]
[null,"Construction and operation",null,"km",null,{"$f":"NA()","v":{"$error":"#N/A"}},{"$f":"IF(ISNA(F60),0,INDEX(IF(UPPER(RIGHT(F60,1))=Low,UnitCostLow, IF(UPPER(RIGHT(F60,1))=High,UnitCostHigh,UnitCostSpecified)),MATCH(UPPER(LEFT(F60,LEN(F60)-1)),CostCode,0)))","v":0},{"$f":"G60*E60","v":0}]
[null,"Limited winter use",null,"km",null,{"$f":"NA()","v":{"$error":"#N/A"}},{"$f":"IF(ISNA(F61),0,INDEX(IF(UPPER(RIGHT(F61,1))=Low,UnitCostLow, IF(UPPER(RIGHT(F61,1))=High,UnitCostHigh,UnitCostSpecified)),MATCH(UPPER(LEFT(F61,LEN(F61)-1)),CostCode,0)))","v":0},{"$f":"G61*E61","v":0}]
[null,"Winter road tarriff",null,"km",null,{"$f":"NA()","v":{"$error":"#N/A"}},{"$f":"IF(ISNA(F62),0,INDEX(IF(UPPER(RIGHT(F62,1))=Low,UnitCostLow, IF(UPPER(RIGHT(F62,1))=High,UnitCostHigh,UnitCostSpecified)),MATCH(UPPER(LEFT(F62,LEN(F62)-1)),CostCode,0)))","v":0},{"$f":"G62*E62","v":0}]
[null,"DEMOBILIZE HEAVY EQUIPMENT (includes disassembly, demob as well as worker accommodations and mob/demob)"]
[null,"fuel","Marginal estimate  (see Table 3-7 in Marginal Estimate)","lot",null,"EBS",1736000,{"$f":"G64*E64","v":0}]
[null,"Crushing Module",null,"lot",null,"EBS",1500000,0]
[null,"Screening Module",null,"lot",null,"EBS",2260000,0]
[null,"Car Dumper Module",null,"lot",null,"EBS",1680000,0]
[null,"BMH Conveyors",null,"lot",null,"EBS",3391000,0]
[null,"Rail Construction Materials",null,"lot",null,"EBS",1230000,0]
[null,"Loader",null,"lot",null,"mherh",1230000,{"$f":"G70*E70","v":0}]
[null,"Compactor",null,"lot",null,{"$f":"NA()","v":{"$error":"#N/A"}},1230000,{"$f":"G71*E71","v":0}]
[null,"Light duty vehicles",null,"lot",null,"mherl",1230000,0]
[null,"Shiploader module",null,"lot",null,"EBS",5535000,0]
[null,"DEMOBILIZE FUEL"]
[null,"Fuel Required for Reclamation (2019)","2019 estimate (See section 3.3.2.1 of 2019 Marginal Estimate)","litre",15000000,"15MF1S",0.1,{"$f":"G75*E75","v":1500000}]
[null,"DEMOBILIZE CAMP"]
[null,null,null,"allow",null,{"$f":"NA()","v":{"$error":"#N/A"}},{"$f":"IF(ISNA(F77),0,INDEX(IF(UPPER(RIGHT(F77,1))=Low,UnitCostLow, IF(UPPER(RIGHT(F77,1))=High,UnitCostHigh,UnitCostSpecified)),MATCH(UPPER(LEFT(F77,LEN(F77)-1)),CostCode,0)))","v":0},{"$f":"G77*E77","v":0}]
[null,"DEMOBILIZE WORKERS"]
[null,"crew travel time","cost in mobilization of workers.","mandays",null,{"$f":"NA()","v":{"$error":"#N/A"}},{"$f":"IF(ISNA(F79),0,INDEX(IF(UPPER(RIGHT(F79,1))=Low,UnitCostLow, IF(UPPER(RIGHT(F79,1))=High,UnitCostHigh,UnitCostSpecified)),MATCH(UPPER(LEFT(F79,LEN(F79)-1)),CostCode,0)))","v":0},{"$f":"G79*E79","v":0}]
[null,"crew transportation",null,"each",null,{"$f":"NA()","v":{"$error":"#N/A"}},{"$f":"IF(ISNA(F80),0,INDEX(IF(UPPER(RIGHT(F80,1))=Low,UnitCostLow, IF(UPPER(RIGHT(F80,1))=High,UnitCostHigh,UnitCostSpecified)),MATCH(UPPER(LEFT(F80,LEN(F80)-1)),CostCode,0)))","v":0},{"$f":"G80*E80","v":0}]
[null,"WINTER ROAD"]
[null,"Construction and operation",null,"km",null,"wrcl",{"$f":"IF(ISNA(F82),0,INDEX(IF(UPPER(RIGHT(F82,1))=Low,UnitCostLow, IF(UPPER(RIGHT(F82,1))=High,UnitCostHigh,UnitCostSpecified)),MATCH(UPPER(LEFT(F82,LEN(F82)-1)),CostCode,0)))","v":2000},{"$f":"G82*E82","v":0}]
[null,"Limited winter use",null,"km",null,{"$f":"NA()","v":{"$error":"#N/A"}},{"$f":"IF(ISNA(F83),0,INDEX(IF(UPPER(RIGHT(F83,1))=Low,UnitCostLow, IF(UPPER(RIGHT(F83,1))=High,UnitCostHigh,UnitCostSpecified)),MATCH(UPPER(LEFT(F83,LEN(F83)-1)),CostCode,0)))","v":0},{"$f":"G83*E83","v":0}]
[null,"Winter road tarriff",null,"tonnekm",null,"wrul",{"$f":"IF(ISNA(F84),0,INDEX(IF(UPPER(RIGHT(F84,1))=Low,UnitCostLow, IF(UPPER(RIGHT(F84,1))=High,UnitCostHigh,UnitCostSpecified)),MATCH(UPPER(LEFT(F84,LEN(F84)-1)),CostCode,0)))","v":0.28999999999999998},{"$f":"G84*E84","v":0}]
[null,null,null,null,null,null,"Total",{"$f":"SUM(H5:H84)+0.0001","v":20049604.712665338}]

{"sheet":"UG Mine","index":12,"n_rows":43,"n_cols":11,"rows_kept":43,"cut":false,"hidden":false,"merged":[]}
[1,"Underground Mine Name",null,null,null,null,"UG Mine #",1]
[]
[null,"ACTIVITY/MATERIAL","Notes","Unit","Qty","Cost Code","Unit Cost","Cost","% Land","Land Cost","Water Cost"]
[null,"CONTROL ACCESS"]
[null,"Fence",null,"m",null,{"$f":"NA()","v":{"$error":"#N/A"}},{"$f":"IF(ISNA(F5),0,INDEX(IF(UPPER(RIGHT(F5,1))=Low,UnitCostLow, IF(UPPER(RIGHT(F5,1))=High,UnitCostHigh,UnitCostSpecified)),MATCH(UPPER(LEFT(F5,LEN(F5)-1)),CostCode,0)))","v":0},{"$f":"G5*E5","v":0},null,{"$f":"H5*I5","v":0},{"$f":"H5*(1-I5)","v":0}]
[null,"Signs",null,"each",null,{"$f":"NA()","v":{"$error":"#N/A"}},0,0,null,{"$f":"H6*I6","v":0},{"$f":"H6*(1-I6)","v":0}]
[null,"Block roads",null,"m3",null,{"$f":"NA()","v":{"$error":"#N/A"}},0,{"$f":"G7*E7","v":0},null,0,0]
[null,"Berm",null,"m3",null,{"$f":"NA()","v":{"$error":"#N/A"}},0,0,null,0,0]
[null,"Concrete wall in  portals",null,"m3",null,{"$f":"NA()","v":{"$error":"#N/A"}},0,0,null,{"$f":"H9*I9","v":0},{"$f":"H9*(1-I9)","v":0}]
[null,"Backfill portal #1",null,"m3",null,"RR4",7.6,0,1,0,0]
[null,"Backfill portal #2",null,"m3",null,{"$f":"NA()","v":{"$error":"#N/A"}},0,0,null,0,0]
[null,"Cap raise - 5 total",null,"each",null,{"$f":"NA()","v":{"$error":"#N/A"}},85656,0,1,0,0]
[null,"Cap raise #2",null,"m3",null,{"$f":"NA()","v":{"$error":"#N/A"}},0,0,null,0,0]
[null,"Cap shaft #1",null,"m3",null,{"$f":"NA()","v":{"$error":"#N/A"}},0,0,null,0,0]
[null,"Cap shaft #2",null,"m3",null,{"$f":"NA()","v":{"$error":"#N/A"}},0,0,null,0,0]
[null,"Backfill adits",null,"m3",null,{"$f":"NA()","v":{"$error":"#N/A"}},0,0,null,{"$f":"H16*I16","v":0},{"$f":"H16*(1-I16)","v":0}]
[null,"Backfill open stope",null,"m3",null,"sc3h",14.2,0,1,0,0]
[null,"Concrete cap over open stope",null,"m3",null,{"$f":"NA()","v":{"$error":"#N/A"}},0,0,null,0,0]
[null,"Other - crown pillar study",null,"LS",null,{"$f":"NA()","v":{"$error":"#N/A"}},25000,0,1,0,0]
[null,"REMOVE HAZARDOUS MATERIALS"]
[null,"Remove hazardous materials, U/G labor",null,"mandays",null,{"$f":"NA()","v":{"$error":"#N/A"}},500,{"$f":"G21*E21","v":0},0.5,{"$f":"H21*I21","v":0},{"$f":"H21*(1-I21)","v":0}]
[null,"Remove/decontam. stationary & elect. equip",null,"mandays",null,{"$f":"NA()","v":{"$error":"#N/A"}},{"$f":"IF(ISNA(F22),0,INDEX(IF(UPPER(RIGHT(F22,1))=Low,UnitCostLow, IF(UPPER(RIGHT(F22,1))=High,UnitCostHigh,UnitCostSpecified)),MATCH(UPPER(LEFT(F22,LEN(F22)-1)),CostCode,0)))","v":0},{"$f":"G22*E22","v":0},null,{"$f":"H22*I22","v":0},{"$f":"H22*(1-I22)","v":0}]
[null,"Remove/decontam. mobile equipment",null,"each",null,{"$f":"NA()","v":{"$error":"#N/A"}},{"$f":"IF(ISNA(F23),0,INDEX(IF(UPPER(RIGHT(F23,1))=Low,UnitCostLow, IF(UPPER(RIGHT(F23,1))=High,UnitCostHigh,UnitCostSpecified)),MATCH(UPPER(LEFT(F23,LEN(F23)-1)),CostCode,0)))","v":0},{"$f":"G23*E23","v":0},null,{"$f":"H23*I23","v":0},{"$f":"H23*(1-I23)","v":0}]
[null,"Remove misc. haz. mat & explosives",null,"kg",null,{"$f":"NA()","v":{"$error":"#N/A"}},{"$f":"IF(ISNA(F24),0,INDEX(IF(UPPER(RIGHT(F24,1))=Low,UnitCostLow, IF(UPPER(RIGHT(F24,1))=High,UnitCostHigh,UnitCostSpecified)),MATCH(UPPER(LEFT(F24,LEN(F24)-1)),CostCode,0)))","v":0},{"$f":"G24*E24","v":0},null,{"$f":"H24*I24","v":0},{"$f":"H24*(1-I24)","v":0}]
[null,"Other",null,null,null,{"$f":"NA()","v":{"$error":"#N/A"}},{"$f":"IF(ISNA(F25),0,INDEX(IF(UPPER(RIGHT(F25,1))=Low,UnitCostLow, IF(UPPER(RIGHT(F25,1))=High,UnitCostHigh,UnitCostSpecified)),MATCH(UPPER(LEFT(F25,LEN(F25)-1)),CostCode,0)))","v":0},{"$f":"G25*E25","v":0},null,{"$f":"H25*I25","v":0},{"$f":"H25*(1-I25)","v":0}]
[null,"INSTALL BULKHEADS"]
[null,"Bulkheads to control water flow",null,"each",null,{"$f":"NA()","v":{"$error":"#N/A"}},{"$f":"IF(ISNA(F27),0,INDEX(IF(UPPER(RIGHT(F27,1))=Low,UnitCostLow, IF(UPPER(RIGHT(F27,1))=High,UnitCostHigh,UnitCostSpecified)),MATCH(UPPER(LEFT(F27,LEN(F27)-1)),CostCode,0)))","v":0},{"$f":"G27*E27","v":0},null,{"$f":"H27*I27","v":0},{"$f":"H27*(1-I27)","v":0}]
[null,"Grout bulkhead",null,"m3",null,{"$f":"NA()","v":{"$error":"#N/A"}},{"$f":"IF(ISNA(F28),0,INDEX(IF(UPPER(RIGHT(F28,1))=Low,UnitCostLow, IF(UPPER(RIGHT(F28,1))=High,UnitCostHigh,UnitCostSpecified)),MATCH(UPPER(LEFT(F28,LEN(F28)-1)),CostCode,0)))","v":0},{"$f":"G28*E28","v":0},null,{"$f":"H28*I28","v":0},{"$f":"H28*(1-I28)","v":0}]
[null,"FLOOD MINE"]
[null,"Supply/install pump",null,"each",null,{"$f":"NA()","v":{"$error":"#N/A"}},{"$f":"IF(ISNA(F30),0,INDEX(IF(UPPER(RIGHT(F30,1))=Low,UnitCostLow, IF(UPPER(RIGHT(F30,1))=High,UnitCostHigh,UnitCostSpecified)),MATCH(UPPER(LEFT(F30,LEN(F30)-1)),CostCode,0)))","v":0},{"$f":"G30*E30","v":0},null,0,0]
[null,"Supply/install piping system",null,"each",null,{"$f":"NA()","v":{"$error":"#N/A"}},{"$f":"IF(ISNA(F31),0,INDEX(IF(UPPER(RIGHT(F31,1))=Low,UnitCostLow, IF(UPPER(RIGHT(F31,1))=High,UnitCostHigh,UnitCostSpecified)),MATCH(UPPER(LEFT(F31,LEN(F31)-1)),CostCode,0)))","v":0},{"$f":"G31*E31","v":0},null,{"$f":"H31*I31","v":0},{"$f":"H31*(1-I31)","v":0}]
[null,"Operate pumps to flood workings",null,"m3",null,{"$f":"NA()","v":{"$error":"#N/A"}},{"$f":"IF(ISNA(F32),0,INDEX(IF(UPPER(RIGHT(F32,1))=Low,UnitCostLow, IF(UPPER(RIGHT(F32,1))=High,UnitCostHigh,UnitCostSpecified)),MATCH(UPPER(LEFT(F32,LEN(F32)-1)),CostCode,0)))","v":0},{"$f":"G32*E32","v":0},null,0,0]
[null,"Other",null,null,null,{"$f":"NA()","v":{"$error":"#N/A"}},{"$f":"IF(ISNA(F33),0,INDEX(IF(UPPER(RIGHT(F33,1))=Low,UnitCostLow, IF(UPPER(RIGHT(F33,1))=High,UnitCostHigh,UnitCostSpecified)),MATCH(UPPER(LEFT(F33,LEN(F33)-1)),CostCode,0)))","v":0},{"$f":"G33*E33","v":0},null,0,0]
[null,"INSTALL GROUNDWATER COLLECTION SYSTEM"]
[null,"Excavate/install sumps",null,"m2",null,{"$f":"NA()","v":{"$error":"#N/A"}},{"$f":"IF(ISNA(F35),0,INDEX(IF(UPPER(RIGHT(F35,1))=Low,UnitCostLow, IF(UPPER(RIGHT(F35,1))=High,UnitCostHigh,UnitCostSpecified)),MATCH(UPPER(LEFT(F35,LEN(F35)-1)),CostCode,0)))","v":0},{"$f":"G35*E35","v":0},null,{"$f":"H35*I35","v":0},{"$f":"+H35*(1-I35)","v":0}]
[null,"Install pumping wells",null,"m3",null,{"$f":"NA()","v":{"$error":"#N/A"}},{"$f":"IF(ISNA(F36),0,INDEX(IF(UPPER(RIGHT(F36,1))=Low,UnitCostLow, IF(UPPER(RIGHT(F36,1))=High,UnitCostHigh,UnitCostSpecified)),MATCH(UPPER(LEFT(F36,LEN(F36)-1)),CostCode,0)))","v":0},{"$f":"G36*E36","v":0},null,{"$f":"H36*I36","v":0},{"$f":"+H36*(1-I36)","v":0}]
[null,"Install pumps/pipelines/power supply",null,"LS",null,{"$f":"NA()","v":{"$error":"#N/A"}},{"$f":"IF(ISNA(F37),0,INDEX(IF(UPPER(RIGHT(F37,1))=Low,UnitCostLow, IF(UPPER(RIGHT(F37,1))=High,UnitCostHigh,UnitCostSpecified)),MATCH(UPPER(LEFT(F37,LEN(F37)-1)),CostCode,0)))","v":0},{"$f":"G37*E37","v":0},null,{"$f":"H37*I37","v":0},{"$f":"+H37*(1-I37)","v":0}]
[null,"SPECIALIZED ITEMS"]
[null,"Install water quality monitoring pipes",null,"each",null,{"$f":"NA()","v":{"$error":"#N/A"}},{"$f":"IF(ISNA(F39),0,INDEX(IF(UPPER(RIGHT(F39,1))=Low,UnitCostLow, IF(UPPER(RIGHT(F39,1))=High,UnitCostHigh,UnitCostSpecified)),MATCH(UPPER(LEFT(F39,LEN(F39)-1)),CostCode,0)))","v":0},{"$f":"G39*E39","v":0},null,{"$f":"H39*I39","v":0},0]
[null,"Install permanent pumping system",null,"each",null,{"$f":"NA()","v":{"$error":"#N/A"}},{"$f":"IF(ISNA(F40),0,INDEX(IF(UPPER(RIGHT(F40,1))=Low,UnitCostLow, IF(UPPER(RIGHT(F40,1))=High,UnitCostHigh,UnitCostSpecified)),MATCH(UPPER(LEFT(F40,LEN(F40)-1)),CostCode,0)))","v":0},{"$f":"G40*E40","v":0},null,{"$f":"H40*I40","v":0},0]
[null,"Other",null,null,null,{"$f":"NA()","v":{"$error":"#N/A"}},{"$f":"IF(ISNA(F41),0,INDEX(IF(UPPER(RIGHT(F41,1))=Low,UnitCostLow, IF(UPPER(RIGHT(F41,1))=High,UnitCostHigh,UnitCostSpecified)),MATCH(UPPER(LEFT(F41,LEN(F41)-1)),CostCode,0)))","v":0},{"$f":"G41*E41","v":0},null,{"$f":"H41*I41","v":0},0]
[null,null,null,null,null,null,"Total",{"$f":"SUM(H5:H41)+0.0001","v":1E-4},null,{"$f":"SUM(J5:J41)","v":0},{"$f":"SUM(K5:K41)","v":0}]
[null,null,null,null,null,null,"% of Total",null,null,{"$f":"J42/H42","v":0},{"$f":"K42/H42","v":0}]

{"sheet":"Tailings","index":13,"n_rows":80,"n_cols":11,"rows_kept":80,"cut":false,"hidden":false,"merged":[]}
[1,"Tailings Impoundment Name:",null,null,null,null,"Pond #",1]
[]
[null,"ACTIVITY/MATERIAL","Notes","Units","Quantity","Cost Code","Unit Cost","Cost","% Land","Land Cost","Water Cost"]
[null,"CONTROL ACCESS"]
[null,"Fence",null,"m",null,{"$f":"NA()","v":{"$error":"#N/A"}},{"$f":"IF(ISNA(F5),0,INDEX(IF(UPPER(RIGHT(F5,1))=Low,UnitCostLow, IF(UPPER(RIGHT(F5,1))=High,UnitCostHigh,UnitCostSpecified)),MATCH(UPPER(LEFT(F5,LEN(F5)-1)),CostCode,0)))","v":0},{"$f":"G5*E5","v":0},null,{"$f":"H5*I5","v":0},{"$f":"+H5*(1-I5)","v":0}]
[null,"Signs",null,"each",null,{"$f":"NA()","v":{"$error":"#N/A"}},{"$f":"IF(ISNA(F6),0,INDEX(IF(UPPER(RIGHT(F6,1))=Low,UnitCostLow, IF(UPPER(RIGHT(F6,1))=High,UnitCostHigh,UnitCostSpecified)),MATCH(UPPER(LEFT(F6,LEN(F6)-1)),CostCode,0)))","v":0},{"$f":"G6*E6","v":0},null,{"$f":"H6*I6","v":0},{"$f":"+H6*(1-I6)","v":0}]
[null,"Berm",null,"m3",null,{"$f":"NA()","v":{"$error":"#N/A"}},{"$f":"IF(ISNA(F7),0,INDEX(IF(UPPER(RIGHT(F7,1))=Low,UnitCostLow, IF(UPPER(RIGHT(F7,1))=High,UnitCostHigh,UnitCostSpecified)),MATCH(UPPER(LEFT(F7,LEN(F7)-1)),CostCode,0)))","v":0},{"$f":"G7*E7","v":0},null,0,0]
[null,"Block roads",null,"m3",null,{"$f":"NA()","v":{"$error":"#N/A"}},{"$f":"IF(ISNA(F8),0,INDEX(IF(UPPER(RIGHT(F8,1))=Low,UnitCostLow, IF(UPPER(RIGHT(F8,1))=High,UnitCostHigh,UnitCostSpecified)),MATCH(UPPER(LEFT(F8,LEN(F8)-1)),CostCode,0)))","v":0},{"$f":"G8*E8","v":0},null,0,0]
[null,"Other",null,null,null,{"$f":"NA()","v":{"$error":"#N/A"}},{"$f":"IF(ISNA(F9),0,INDEX(IF(UPPER(RIGHT(F9,1))=Low,UnitCostLow, IF(UPPER(RIGHT(F9,1))=High,UnitCostHigh,UnitCostSpecified)),MATCH(UPPER(LEFT(F9,LEN(F9)-1)),CostCode,0)))","v":0},{"$f":"G9*E9","v":0},null,0,0]
[null,"STABILIZE EMBANKMENT(S)"]
[null,"Toe buttress, drainage layer",null,"m3",null,{"$f":"NA()","v":{"$error":"#N/A"}},{"$f":"IF(ISNA(F11),0,INDEX(IF(UPPER(RIGHT(F11,1))=Low,UnitCostLow, IF(UPPER(RIGHT(F11,1))=High,UnitCostHigh,UnitCostSpecified)),MATCH(UPPER(LEFT(F11,LEN(F11)-1)),CostCode,0)))","v":0},{"$f":"G11*E11","v":0},null,0,0]
[null,"Toe buttress, bulk fill",null,"m3",null,{"$f":"NA()","v":{"$error":"#N/A"}},{"$f":"IF(ISNA(F12),0,INDEX(IF(UPPER(RIGHT(F12,1))=Low,UnitCostLow, IF(UPPER(RIGHT(F12,1))=High,UnitCostHigh,UnitCostSpecified)),MATCH(UPPER(LEFT(F12,LEN(F12)-1)),CostCode,0)))","v":0},0,null,0,0]
[null,"Rip rap",null,"m3",null,"RB2",{"$f":"Unit_Costs!G26","v":17.8},0,0.5,0,0]
[null,"Vegetate",null,"ha",null,{"$f":"NA()","v":{"$error":"#N/A"}},{"$f":"IF(ISNA(F14),0,INDEX(IF(UPPER(RIGHT(F14,1))=Low,UnitCostLow, IF(UPPER(RIGHT(F14,1))=High,UnitCostHigh,UnitCostSpecified)),MATCH(UPPER(LEFT(F14,LEN(F14)-1)),CostCode,0)))","v":0},0,null,0,0]
[null,"Raise crest",null,"m3",null,{"$f":"NA()","v":{"$error":"#N/A"}},{"$f":"IF(ISNA(F15),0,INDEX(IF(UPPER(RIGHT(F15,1))=Low,UnitCostLow, IF(UPPER(RIGHT(F15,1))=High,UnitCostHigh,UnitCostSpecified)),MATCH(UPPER(LEFT(F15,LEN(F15)-1)),CostCode,0)))","v":0},0,null,0,0]
[null,"Flatten slopes",null,"m3",null,{"$f":"NA()","v":{"$error":"#N/A"}},{"$f":"IF(ISNA(F16),0,INDEX(IF(UPPER(RIGHT(F16,1))=Low,UnitCostLow, IF(UPPER(RIGHT(F16,1))=High,UnitCostHigh,UnitCostSpecified)),MATCH(UPPER(LEFT(F16,LEN(F16)-1)),CostCode,0)))","v":0},0,null,0,0]
[null,"Other",null,null,null,{"$f":"NA()","v":{"$error":"#N/A"}},{"$f":"IF(ISNA(F17),0,INDEX(IF(UPPER(RIGHT(F17,1))=Low,UnitCostLow, IF(UPPER(RIGHT(F17,1))=High,UnitCostHigh,UnitCostSpecified)),MATCH(UPPER(LEFT(F17,LEN(F17)-1)),CostCode,0)))","v":0},0,null,0,0]
[null,"COVER TAILINGS"]
[null,"Grade/shape tailings surface",null,"m3",null,{"$f":"NA()","v":{"$error":"#N/A"}},{"$f":"IF(ISNA(F19),0,INDEX(IF(UPPER(RIGHT(F19,1))=Low,UnitCostLow, IF(UPPER(RIGHT(F19,1))=High,UnitCostHigh,UnitCostSpecified)),MATCH(UPPER(LEFT(F19,LEN(F19)-1)),CostCode,0)))","v":0},{"$f":"G19*E19","v":0},null,{"$f":"H19*I19","v":0},{"$f":"+H19*(1-I19)","v":0}]
[null,"Liner bedding",null,"m3",null,{"$f":"NA()","v":{"$error":"#N/A"}},0,{"$f":"G20*E20","v":0},null,{"$f":"H20*I20","v":0},{"$f":"+H20*(1-I20)","v":0}]
[null,"Subgrade preparation - compact",null,"m2",null,{"$f":"NA()","v":{"$error":"#N/A"}},0,{"$f":"G21*E21","v":0},null,{"$f":"H21*I21","v":0},{"$f":"+H21*(1-I21)","v":0}]
[null,"Supply geotextile/geosynthetic",null,"m2",null,{"$f":"NA()","v":{"$error":"#N/A"}},0,0,null,0,0]
[null,"Install geotextile/geosynthetic",null,"m2",null,{"$f":"NA()","v":{"$error":"#N/A"}},0,{"$f":"G23*E23","v":0},null,{"$f":"H23*I23","v":0},{"$f":"+H23*(1-I23)","v":0}]
[null,"Soil cover",null,"m3",null,"SC4L",9.3000000000000007,0,0.5,0,0]
[null,"Rock cover",null,"m3",null,{"$f":"NA()","v":{"$error":"#N/A"}},0,{"$f":"G25*E25","v":0},null,{"$f":"H25*I25","v":0},{"$f":"+H25*(1-I25)","v":0}]
[null,"Vegetate",null,"ha",null,"VHF",4000,0,0.5,0,0]
[null,"Other",null,"m3",null,"SC4L",{"$f":"IF(ISNA(F27),0,INDEX(IF(UPPER(RIGHT(F27,1))=Low,UnitCostLow, IF(UPPER(RIGHT(F27,1))=High,UnitCostHigh,UnitCostSpecified)),MATCH(UPPER(LEFT(F27,LEN(F27)-1)),CostCode,0)))","v":9.3000000000000007},{"$f":"G27*E27","v":0},0.5,{"$f":"H27*I27","v":0},{"$f":"+H27*(1-I27)","v":0}]
[null,"BURY PAG ROCK"]
[null,"Relocate PAG rock",null,"m3",null,{"$f":"NA()","v":{"$error":"#N/A"}},{"$f":"IF(ISNA(F29),0,INDEX(IF(UPPER(RIGHT(F29,1))=Low,UnitCostLow, IF(UPPER(RIGHT(F29,1))=High,UnitCostHigh,UnitCostSpecified)),MATCH(UPPER(LEFT(F29,LEN(F29)-1)),CostCode,0)))","v":0},{"$f":"G29*E29","v":0},null,0,0]
[null,"Place cover over PAG rock",null,"m3",null,{"$f":"NA()","v":{"$error":"#N/A"}},{"$f":"IF(ISNA(F30),0,INDEX(IF(UPPER(RIGHT(F30,1))=Low,UnitCostLow, IF(UPPER(RIGHT(F30,1))=High,UnitCostHigh,UnitCostSpecified)),MATCH(UPPER(LEFT(F30,LEN(F30)-1)),CostCode,0)))","v":0},{"$f":"G30*E30","v":0},null,0,0]
[null,"Raise crest of dam",null,"m3",null,{"$f":"NA()","v":{"$error":"#N/A"}},{"$f":"IF(ISNA(F31),0,INDEX(IF(UPPER(RIGHT(F31,1))=Low,UnitCostLow, IF(UPPER(RIGHT(F31,1))=High,UnitCostHigh,UnitCostSpecified)),MATCH(UPPER(LEFT(F31,LEN(F31)-1)),CostCode,0)))","v":0},{"$f":"G31*E31","v":0},null,0,0]
[null,"Other",null,null,null,{"$f":"NA()","v":{"$error":"#N/A"}},{"$f":"IF(ISNA(F32),0,INDEX(IF(UPPER(RIGHT(F32,1))=Low,UnitCostLow, IF(UPPER(RIGHT(F32,1))=High,UnitCostHigh,UnitCostSpecified)),MATCH(UPPER(LEFT(F32,LEN(F32)-1)),CostCode,0)))","v":0},{"$f":"G32*E32","v":0},null,0,0]
[null,"STABILIZE DECANT SYSTEM"]
[null,"Excavate and replace",null,"m3",null,{"$f":"NA()","v":{"$error":"#N/A"}},{"$f":"IF(ISNA(F34),0,INDEX(IF(UPPER(RIGHT(F34,1))=Low,UnitCostLow, IF(UPPER(RIGHT(F34,1))=High,UnitCostHigh,UnitCostSpecified)),MATCH(UPPER(LEFT(F34,LEN(F34)-1)),CostCode,0)))","v":0},{"$f":"G34*E34","v":0},null,{"$f":"H34*I34","v":0},{"$f":"+H34*(1-I34)","v":0}]
[null,"Plug/backfill with concrete or clay",null,"m3",null,{"$f":"NA()","v":{"$error":"#N/A"}},{"$f":"IF(ISNA(F35),0,INDEX(IF(UPPER(RIGHT(F35,1))=Low,UnitCostLow, IF(UPPER(RIGHT(F35,1))=High,UnitCostHigh,UnitCostSpecified)),MATCH(UPPER(LEFT(F35,LEN(F35)-1)),CostCode,0)))","v":0},{"$f":"G35*E35","v":0},null,{"$f":"H35*I35","v":0},{"$f":"+H35*(1-I35)","v":0}]
[null,"Other",null,null,null,{"$f":"NA()","v":{"$error":"#N/A"}},{"$f":"IF(ISNA(F36),0,INDEX(IF(UPPER(RIGHT(F36,1))=Low,UnitCostLow, IF(UPPER(RIGHT(F36,1))=High,UnitCostHigh,UnitCostSpecified)),MATCH(UPPER(LEFT(F36,LEN(F36)-1)),CostCode,0)))","v":0},{"$f":"G36*E36","v":0},null,{"$f":"H36*I36","v":0},{"$f":"+H36*(1-I36)","v":0}]
[null,"REMOVE TAILINGS DISCHARGE"]
[null,"Cyclones",null,"m3",null,{"$f":"NA()","v":{"$error":"#N/A"}},{"$f":"IF(ISNA(F38),0,INDEX(IF(UPPER(RIGHT(F38,1))=Low,UnitCostLow, IF(UPPER(RIGHT(F38,1))=High,UnitCostHigh,UnitCostSpecified)),MATCH(UPPER(LEFT(F38,LEN(F38)-1)),CostCode,0)))","v":0},{"$f":"G38*E38","v":0},null,{"$f":"H38*I38","v":0},{"$f":"+H38*(1-I38)","v":0}]
[null,"Pipe",null,"m",null,"ppls",57.33,{"$f":"G39*E39","v":0},null,{"$f":"H39*I39","v":0},{"$f":"+H39*(1-I39)","v":0}]
[null,"Remove reclaim barge",null,"allow",null,{"$f":"NA()","v":{"$error":"#N/A"}},{"$f":"IF(ISNA(F40),0,INDEX(IF(UPPER(RIGHT(F40,1))=Low,UnitCostLow, IF(UPPER(RIGHT(F40,1))=High,UnitCostHigh,UnitCostSpecified)),MATCH(UPPER(LEFT(F40,LEN(F40)-1)),CostCode,0)))","v":0},{"$f":"G40*E40","v":0},null,{"$f":"H40*I40","v":0},{"$f":"+H40*(1-I40)","v":0}]
[null,"CONSTRUCT DIVERSION DITCHES"]
[null,"Excavate ditches -soil",null,"m3",null,{"$f":"NA()","v":{"$error":"#N/A"}},{"$f":"IF(ISNA(F42),0,INDEX(IF(UPPER(RIGHT(F42,1))=Low,UnitCostLow, IF(UPPER(RIGHT(F42,1))=High,UnitCostHigh,UnitCostSpecified)),MATCH(UPPER(LEFT(F42,LEN(F42)-1)),CostCode,0)))","v":0},{"$f":"G42*E42","v":0},null,{"$f":"H42*I42","v":0},{"$f":"+H42*(1-I42)","v":0}]
[null,"Excavate ditches -rock",null,"m3",null,{"$f":"NA()","v":{"$error":"#N/A"}},{"$f":"IF(ISNA(F43),0,INDEX(IF(UPPER(RIGHT(F43,1))=Low,UnitCostLow, IF(UPPER(RIGHT(F43,1))=High,UnitCostHigh,UnitCostSpecified)),MATCH(UPPER(LEFT(F43,LEN(F43)-1)),CostCode,0)))","v":0},{"$f":"G43*E43","v":0},null,{"$f":"H43*I43","v":0},{"$f":"+H43*(1-I43)","v":0}]
[null,"Rip rap in channel base",null,"m3",null,{"$f":"NA()","v":{"$error":"#N/A"}},{"$f":"IF(ISNA(F44),0,INDEX(IF(UPPER(RIGHT(F44,1))=Low,UnitCostLow, IF(UPPER(RIGHT(F44,1))=High,UnitCostHigh,UnitCostSpecified)),MATCH(UPPER(LEFT(F44,LEN(F44)-1)),CostCode,0)))","v":0},{"$f":"G44*E44","v":0},null,{"$f":"H44*I44","v":0},{"$f":"+H44*(1-I44)","v":0}]
[null,"FLOOD TAILINGS"]
[null,"Doze tailings to final contour",null,"m3",null,{"$f":"NA()","v":{"$error":"#N/A"}},{"$f":"IF(ISNA(F46),0,INDEX(IF(UPPER(RIGHT(F46,1))=Low,UnitCostLow, IF(UPPER(RIGHT(F46,1))=High,UnitCostHigh,UnitCostSpecified)),MATCH(UPPER(LEFT(F46,LEN(F46)-1)),CostCode,0)))","v":0},{"$f":"G46*E46","v":0},null,0,0]
[null,"Raise crest of dam",null,"m3",null,{"$f":"NA()","v":{"$error":"#N/A"}},{"$f":"IF(ISNA(F47),0,INDEX(IF(UPPER(RIGHT(F47,1))=Low,UnitCostLow, IF(UPPER(RIGHT(F47,1))=High,UnitCostHigh,UnitCostSpecified)),MATCH(UPPER(LEFT(F47,LEN(F47)-1)),CostCode,0)))","v":0},{"$f":"G47*E47","v":0},null,0,0]
[null,"Other",null,null,null,{"$f":"NA()","v":{"$error":"#N/A"}},{"$f":"IF(ISNA(F48),0,INDEX(IF(UPPER(RIGHT(F48,1))=Low,UnitCostLow, IF(UPPER(RIGHT(F48,1))=High,UnitCostHigh,UnitCostSpecified)),MATCH(UPPER(LEFT(F48,LEN(F48)-1)),CostCode,0)))","v":0},{"$f":"G48*E48","v":0},null,0,0]
[null,"UPGRADE SPILLWAY"]
[null,"Excavate channel, rock",null,"m3",null,{"$f":"NA()","v":{"$error":"#N/A"}},{"$f":"IF(ISNA(F50),0,INDEX(IF(UPPER(RIGHT(F50,1))=Low,UnitCostLow, IF(UPPER(RIGHT(F50,1))=High,UnitCostHigh,UnitCostSpecified)),MATCH(UPPER(LEFT(F50,LEN(F50)-1)),CostCode,0)))","v":0},{"$f":"G50*E50","v":0},null,0,0]
[null,"Excavate channel, soil",null,"m3",null,"SC3H",{"$f":"IF(ISNA(F51),0,INDEX(IF(UPPER(RIGHT(F51,1))=Low,UnitCostLow, IF(UPPER(RIGHT(F51,1))=High,UnitCostHigh,UnitCostSpecified)),MATCH(UPPER(LEFT(F51,LEN(F51)-1)),CostCode,0)))","v":14.2},{"$f":"G51*E51","v":0},null,0,0]
[null,"Concrete",null,"m3",null,{"$f":"NA()","v":{"$error":"#N/A"}},{"$f":"IF(ISNA(F52),0,INDEX(IF(UPPER(RIGHT(F52,1))=Low,UnitCostLow, IF(UPPER(RIGHT(F52,1))=High,UnitCostHigh,UnitCostSpecified)),MATCH(UPPER(LEFT(F52,LEN(F52)-1)),CostCode,0)))","v":0},{"$f":"G52*E52","v":0},null,0,0]
[null,"Rip rap",null,"m3",null,"RB4H",{"$f":"IF(ISNA(F53),0,INDEX(IF(UPPER(RIGHT(F53,1))=Low,UnitCostLow, IF(UPPER(RIGHT(F53,1))=High,UnitCostHigh,UnitCostSpecified)),MATCH(UPPER(LEFT(F53,LEN(F53)-1)),CostCode,0)))","v":30.75},{"$f":"G53*E53","v":0},null,0,0]
[null,"Geotextile",null,"m2",null,"GSTL",{"$f":"IF(ISNA(F54),0,INDEX(IF(UPPER(RIGHT(F54,1))=Low,UnitCostLow, IF(UPPER(RIGHT(F54,1))=High,UnitCostHigh,UnitCostSpecified)),MATCH(UPPER(LEFT(F54,LEN(F54)-1)),CostCode,0)))","v":3.44},{"$f":"G54*E54","v":0},null,0,0]
[null,"CONSTRUCT SEEPAGE COLLECTION POND"]
[null,"Excavate seepage collection pond",null,"m3",null,{"$f":"NA()","v":{"$error":"#N/A"}},{"$f":"IF(ISNA(F56),0,INDEX(IF(UPPER(RIGHT(F56,1))=Low,UnitCostLow, IF(UPPER(RIGHT(F56,1))=High,UnitCostHigh,UnitCostSpecified)),MATCH(UPPER(LEFT(F56,LEN(F56)-1)),CostCode,0)))","v":0},{"$f":"G56*E56","v":0},null,{"$f":"H56*I56","v":0},{"$f":"+H56*(1-I56)","v":0}]
[null,"Doze & spread excavated material",null,"m3",null,{"$f":"NA()","v":{"$error":"#N/A"}},0,0,null,0,0]
[null,"Vegetate spread material",null,"ha",null,{"$f":"NA()","v":{"$error":"#N/A"}},0,0,null,0,0]
[null,"Bedding layer",null,"m3",null,{"$f":"NA()","v":{"$error":"#N/A"}},0,0,null,0,0]
[null,"Supply geomembrane",null,"m2",null,{"$f":"NA()","v":{"$error":"#N/A"}},0,0,null,0,0]
[null,"Install geomembrane",null,"m2",null,{"$f":"NA()","v":{"$error":"#N/A"}},0,0,null,0,0]
[null,"Erosion protection layer",null,"m3",null,{"$f":"NA()","v":{"$error":"#N/A"}},0,0,null,0,0]
[null,"INSTALL GROUNDWATER COLLECTION SYSTEM"]
[null,"Excavate/install sumps",null,"m3",null,{"$f":"NA()","v":{"$error":"#N/A"}},{"$f":"IF(ISNA(F64),0,INDEX(IF(UPPER(RIGHT(F64,1))=Low,UnitCostLow, IF(UPPER(RIGHT(F64,1))=High,UnitCostHigh,UnitCostSpecified)),MATCH(UPPER(LEFT(F64,LEN(F64)-1)),CostCode,0)))","v":0},{"$f":"G64*E64","v":0},null,{"$f":"H64*I64","v":0},{"$f":"+H64*(1-I64)","v":0}]
[null,"Install pumping wells",null,"m3",null,{"$f":"NA()","v":{"$error":"#N/A"}},{"$f":"IF(ISNA(F65),0,INDEX(IF(UPPER(RIGHT(F65,1))=Low,UnitCostLow, IF(UPPER(RIGHT(F65,1))=High,UnitCostHigh,UnitCostSpecified)),MATCH(UPPER(LEFT(F65,LEN(F65)-1)),CostCode,0)))","v":0},{"$f":"G65*E65","v":0},null,{"$f":"H65*I65","v":0},{"$f":"+H65*(1-I65)","v":0}]
[null,"Install pumps/pipelines/power supply",null,"LS",null,{"$f":"NA()","v":{"$error":"#N/A"}},{"$f":"IF(ISNA(F66),0,INDEX(IF(UPPER(RIGHT(F66,1))=Low,UnitCostLow, IF(UPPER(RIGHT(F66,1))=High,UnitCostHigh,UnitCostSpecified)),MATCH(UPPER(LEFT(F66,LEN(F66)-1)),CostCode,0)))","v":0},{"$f":"G66*E66","v":0},null,{"$f":"H66*I66","v":0},{"$f":"+H66*(1-I66)","v":0}]
[null,"SPECIALIZED ITEMS"]
[null,"Install permanent instrumentation, supply & technican",null,"each",null,{"$f":"NA()","v":{"$error":"#N/A"}},30000,{"$f":"G68*E68","v":0},null,{"$f":"H68*I68","v":0},{"$f":"+H68*(1-I68)","v":0}]
[null,"Install permanent instrumentation, drilling",null,"each",null,{"$f":"NA()","v":{"$error":"#N/A"}},30000,{"$f":"G69*E69","v":0},null,null,{"$f":"+H69*(1-I69)","v":0}]
[null,"TREAT SEEPAGE - see \"Water Management\" and \"Water Treatment\""]
[null,"TREAT SUPERNATANT"]
[null,"Pump water (to pit, U/G)",null,"m3",null,{"$f":"NA()","v":{"$error":"#N/A"}},{"$f":"IF(ISNA(F72),0,INDEX(IF(UPPER(RIGHT(F72,1))=Low,UnitCostLow, IF(UPPER(RIGHT(F72,1))=High,UnitCostHigh,UnitCostSpecified)),MATCH(UPPER(LEFT(F72,LEN(F72)-1)),CostCode,0)))","v":0},{"$f":"G72*E72","v":0},null,{"$f":"H72*I72","v":0},{"$f":"+H72*(1-I72)","v":0}]
[null,"Equipment maintenance and parts",null,"allow",null,{"$f":"NA()","v":{"$error":"#N/A"}},100000,{"$f":"G73*E73","v":0},null,{"$f":"H73*I73","v":0},{"$f":"+H73*(1-I73)","v":0}]
[null,"Supply reagents",null,"tonne",null,{"$f":"NA()","v":{"$error":"#N/A"}},{"$f":"IF(ISNA(F74),0,INDEX(IF(UPPER(RIGHT(F74,1))=Low,UnitCostLow, IF(UPPER(RIGHT(F74,1))=High,UnitCostHigh,UnitCostSpecified)),MATCH(UPPER(LEFT(F74,LEN(F74)-1)),CostCode,0)))","v":0},{"$f":"G74*E74","v":0},null,{"$f":"H74*I74","v":0},{"$f":"+H74*(1-I74)","v":0}]
[null,null,null,null,null,null,"Annual treatment costs",{"$f":"SUM(H72:H74)+0.0001","v":1E-4}]
[null,"Number of years of treatment",null,"years"]
[null,null,null,null,null,null,"Total treatment costs",{"$f":"H75*E76","v":0},null,null,{"$f":"H77","v":0}]
[null,null,null,null,null,null,"Total",{"$f":"SUM(H5:H69)+H77+0.0001","v":1E-4},null,{"$f":"SUM(J5:J69)+J77","v":0},{"$f":"SUM(K5:K69)+K77","v":0}]
[null,null,null,null,null,null,"% of Total",null,null,{"$f":"J78/H78","v":0},{"$f":"K78/H78","v":0}]
[null,"* for construction of passive treatment system refer to \"Water Management\""]

{"sheet":"Water Treatment","index":14,"n_rows":42,"n_cols":19,"rows_kept":42,"cut":false,"hidden":false,"merged":[]}
[1,"Post Closure Water Treatment - Identified as long term/post-closure in 'Instructions' worksheet"]
[]
[null,"ACTIVITY/MATERIAL","Notes","Units","Quantity","Cost Code","Unit Cost","Cost"]
[null,"ADDITION OF REAGENTS TO WTP"]
[null,"H2O2",null,"kg",null,{"$f":"NA()","v":{"$error":"#N/A"}},{"$f":"IF(ISNA(F5),0,INDEX(IF(UPPER(RIGHT(F5,1))=Low,UnitCostLow, IF(UPPER(RIGHT(F5,1))=High,UnitCostHigh,UnitCostSpecified)),MATCH(UPPER(LEFT(F5,LEN(F5)-1)),CostCode,0)))","v":0},{"$f":"G5*E5","v":0}]
[null,"lime",null,"kg",null,{"$f":"NA()","v":{"$error":"#N/A"}},0,0]
[null,"ferric sulphate",null,"kg",null,{"$f":"NA()","v":{"$error":"#N/A"}},0,0]
[null,"ferrous sulphate",null,"kg",null,{"$f":"NA()","v":{"$error":"#N/A"}},0,0]
[null,"flocculents",null,"kg",null,{"$f":"NA()","v":{"$error":"#N/A"}},0,0]
[null,"Other",null,null,null,{"$f":"NA()","v":{"$error":"#N/A"}},0,0]
[null,"LABOUR AND SUPPLIES"]
[null,"Annual fuel",null,"litres",null,{"$f":"NA()","v":{"$error":"#N/A"}},{"$f":"IF(ISNA(F12),0,INDEX(IF(UPPER(RIGHT(F12,1))=Low,UnitCostLow, IF(UPPER(RIGHT(F12,1))=High,UnitCostHigh,UnitCostSpecified)),MATCH(UPPER(LEFT(F12,LEN(F12)-1)),CostCode,0)))","v":0},{"$f":"G12*E12","v":0}]
[null,"Annual power",null,"kW-h",null,{"$f":"NA()","v":{"$error":"#N/A"}},{"$f":"IF(ISNA(F13),0,INDEX(IF(UPPER(RIGHT(F13,1))=Low,UnitCostLow, IF(UPPER(RIGHT(F13,1))=High,UnitCostHigh,UnitCostSpecified)),MATCH(UPPER(LEFT(F13,LEN(F13)-1)),CostCode,0)))","v":0},{"$f":"G13*E13","v":0}]
[null,"Electrician/mechanic to maintain treatment plant",null,"allow",null,{"$f":"NA()","v":{"$error":"#N/A"}},0,0]
[null,"Equipment maintenance and parts",null,"allow",null,{"$f":"NA()","v":{"$error":"#N/A"}},0,0]
[null,"Misc. supplies, hoses, tools",null,"allow",null,{"$f":"NA()","v":{"$error":"#N/A"}},0,0]
[null,"Communications",null,"allow",null,{"$f":"NA()","v":{"$error":"#N/A"}},0,0]
[null,"Other",null,null,null,{"$f":"NA()","v":{"$error":"#N/A"}},0,0]
[null,"WATER MANAGEMENT"]
[null,"Water Treatment (reagents, equip Op. labour)",null,"m3",null,"AE",0.62,{"$f":"G20*E20","v":0}]
[null,"Water pumping from sumps and ponds to treatment plant",null,"allow",null,"AE",29367.83,{"$f":"G21*E21","v":0}]
[null,"Annual Treatment Plant Servicing",null,"manhours",null,"lab-ss",{"$f":"IF(ISNA(F22),0,INDEX(IF(UPPER(RIGHT(F22,1))=Low,UnitCostLow, IF(UPPER(RIGHT(F22,1))=High,UnitCostHigh,UnitCostSpecified)),MATCH(UPPER(LEFT(F22,LEN(F22)-1)),CostCode,0)))","v":120},{"$f":"G22*E22","v":0}]
[null,"Treatment Plant Servicing Travel Allowance",null,"visit",null,"AE",4000,{"$f":"G23*E23","v":0}]
[null,"Other ",null,null,null,{"$f":"NA()","v":{"$error":"#N/A"}},{"$f":"IF(ISNA(F24),0,INDEX(IF(UPPER(RIGHT(F24,1))=Low,UnitCostLow, IF(UPPER(RIGHT(F24,1))=High,UnitCostHigh,UnitCostSpecified)),MATCH(UPPER(LEFT(F24,LEN(F24)-1)),CostCode,0)))","v":0},{"$f":"G24*E24","v":0}]
[null,"WTP WATER SAMPLING AND ANALYSES"]
[null,"Sampling equipment",null,"allow",null,{"$f":"NA()","v":{"$error":"#N/A"}},{"$f":"IF(ISNA(F26),0,INDEX(IF(UPPER(RIGHT(F26,1))=Low,UnitCostLow, IF(UPPER(RIGHT(F26,1))=High,UnitCostHigh,UnitCostSpecified)),MATCH(UPPER(LEFT(F26,LEN(F26)-1)),CostCode,0)))","v":0},{"$f":"G26*E26","v":0}]
[null,"Analyses",null,"allow",null,{"$f":"NA()","v":{"$error":"#N/A"}},{"$f":"IF(ISNA(F27),0,INDEX(IF(UPPER(RIGHT(F27,1))=Low,UnitCostLow, IF(UPPER(RIGHT(F27,1))=High,UnitCostHigh,UnitCostSpecified)),MATCH(UPPER(LEFT(F27,LEN(F27)-1)),CostCode,0)))","v":0},{"$f":"G27*E27","v":0}]
[null,"Shipping to laboratory",null,"allow",null,{"$f":"NA()","v":{"$error":"#N/A"}},{"$f":"IF(ISNA(F28),0,INDEX(IF(UPPER(RIGHT(F28,1))=Low,UnitCostLow, IF(UPPER(RIGHT(F28,1))=High,UnitCostHigh,UnitCostSpecified)),MATCH(UPPER(LEFT(F28,LEN(F28)-1)),CostCode,0)))","v":0},{"$f":"G28*E28","v":0},null,null,null,null,"CONSTRUCT WATER TREATMENT PLANT"]
[null,"Reporting",null,"allow",null,{"$f":"NA()","v":{"$error":"#N/A"}},{"$f":"IF(ISNA(F29),0,INDEX(IF(UPPER(RIGHT(F29,1))=Low,UnitCostLow, IF(UPPER(RIGHT(F29,1))=High,UnitCostHigh,UnitCostSpecified)),MATCH(UPPER(LEFT(F29,LEN(F29)-1)),CostCode,0)))","v":0},{"$f":"G29*E29","v":0},null,null,null,null,"Build treatment plant ",null,"LS",null,{"$f":"NA()","v":{"$error":"#N/A"}},{"$f":"IF(ISNA(Q29),0,INDEX(IF(UPPER(RIGHT(Q29,1))=Low,UnitCostLow, IF(UPPER(RIGHT(Q29,1))=High,UnitCostHigh,UnitCostSpecified)),MATCH(UPPER(LEFT(Q29,LEN(Q29)-1)),CostCode,0)))","v":0},{"$f":"R29*P29","v":0}]
[null,"Other",null,null,null,{"$f":"NA()","v":{"$error":"#N/A"}},{"$f":"IF(ISNA(F30),0,INDEX(IF(UPPER(RIGHT(F30,1))=Low,UnitCostLow, IF(UPPER(RIGHT(F30,1))=High,UnitCostHigh,UnitCostSpecified)),MATCH(UPPER(LEFT(F30,LEN(F30)-1)),CostCode,0)))","v":0},{"$f":"G30*E30","v":0},null,null,null,null,"Treatment  (hec)  19",null,"HA",null,"SNC",300000,{"$f":"R30*P30","v":0}]
[null,"SITE ACCESS",null,null,null,null,null,null,null,null,null,null,"Build sludge containment facility",null,"LS",null,{"$f":"NA()","v":{"$error":"#N/A"}},{"$f":"IF(ISNA(Q31),0,INDEX(IF(UPPER(RIGHT(Q31,1))=Low,UnitCostLow, IF(UPPER(RIGHT(Q31,1))=High,UnitCostHigh,UnitCostSpecified)),MATCH(UPPER(LEFT(Q31,LEN(Q31)-1)),CostCode,0)))","v":0},{"$f":"R31*P31","v":0}]
[null,"Road maintenance (incl. snow removal)",null,"allow",null,"AE",50000,{"$f":"G32*E32","v":0}]
[null,"Winter road tariff",null,"allow",null,{"$f":"NA()","v":{"$error":"#N/A"}},{"$f":"IF(ISNA(F33),0,INDEX(IF(UPPER(RIGHT(F33,1))=Low,UnitCostLow, IF(UPPER(RIGHT(F33,1))=High,UnitCostHigh,UnitCostSpecified)),MATCH(UPPER(LEFT(F33,LEN(F33)-1)),CostCode,0)))","v":0},{"$f":"G33*E33","v":0}]
[null,"Truck rental",null,"allow",null,{"$f":"NA()","v":{"$error":"#N/A"}},{"$f":"IF(ISNA(F34),0,INDEX(IF(UPPER(RIGHT(F34,1))=Low,UnitCostLow, IF(UPPER(RIGHT(F34,1))=High,UnitCostHigh,UnitCostSpecified)),MATCH(UPPER(LEFT(F34,LEN(F34)-1)),CostCode,0)))","v":0},{"$f":"G34*E34","v":0}]
[null,"Air support",null,"allow",null,{"$f":"NA()","v":{"$error":"#N/A"}},{"$f":"IF(ISNA(F35),0,INDEX(IF(UPPER(RIGHT(F35,1))=Low,UnitCostLow, IF(UPPER(RIGHT(F35,1))=High,UnitCostHigh,UnitCostSpecified)),MATCH(UPPER(LEFT(F35,LEN(F35)-1)),CostCode,0)))","v":0},{"$f":"G35*E35","v":0}]
[null,"CONSTRUCT WATER TREATMENT PLANT"]
[null,"Build treatment plant ",null,"LS",null,{"$f":"NA()","v":{"$error":"#N/A"}},{"$f":"IF(ISNA(F37),0,INDEX(IF(UPPER(RIGHT(F37,1))=Low,UnitCostLow, IF(UPPER(RIGHT(F37,1))=High,UnitCostHigh,UnitCostSpecified)),MATCH(UPPER(LEFT(F37,LEN(F37)-1)),CostCode,0)))","v":0},{"$f":"G37*E37","v":0}]
[null,"Treatment  (hec)  19",null,"HA",null,"SNC",300000,{"$f":"G38*E38","v":0}]
[null,"Build sludge containment facility",null,"LS",null,{"$f":"NA()","v":{"$error":"#N/A"}},{"$f":"IF(ISNA(F39),0,INDEX(IF(UPPER(RIGHT(F39,1))=Low,UnitCostLow, IF(UPPER(RIGHT(F39,1))=High,UnitCostHigh,UnitCostSpecified)),MATCH(UPPER(LEFT(F39,LEN(F39)-1)),CostCode,0)))","v":0},{"$f":"G39*E39","v":0}]
[null,null,null,null,null,null,"Annual water treatment costs",{"$f":"SUM(H5:H39)+0.0001","v":1E-4}]
[null,"Number of years of water treatment",null,"years",25]
[null,null,null,null,null,null,"Total",{"$f":"AnnualTreat1Cost*E41","v":2.5000000000000001E-3}]

{"sheet":"Unit_Costs","index":15,"n_rows":293,"n_cols":12,"rows_kept":293,"cut":false,"hidden":false,"merged":[]}
[null,null,null,"Filter by unit",null,"",""]
[null,null,null,null,null,"","",""]
["ITEM","Detail",null,"COST CODE","UNITS","LOW $","HIGH $","SPECIFIED $",null,"COMMENTS"]
[null,null,null,null,null,"","",""]
["Accomodation"]
[null,null,null,"ACCM","manday",100,175]
["Buildings - Decontaminate",null,null,null,null,"","",""]
[null,"Asbestos",null,"BDA","m2",25.6,51.2,null,null,"Low: removal of asbestos siding & flooring; High: removal of insulated pipes, friable asbestos"]
["Buildings - Remove",null,null,null,null,"","","",null,"Unit costs are based on 3m high, single storey building.  Scale areas accordingly."]
[null,"Wood",null,"BRW","m2",27.5,41]
[null,"Concrete",null,"BRC","m2",40,65,6,null,"Specified: puncture concrete foundation slabs"]
[null,"Steel - teardown",null,"BRS1","m2",45,65]
[null,"Steel - for salvage",null,"BRS2","m2",67,100]
["Concrete work",null,null,null,null,"","",""]
[null,"Small pour",null,"CSF","m3",426.5,639.75,null,null,"Low: YK; High=1.5xLow"]
[null,"Large pour",null,"CLF","m3",353.5,530.25,2130,null,"Specified: concrete crown pillar"]
["Contaminated Soils",null,null,null,null,"","",""]
[null,"ESA Phase 1",null,"CS1","each",7500,null,null,null,"Low: small, \"clean\" site"]
[null,"ESA Phase 1",null,"CS2","each",50000,null,null,null,"Low: small, \"clean\" site"]
[null,"Remediate on site",null,"CSR","m3",47,146]
["Dozing",null,null,null,null,"","",""]
[null,"doze rock piles",null,"DR","m3",1.05,2.4,null,null,"Low cost: doze crest off dump"]
[null,"doze overburden/soil piles",null,"DS","m3",0.95,3.8,null,null,"High cost: push up to 300 m"]
["Excavate Rock; Low Spec's and QA/QC",null,null,null,null,"","",""]
[null,"drill/blast/load/short haul",null,"RB1","m3",11.4,17.05,null,null,"Low:quarry operations for bulk fill"]
[null,"drill/blast/load/long haul",null,"RB2","m3",12.05,17.8]
[null,"RB1 + spread and compact",null,"RB3","m3",12.05,17.8]
[null,"RB2 + spread and compact",null,"RB4","m3",12.5,30.75]
[null,"Specified activity",null,"RBS","m3"]
["Excavate Rock; High Spec's and QA/QC ",null,null,null,null,"","","",null,"(e.g. ditch/spillway excavation)"]
[null,"drill/blast/load/short haul",null,"RC1","m3",12.05,17.8,null,null,"Low:foundation excavation;High:spillway excavation"]
[null,"drill/blast/load/long haul",null,"RC2","m3",12.7,18.399999999999999]
[null,"RC1 + spread and compact",null,"RC3","m3",12.7,18.399999999999999,null,null,"e,g, cover construction"]
[null,"RC2 + spread and compact",null,"RC4","m3",13.5,19.2,null,null,"e,g, cover construction"]
[null,"Specified activity",null,"RCS","m3",null,null,175,null,"Specified-drift excavation"]
["Excavate Rip Rap",null,null,null,null,"","",""]
[null,"drill/blast/load/short haul/place",null,"RR1","m3",13.5,17.75,null,null,"High: quarry & place rip rap in channel"]
[null,"drill/blast/load/long haul/place",null,"RR2","m3",14.2,20.65]
[null,"source is waste dump/short haul",null,"RR3","m3",7,null,null,null,"cost includes sorting"]
[null,"source is waste dump/long haul",null,"RR4","m3",7.6]
[null,"Specified activity",null,"RRS","m3"]
["Excavate Soil; Low Spec's and QA/QC",null,null,null,null,"","",""]
[null,"clear & grub",null,"SBC","m2",3.4,5,""]
[null,"excavate/load/short haul",null,"SB1","m3",4.3,5.9]
[null,"excavate/load/long haul",null,"SB2","m3",4.5999999999999996,7.3]
[null,"SB1 + spread and compact",null,"SB3","m3",5.0999999999999996,8.9,null,null,"Low: non-engineered; High:engineered"]
[null,"SB2 + spread and compact",null,"SB4","m3",5.5,11,null,null,"Low: non-engineered; High:engineered"]
[null,"Specified activity",null,"SBS","m3",3.2,6.3,"",null,"Low: rehandle waste rock dump by dozing; High:rehandle waste rock by hauling"]
[null,"Tailings ",null,"SBT","m3",1.35,3.7,15.5,null,"High:contour surface - wet or frozen; Specified:haul/place wet infill"]
["Excavate Soil, High Spec's and QA/QC",null,null,null,null,"","",""]
[null,"excavate/load/short haul",null,"SC1","m3",6.8,9.3000000000000007]
[null,"excavate/load/long haul",null,"SC2","m3",7.1,11.75]
[null,"SC1 + spread and compact",null,"SC3","m3",8.9,14.2,null,null,"Low: non-engineered; High:engineered"]
[null,"SC2 + spread and compact",null,"SC4","m3",9.3000000000000007,23.2,null,null,"Low: non-engineered; High:engineered (e.g. complex covers, low volume dam construction)"]
[null,"Specified activity",null,"SCS","m3",null,null,18.8,null,"Backfill adit with waste rock"]
["Fence",null,null,null,null,"","",""]
[null,null,null,"FNC","m",13.55,203]
["Fuel and Electricity",null,null,null,null,"","",""]
[null,"Fuel cost - gas",null,"FCG","litre",1.05,1.4,null,null,null,null," "]
[null,"Fuel cost - diesel",null,"FCD","litre",0.99,1.39]
[null,"Fuel mobilization",null,"FCM","litre",0.22,0.42,null,null,"High: winter road usage"]
[null,"Electricity",null,"FCE","kW-h",0.17,0.19,0.49,null,"Low and High:Yellowknife; Specified:diesel generator"]
["Geo-Synthetics",null,null,null,null,"","",""]
[null,"geotextile",null,"GST","m2",3.44,null,null,null,"Supply and install"]
[null,"geogrid",null,"GSG","m2",5.75,""]
[null,"liner, HDPE",null,"GSHDPE","m2",7.95,"",null,null,"Supply and install; large quantity"]
[null,"liner, ES3",null,"GSES3","m2",20.2,"","",null,"FOB Yellowknife"]
[null,"geosynthetic installation",null,"GSI","m2",3.16,14,null,null,"Low:geotextile; High:ES3 or HDPE"]
[null,"bentonite soil ammendment",null,"GSBA","tonne",308.3,348.5,null,null,"FOB Edmonton, add shipping & mixing"]
["Grouting (/m3 of rock grouted)",null,null,null,null,"","",""]
[null,null,null,"grout","m3",236.55,286.75,null,null,"High: cement, FOB Yellowknife"]
["Labour & Equipment Rates",null,null,null,null,"","",""]
[null,"Site manager",null,"sman","$/hr",125,152]
[null,"Supervisor",null,"super","$/hr",52,91.84]
[null,"Registered engineer",null,"eng","$/hr",95,220]
[null,"Environmental coordinator",null,"envco","$/hr",74.16,130]
[null,"Evironmental technologist",null,"envtech","$/hr",36]
[null,"Electrician",null,"elec","$/hr",74,95]
[null,"Journeyman - various",null,"journey","$/hr",44,71.790000000000006]
[null,"Labour - skilled ",null,"lab-s","$/hr",41,49.6,120]
[null,"Labour - unskilled",null,"lab-us","$/hr",31,43.98]
[null,"Equipment operator",null,"oper","$/hr",41,65]
[null,"Heavy duty mechanic",null,"mech","$/hr",49,72.849999999999994]
[null,"Water treatment plant operator",null,"oper-wt","$/hr",41,59.86]
[null,"Security / first aid",null,"safety","$/hr",36,66.97]
[null,"Administative staff",null,"admin","$/hr",38,57.89]
[]
[null,"Equipment rates include operator and fuel"]
[null,"Loader - 4 cu.yd (3.06m3)",null,"load-s","$/hr",175,null,""]
[null,"Loader - 7 cu.yd (5.35m3)",null,"load-l","$/hr",315]
[null,"Excavator - 26.76-30.84 tonnes",null,"exc-s","$/hr",190]
[null,"Excavator - 68.95+tonnes",null,"exc-l","$/hr",420,null,""]
[null,"Grader",null,"grad","$/hr",190]
[null,"Dump truck off hwy 30-50 tonnes",null,"truck-s","$/hr",225,null,""]
[null,"Dump truck off hwy 55-75 tonnes",null,"truck-l","$/hr",300]
[null,"dozer, small",null,"dozers","$/hr",205,260,""]
[null,"dozer, large",null,"dozerl","$/hr",490,565,""]
[null,"smooth drum compactor",null,"comp","$/hr",155,null,""]
[null,"scooptram, 6 yd3 bucket",null,"scoop","$/hr",170,null,""]
[null,"flat bed truck with hiab",null,"hiab","$/hr",155,null,""]
[null,"fuel truck",null,"ftruck","$/hr",150]
[null,"water truck",null,"wtruck","$/hr",58,150]
["Mobilize Heavy Equipment",null,null,null,null,"","",""]
[null,"Road access",null,"MHER","kmtonne",3.4,10.25]
[null,"Air access",null,"MHEA","kmtonne",12,null,null,null,"cargo rate>500lb"]
["Mobilize Camp",null,null,null,null,"","",""]
[null,"Road access",null,"MCR","each",50000,null,null,null,"refurbish existing camp"]
["Mobilize Workers",null,null,null,null,"","",""]
[null,"flight",null,"MW","each",4500,9100,null,null,"Low:e.g. 8 passenger; High: Dash 7"]
["Oil Removal",null,null,null,null,"","",""]
[null,"oil removal",null,"OR","litre",0.43,1.2,null,null,"Low:waste oil heater; High: ship offsite"]
["PCB Removal"]
[null,"Remove from site",null,"PCBR","litre",40.200000000000003,46.9,null,null,"Low: shipping, handling & disposal from Yellowknife"]
["Pipes, small (<6in dia.)",null,null,null,null,"","",""]
[null,"remove/dispose on site",null,"PSR","m",1,24,null,null,"Low: remove/dispose on site; High: remove/re-use"]
[null,"supply",null,"PSS","m",6.1,11.1,null,null,"Low:supply; High:supply and ship"]
[null,"install",null,"PSI","m",25]
["Pipes, large (>6in dia.)",null,null,null,null,"","",""]
[null,"remove/dispose on site",null,"PLR","m",22,72,null,null,"Low: remove/dispose on site; High: remove/re-use"]
[null,"supply",null,"PLS","m",129,143,null,null,"Low:supply; High:supply and ship"]
[null,"install",null,"PLI","m",50]
["Power Lines",null,null,null,null,"","",""]
[null,"remove/dispose on site",null,"POWR","m",25.5]
["Process Chemicals",null,null,null,null,"","",""]
[null,"Remove from site",null,"PCR","kg",0.45,2.5,null,null,"Low: shipping, handling & disposal from Yellowknife"]
["Pumps",null,null,null,null,"","",""]
[null,"Pump capital cost",null,"PC","each",195000]
[null,"Pump shipping",null,"PS","each",2500]
[null,"Pump operating cost",null,"POC","m3",0.12,null,null,null,"pump operating costs should be calculated based on pump capacity, fuel costs, etc."]
[null,"Pump maintenance",null,"PM","allow",25000]
["Pump sand BackFill",null,null,null,null,"","",""]
[null,null,null,"PBF","m3",85,300]
["Scarify - road/mine site"]
[null,null,null,"SCFY","ha",4300,6030,2150]
["Shaft, Raise & Portal Closures",null,null,null,null,"","",""]
[null,"Shaft & Raises",null,"SR","m2",645,2132,null,null,"Low:pre-cast concrete slabs, little site prep. Area=shaft+>1m all around"]
[null,"Portals",null,"POR","m3",18.8,250,1200,null,"Low:unit cost code SCS;High:excavate & backfill collapsed portal;Spec: installed pressure plug"]
["Site Inspection Report"]
[null,null,null,"RPT","each",10000,20000]
["SpillWay - Clear"]
[null,null,null,"SW","each",3000,7000]
["Survey/Instrumentation"]
[null,null,null,"SI","each",1800,3600,null,null,"2 person crew"]
["Treatment Plant - Construct",null,null,null,null,"","",""]
[null,"Small (< 1000 m3/d)",null,"TPS","lump sum",9000000,15000000]
[null,"Large (> 1000 m3/d)",null,"TPL","lump sum",15000000,46000000]
[null,"Constructed Wetland",null,"CWTS","ha",200000,300000]
["Treatment Plant - Operate"]
[null,null,null,"TPO","m3",0.35,2]
["Treatment Chemicals",null,null,null,null,"","",""]
[null,"ferric sulphate",null,"ferric","kg",1.19,"",""]
[null,"ferrous sulphate",null,"ferrous","kg",1.32,"",""]
[null,"lime",null,"lime","kg",0.56000000000000005,null,""]
[null,"hydrogen peroxide, 35%",null,"hperox","kg",1.5,"",""]
[null,"Sodium Metabisulfate",null,"Nametab","kg",1.18,"",""]
[null,"Caustic soda, 50%",null,"caustic","kg",0.74,"",""]
[null,"Sulfuric acid, 93%",null,"sulfuric","kg",0.31,"",""]
[null,"flocculant",null,"flocc","kg",6,"",""]
[null,"copper sulphate",null,"copper","kg","","",""]
[null,"shipping",null,"shipping","kg",0.2,"",""]
["Vegetation",null,null,null,null,"","",""]
[null,"Hydroseed, Flat",null,"VHF","ha",4000]
[null,"Hydroseed, Sloped",null,"VHS","ha",4500]
[null,"Veg. blanket/erosion mat",null,"VB","ha",13000]
[null,"Tree planting",null,"VT","ha",2600,6000]
[null,"Wetland species",null,"VW","ha",null,null,47.72,null,"Specified= /m3, Wetland Growth Media Substrate mixed and installed (sand, biochar and fertilizer, woodchips)"]
["Water Sampling/Analysis/Reporting"]
[null,null,null,"WS","each",7000,10000]
["Winter Road"]
[null,"Construction",null,"WRC","km",2000,11500]
[null,"Usage",null,"WRU","kmtonne",0.28999999999999998]
["Unit Rates as per 2015 EBS"]
[null,"Grade and Contour",null,"15GC","m2",null,null,1.81029534577546]
[null,"Grade and Contour With Liner",null,"15GCL","m2",null,null,5.30829534577546]
[null,"Grade and Contour Significant Disturbed Areas",null,"15GCD","m2",null,null,2.7154430186631942]
[null,"Fill Application",null,"15PF","m2",null,null,44.3687478668719]
["Cost for On-Site Disposal of Equipment:"]
[null,"Light Mobile Equipment",null,"15MOL","Ea",null,null,941.08920634920639]
[null,"Medium Mobile Equipment",null,"15MOM","Ea",null,null,1494.1338095238098]
[null,"Heavy Mobile Equipment",null,"15MOH","Ea",null,null,2618.8739523809527]
[null,"Other mobile equipment (reclaim conveyor)",null,"15MOR","Ea",null,null,1329441.3109714286]
[null,"Light mechanical equipment - Decontaminate and dispose on-site",null,"15LME","Ea",null,null,1980.7983857142858]
[null,"Medium mechanical equipment - Decontaminate and dispose on-site",null,"15MME","Ea",null,null,4261.3369142857146]
[null,"Heavy mechanical equipment - Decontaminate and dispose on-site",null,"15MEH","Ea",null,null,41205.448000000004]
[null,"Light Tanks",null,"15TL","Ea",null,null,2148.3293492063494]
[null,"Medium Tanks",null,"15MT","Ea",null,null,7387.3148095238103]
[null,"Light Diesel Tanks",null,"15LiDT","Ea",null,null,3693.6574047619051]
[null,"Medium Diesel Tanks",null,"15MDT","Ea",null,null,16166.401332857145]
[null,"Large Diesel Tanks",null,"15LDT","Ea",null,null,106338.74126666666]
[null,"Largest Diesel Tanks",null,"15XLDT","Ea",null,null,171468.15101904763]
[null,"Misc Items (Minor)",null,"15MEI","Ea",null,null,529.82676190476195]
[null,"Fuel tanks - Medium Mobile Diesel Tanks (3,000L to 500kL)",null,"15MMFT","Ea",null,null,10481.049201190501]
["Removal of Contaminated Buildings"]
[null,"fold away",null,"15RCBF","m2",null,null,142.40937390873]
[null,"ISO Shipping Container",null,"15RCBI","m2",null,null,143.41812390873]
[null,"modular",null,"15RCBM","m2",null,null,143.41812390873]
[null,"soft walled",null,"15RCBS","m2",null,null,148.34784886507899]
[null,"Temporary construction warehouses and offices Allowance",null,"15RCBT","m2",null,null,25000]
["Removal of Buildings"]
[null,"fold away",null,"15RBF","m2",null,null,41.569324694444397]
[null,"modular",null,"15RBM","m2",null,null,59.3847495634921]
[null,"ISO Shipping Container",null,"15RBI","m2",null,null,29.692374781746]
[null,"soft walled",null,"15RBS","m2",null,null,47.5077996507937]
[null,"water and wastewater treatment facilities",null,"15WWT","Ea",null,null,11035.582428571401]
["Foundations"]
[null,"Precast concrete",null,"15FC","m2",null,null,38.4670958513165]
[null,"Slab on grade",null,"15FS","m2",null,null,33.114172619047601]
[null,"Timber cribbing",null,"15TC","m2",null,null,20.784662347222199]
["Reclaim roads"]
[null,"Remove bridges",null,"15BR","Ea",null,null,201838.76643990929]
[null,"Remove culverts",null,"15CR","Ea",null,null,1094.4802857142859]
["Specialized Items"]
[null,"Power distribution - electrical cable",null,"15EC","m",null,null,26.491338095238099]
[null,"Electrical Cable",null,"15EC","m",null,null,26.491338095238099]
[null,"Incinerator",null,"15FI","Ea",null,null,9975.9289047619059]
[null,"Potable Water",null,"15PW","Ea",null,null,9975.9289047619059]
[null,"Consumables",null,"15CON","Bed space",null,null,700.8]
["Mobilization"]
[null,"Mobilization and Demobilization of Equipment and Materials by Sealift",null,"15SL","Ea",null,null,2572000]
[null,"Demobilization of Existing Fuel",null,"15MF1","L",null,null,0.1]
[null,"Fuel Required for Reclamation ",null,"15MF2","L",null,null,0.4]
[null,"Offsite disposal of waste and material",null,"15OD","m3",null,null,358]
[null,"Worker accomodation and camp operation",null,"15WAC","person-day",null,null,225]
[null,"Northern worker mobilization",null,"15NW","person-day",null,null,75]
[null,"Southern worker mobilization",null,"15SW","person-day",null,null,85.45]
["Blended Labour and Equip Rates (2015)"]
[null,"Blended labour rate",null,"15BL","hr",null,null,100]
[null,"Blended equipment rate",null,"15BE","hr",null,null,150]
["Water management"]
[null,"Remove pipes",null,"15RP","m",null,null,66.228345238095201]
["Reclaim roads"]
[null,"Remove bridges",null,"15BR","Ea",null,null,201838.76643990929]
[null,"Remove culverts",null,"15CR","Ea",null,null,1094.4802857142859]
["Chemicals"]
[null,"Contaminated soil treatment",null,"15CST","m3",null,null,14.78]
[null,"Ammonium nitrate (explosive)",null,"15AN","kg",null,null,2.37]
["Unit Rates as per 2016 EBS/ Other communication from Baffinland"]
["Chemicals"]
[null,"Ammonium nitrate (explosive)",null,"16AN1","m3",null,null,358]
[null,"Pre-packaged explosives",null,"16AN2","kg",null,null,2.37]
["Other Unit Rates",null,null,null,null,"","",""]
["Monitoring",null,null,null,null,"","",""]
[null,"SNP/AEMP water sampling & reporting",null,"15MCW","each",30000,36000]
[null,"Envrionmental site assessment",null,"15EA","each",null,null,18000]
[null,"Geotechnical assessment",null,"15GT","each",null,null,20000]
[null,"Maintenance allowance",null,"15MCA","each",100000,150000]
["Unit Rates as per table 1-2 in 2019 BIMC Marginal Closure and Reclamation FSE "]
[null,"Grade and Contour",null,"18GC","m2",null,null,1.49]
[null,"Grade and Contour With Liner",null,"18GCL","m2",null,null,4.99]
[null,"Fill Application",null,"18PF","m2",null,null,38.83]
["Cost for On-Site Disposal of Equipment:"]
[null,"Light Mobile Equipment",null,"18MOL","Ea",null,null,876.92]
[null,"Medium Mobile Equipment",null,"18MOM","Ea",null,null,1378.63]
[null,"Heavy Mobile Equipment",null,"18MOH","Ea",null,null,2310.87]
[null,"Other mobile equipment (reclaim conveyor)",null,"18MOR","Ea",null,null,1136232.9099999999]
[null,"Light mechanical equipment - Decontaminate and dispose on-site",null,"18LME","Ea",null,null,1707.45]
[null,"Medium mechanical equipment - Decontaminate and dispose on-site",null,"18MME","Ea",null,null,3714.64]
[null,"Heavy mechanical equipment - Decontaminate and dispose on-site",null,"18MEH","Ea",null,null,35507.449999999997]
[null,"Light Tanks",null,"18TL","Ea",null,null,1872.41]
[null,"Medium Tanks",null,"18MT","Ea",null,null,6386.31]
[null,"Light Diesel Tanks",null,"18LiDT","Ea",null,null,3193.16]
[null,"Medium Diesel Tanks",null,"18MDT","Ea",null,null,13928.01]
[null,"Large Diesel Tanks",null,"18LDT","Ea",null,null,91285.24]
[null,"Largest Diesel Tanks",null,"18XLDT","Ea",null,null,147297.85]
[null,"Misc Items (Minor)",null,"18MEI","Ea",null,null,452.83]
[null,"Fuel tanks - Medium Mobile Diesel Tanks (3,000L to 500kL)",null,"18MMFT","Ea",null,null,9031.52]
["Removal of Contaminated Buildings"]
[null,"fold away",null,"18RCBF","m2",null,null,122.25]
[null,"ISO Shipping Container",null,"18RCBI","m2",null,null,123.02]
[null,"modular",null,"18RCBM","m2",null,null,123.02]
[null,"soft walled",null,"18RCBS","m2",null,null,127.32]
["Removal of Buildings"]
[null,"fold away",null,"18RBF","m2",null,null,35.53]
[null,"modular",null,"18RBM","m2",null,null,50.75]
[null,"ISO Shipping Container",null,"18RBI","m2",null,null,25.38]
[null,"soft walled",null,"18RBS","m2",null,null,40.6]
[null,"water and wastewater treatment facilities",null,"18WWT","Ea",null,null,9649.58]
["Foundations"]
[null,"Precast concrete",null,"18FC","m2",null,null,32.880000000000003]
[null,"Slab on grade",null,"18FS","m2",null,null,33.114172619047601]
[null,"Timber cribbing",null,"18TC","m2",null,null,17.760000000000002]
["Reclaim roads"]
[null,"Remove bridges",null,"18BR","Ea",null,null,172505.43]
["Specialized Items"]
[null,"Power distribution - electrical cable",null,"18EC","m",null,null,22.64]
[null,"Electrical Cable",null,"18EC","m",null,null,26.491338095238099]
[null,"Incinerator",null,"18FI","Ea",null,null,8743.93]
[null,"Potable Water",null,"18PW","Ea",null,null,8743.93]
["Blended Labour and Equip Rates (2018)"]
[null,"Blended labour rate",null,"18BL","hr",null,null,75]
[null,"Blended equipment rate",null,"18BE","hr",null,null,125]
["Water management"]
[null,"Remove pipes",null,"18RP","m",null,null,56.6]

{"sheet":"Estimator","index":16,"n_rows":55,"n_cols":15,"rows_kept":55,"cut":false,"hidden":false,"merged":[]}
[null,null,null,1,"Equipment Productivity Figures and Graphs have been reproduced from Caterpillar Performance Handbook - Edition 42 "]
[null,"EXCAVATION",null,null,null,null,"HAUL AND DUMPING",null,null,null,null,"SPREADING/DOZING"]
[null,"Productivity",null,null,null,null,"Productivity",null,null,null,null,"Productivity"]
[null,"Machine","Cat 336EL",null,null,null,"Machine","Cat 770",null,null,null,"Machine","Cat D8"]
[null,"bucket capacity",null,3.16,"m3",null,"truck capacity",null,25.1,"m3",null,"Estimate production using example curves provided or ",null,600,"m3/hr"]
[null,"fill factor",null,0.75,"%",null,"fill factor",null,0.8,"%",null,"equivalent from other supplier"]
[null,"cycle time",null,45,"seconds",null,null,null,null,null,null,"Correction factors (see table provided)"]
[null,"operator skill",null,0.8,"%",null,"load time",null,6,"min.",null,"      operator skill",null,0.75]
[null,"machine availability",null,0.83,"%",null,"haul distance",null,1.5,"km",null,"      material type, see table",null,0.8]
[null,"altitude adjustment",null,1,"%",null,"average velocity",null,20,"km/hr",null,"      slot dozing",null,1]
[null,"Hourly productivity",null,{"$f":"D5*D6*(60*60/D7)*D8*D9*D10","v":125.89440000000002},"m3/hr",null,"haul time + return time",null,{"$f":"+I9/I10*60*2","v":9},"min.",null,"     side by side dozing",null,1]
[null,null,null,null,null,null,"wait time",null,0.5,"min.",null,"     visibility",null,1]
[null,null,null,null,null,null,"dump time",null,1,"min.",null,"     job efficiency",null,0.83]
[null,null,null,null,null,null,"cycle time",null,{"$f":"I8+SUM(I11:I13)","v":16.5},"min.",null,"     altitude adjustment",null,1]
[null,null,null,null,null,null,"machine availability",null,0.83,"%",null,"     slope adjustment",null,1]
[null,null,null,null,null,null,"altitude adjustment",null,1,"%",null,"Hourly productivity",null,{"$f":"+N5*N8*N9*N10*N11*N12*N13*N14*N15","v":298.8},"m3/hr"]
[null,null,null,null,null,null,null,null,{"$f":"I14*I15*I16","v":13.694999999999999},"ave. min/cycle"]
[null,null,null,null,null,null,"Hourly productivity",null,{"$f":"I5*I6*60/I17","v":87.973713033954027},"m3/hr"]
[null,"Operating Costs",null,null,null,null,"Operating Costs",null,null,null,null,"Operating Costs"]
[null," - Contractor",null,null,null,null," - Contractor",null,null,null,null," - Contractor"]
[null,"Contractor  hourly rate",null,180,"$/hr",null,"Contractor  hourly rate",null,225,"$/hr",null,"Hourly rate - contractor supplied",null,260,"$/hr"]
[null,"Excavation cost - contractor rate",null,{"$f":"D21/D11","v":1.4297697117584258},"$/m3",null,"Haul and Dump - contractor rate",null,{"$f":"I21/I18","v":2.5575821713147402},"$/m3",null,"Dozing - contractor rate",null,{"$f":"N21/N16","v":0.8701472556894243},"$/m3"]
[]
[null," - Owner",null,null,null,null," - Owner",null,null,null,null," - Owner"]
[null,"ownership, daily",null,null,"$/day",null,"ownership, daily",null,null,"$/day",null,"ownership, daily",null,null,"$/day"]
[null,"maintenance",null,null,"$/hr",null,"maintenance",null,null,"$/hr",null,"maintenance",null,null,"$/hr"]
[null,"fuel",null,null,"$/hr",null,"fuel",null,null,"$/hr",null,"fuel",null,null,"$/hr"]
[null,"consumables (cutters, tires)",null,null,"$/hr",null,"consumables (cutters, tires)",null,null,"$/hr",null,"consumables (cutters, tires)",null,null,"$/hr"]
[null,"operator",null,null,"$/hr",null,"operator",null,null,"$/hr",null,"operator",null,null,"$/hr"]
[null,"Owner hourly rate",null,{"$f":"D25/10+SUM(D26:D29)","v":0},"$/hr",null,"Owner hourly rate",null,{"$f":"I25/10+SUM(I26:I29)","v":0},"$/hr",null,"Owner hourly rate",null,{"$f":"N25/10+SUM(N26:N29)","v":0}]
[null,"Excavation cost - owner rate",null,{"$f":"D30/D11","v":0},"$/m3",null,"Haul/Dumping Cost - owner rate",null,{"$f":"I30/I18","v":0},"$/m3",null,"Spreading/Dozing Cost - owner rate",null,{"$f":"N30/N16","v":0},"$/hr"]
[null,"Excavation cost - select contractor or owner rate (D22 or D31)",null,null,"$/m3",null,"Haul/Dumping Cost - select contractor or owner rate (I22 or I31",null,null,"$/m3",null,"Spreading/Dozing Cost - select contractor or owner rate (N22 or N31)",null,null,"$/m3"]
[]
[]
[]
[null,"Excavator",null,null,null,null,"Trucking",null,null,null,null,"Dozing"]
[null,null,"Cat 320","Cat 325B","Cat 375",null,null,"Cat 771 D","Cat 777D","Cat 789C"]
[null,"heaped bucket capacity, m3",1.5,2.2000000000000002,5.4,null,"Truck capacity - heaped, m3",27.5,60.5,137]
[null,null,null,"Typical Cycle Times (seconds)"]
[null,"easy digging, shallow digging, small swing angle",16,18,20]
[null,"med. to  hard digging, rocky soil, swing angle to 90 deg.",23,23,25]
[null,"tough digging, sandstone, caliche, at max.  machine depth, swing angle > 120 deg. ",27,29,35]
[]
[null,"Material","Fill Factor (% of heaped bucket capacity"]
[null,"Moist loam or sandy clay",null,"100 - 110"]
[null,"sand and gravel (not till)",null,"95 - 110"]
[null,"hard tough clay",null,"80 - 90"]
[null,"rock - will blasted",null,"60 - 75"]
[null,"rock - poorly blasted",null,"40 -60"]
[]
[null,"Operator Skill","poor","average","good"]
[null,"Correction factor",0.6,0.75,1]
[]
[null,"Machine availability","poor","average","good"]
[null,"Correction factor",0.9,0.95,1]

{"sheet":"Tools","index":17,"n_rows":13,"n_cols":12,"rows_kept":13,"cut":false,"hidden":false,"merged":[]}
[]
["The functions in this worksheet serve as a back up in the event that the menu item \"Add-Ins\" is not shown in Excel menu bar"]
[]
[]
[null,null,"Save file before clearing all data"]
[]
[null,null,null,null,null,null,null,null,null,null,null,"These functions duplicate components within worksheet"]
[]
[]
[null,null,"Shows both active worksheet as well as table of Unit Costs in a separate window"]
[]
[]
[null,null,"Prints all worksheets having non-zero sums"]